Workbook

Sheet InCA (hidden)
B1: Welcome to InCA - the Intermodal Corridor Analyzer | J1: Model: | K1: Updated April 23, 2009 | O1: Version: | P1: 0.49 | R1: Center for Transportion Research
P8: miles =
J10: Miles =
J11: No. of Containers
R14: miles =

Sheet Rail Cost (hidden)
B1: RAIL LINE HAUL COST ANALYSIS | K1: Model: Updated June 08, 2009 | L1: Version: | M1: 0.8
C3: =P16 -> 
B4: cell legend: | C4: user input | D4: calculation | F4: cost calculation | H4: optional inputs | K4: note: Calculation cells have been locked. To edit cells, go to "Review" tab, and click "unprotect sheet". | T4: Default Unit: tons
F6: new to rail technology? | AM6: http://www.uprr.com/customers/equip-resources/cartypes/intermodal.shtml
F8: total cost | H8: =H25 -> 36671.31268
V14: http://www.isocontainers.com/specs.htm
P15: Error Messages
P16: =IF(Model!D8>VLOOKUP(Model!D5,Data!D4:G9,4),"Warning! Cargo weight exceeds allowed payload. Max. is " & VLOOKUP(Model!D5,Data!D5:G9,4) & " tons"," ") -> 
P17: =Model!N6&Model!N7 -> ALLIANCECHICAGO
P18: =VLOOKUP(P19,BNSF_City_Terminals,1,FALSE) -> 
F19: =Model!M55 -> fuel cost | H19: =Model!N55 -> 5187.723214 | P19: =P17 -> ALLIANCECHICAGO | AD19: Return to Model
F20: maint. cost | H20: =Model!N56 -> 10670
F21: =Model!M57 -> crew labor cost | H21: =Model!N57 -> 720 | V21: Rail Companies
F22: =Model!M58 -> capital & invest. cost | H22: =Model!N58 -> 93.58946918 | V22: railroad | W22: Distance | X22: Schedule | Y22: Maps
F23: =Model!M59 -> loading/unloading | H23: =Model!N59 -> 20000 | V23: CTR RailRoad
F24: =Model!M60 -> other cost | H24: =Model!N60 -> 0 | V24: BNSF | X24: Go to BNSF Sched | Y24: BNSF Map
F25: total cost | H25: =SUM(H19:H24) -> 36671.31268 | V25: UP | X25: Go to UP Sched | Y25: UP Map
F26: cents/ton-mile | H26: =Model!N44 -> 6.945324372 | V26: KCS
F27: per ton | H27: =H25/Model!I41 -> 19.09964202 | V27: NS
F28: per mile | H28: =Model!N47 -> 133.3502279
F29: per teu | H29: =Model!N45 -> 183.3565634 | AF29: http://www.all-railroads.com/instock/newmodal.htm
F30: per feu | H30: =Model!N46 -> 733.4262537 | AF30: http://www.uprr.com/aboutup/reference/locorost.shtml
F31: % fuel | H31: =H19/H25 -> 0.1414654354
F32: cost/minute | H32: =Model!N43/(Model!N37*60) -> 177.8003039
F33: cost/carload | H33: =total_cost/Model!D18 -> 733.4262537
F34: cost/ton | H34: =total_cost/Model!I41 -> 19.09964202
AF35: http://www.alk.com/pcmiler/rail-screenshots.asp
F39: Summary of Train Data Inputs
F40: Type of Container | H40: =Model!D5 -> 40 ft Dry
F41: Cargo Weight | H41: =Model!D8 -> 15
F42: Type of Car | H42: =Model!D11 -> Container Carriers (5-unit)
F43: No. of Containers | H43: =Model!D14 -> 100
F44: Double Stacked | H44: =Model!D15 -> Yes
F45: Utilization Ratio | H45: =Model!D19 -> 1
F46: HPPT | H46: =Model!I10 -> 4.123376623
F47: Locomotive HP | H47: =Model!I5 -> 4000
F48: Optional Inputs | H48: =IF(AND(Model!D41="No",Model!I23="No"),"No","Yes") -> No
AA50: Equations
AA55: where
AA56: 0.0183 = gallons of fuel comsumed per hour (n)
AA57: based on
AA58: Work (W) = 2545 Btu. = 1 hp-hr
AA59: Energy (E) = 139,000 Btu. in a gallon of diesel fuel
AA60: Thermal efficiency = W/(E*n)
AA61: Cost = n*total HP * price * Trip time
AA63: Gallons of Fuel Consumed by one locomotive
AA65: Fuel Capacity of Locmotives
AA66: 3600 | AB66: gals
AB69: locomotive lease
AB70: =Model!S54*24 -> 0 | AC70: $/day
AB74: q = track maintenance cost per car, per locomotive)
A118: Note: Calculation cells have been locked. To freely edit cells, "Unprotect Sheet" (under "Review" tab).
B127: http://www.uprr.com/aboutup/maps/grossweight.shtml
B128: http://westernrailroads.com/Engine%20Type/sd70.htm
B129: http://en.wikipedia.org/wiki/EMD_SD70M#SD70M
B130: http://www.emdiesels.com/emdweb/products/sd70m.jsp
B131: http://www.tealinc.com/wellposting.htm
B132: http://wiki.answers.com/Q/How_much_does_a_real_locomotive_cost
B133: http://www.co.dane.wi.us/rail/report/systemop.htm
B134: http://exotic.railfan.net/dieselfaq.htm
B135: http://www.transnow.org/publication/final-reports/documents/TNW94-08vol1.pdf
B137: T.E. | C137: tractive effort
B139: Questions??
B140: 1. Are crew wages charged by the hour, by the day or by the mile?
B141: 2. Is there a special formula for calculating crew wages eg. <100 mile = $2
B142: 3. How do you account for fuel consumption? HP? Diesel engine efficiency?
B143: 4. How do you determine the required no. of locomotives? HPTT ratio? Tractive effort?
B144: which equations are involved?
B145: 5. What is involved in administrative cost?
B146: 6. Is equipment depreciation being accounted for?
B147: 7. How do you account for loaded vs. empty ratio?
B148: 8. What role does road grade play? Tractive effort or HP?

Sheet Marine Cost (hidden)
B1: SHIPPING LINE HAUL COST ANALYSIS | E1: Credit to: Jim Kruse, TTI | J1: Model: Updated May 05, 2009 | K1: Version: | L1: 0.6
B3: Cell Legend >> | C3: User Input | D3: Calculation | E3: Total Cost
A5: Cargo Weight and Ship Data | I5: Basic Trip Details | T5: Data Table | V5: Container shipping tables
C6: Input/Output | K6: Input/Output | T6: Yes | Y6: Million USD
B7: cargo weight of one (1) container (FEU) | C7: 30 | D7: tons | J7: port of loading | K7: Long Beach | L7: port | T7: No | V7: TEU Capacity | W7: Service Speed | X7: Fuel Consumption | Y7: DNV Newbuild | Z7: Alphaliner Newbuild | AA7: Average Newbuild | AF7: Daily Rep & Maint | AG7: Daily Others | AL7: Northbound | AT7: CONTAINER-RELATED PORT CHARGES | BE7: Port Distance Matrix
J8: port of discharging | K8: Houston-BC | L8: port | AB8: Daily | AC8: No. of | AD8: Daily | AE8: Daily | AF8: Daily Rep | AI8: Panama3 | AJ8: Suez Canal | AK8: Estimated | AL8: Suez | AP8: LOADED | BB8: Port Charges
B9: tare weight of one (1) container (40 feet) | C9: 4 | D9: tons | J9: distance (nautical miles) | K9: 4454 | L9: nautical miles | W9: (knots) | X9: (tonnes/day) | Y9: price | Z9: price | AA9: price | AB9: Manning | AC9: Crew | AD9: H&M Ins | AE9: P&I | AF9: price | AG9: price | AH9: DWT | AI9: Canal Chg | AJ9: Net Tonn. | AK9: GRT2 | AL9: Dues1 | AQ9: Port | AR9: Total | AS9: % of | AY9: Clean | AZ9: Stevedore | BB9: http://www.portofhouston.com/pdf/maritime/2009_Tariff14&15_Rates.pdf
J10: trip time | K10: =(K9/K19)/24 -> 10.48493409 | L10: days | V10: 600 | W10: 16.4 | X10: 18.9 | Y10: 19 | Z10: 18.8 | AA10: =(Z10+Y10)/2 -> 18.9 | AB10: 3167 | AC10: 16 | AD10: 398 | AE10: 274 | AF10: 870 | AG10: 1300 | AH10: 9000 | AI10: 43468 | AJ10: 10000 | AK10: =(0.458636*AH10)+849.572834 -> 4977.296834 | AL10: 100891 | AR10: TEUs | AS10: TEUs | AT10: Wharfage | AU10: Security | AV10: Throughput | AW10: Gate Fee | AX10: Infra Fee | AY10: Truck | AZ10: Fee
B11: gross weight of one (1) container (FEU) | C11: =C7+C9 -> 34 | D11: tons | J11: distance (miles) | K11: =K9*1.15077945 -> 5125.57167 | L11: miles | V11: 1000 | W11: 17.7 | X11: 31.6 | Y11: 25 | Z11: 21.4 | AA11: 23.2 | AB11: 3167 | AC11: 16 | AD11: 398 | AE11: 274 | AF11: 870 | AG11: 1300 | AH11: 14000 | AI11: 73428 | AJ11: 10000 | AK11: 7270.476834 | AL11: 125506 | AQ11: Charleston | AR11: 1754377 | AS11: =AR11/$AR$27 -> 0.2697900119 | AT11: 4.20/ST | AU11: $5.75/box | AW11: $61/box | AZ11: $0.53/ST
V12: 1200 | W12: 18.4 | X12: 39.1 | Y12: =(25+29)/2 -> 27 | Z12: 21.4 | AA12: 24.2 | AB12: 3167 | AC12: 16 | AD12: 398 | AE12: 274 | AF12: 870 | AG12: 1300 | AH12: 17000 | AI12: 88130 | AJ12: 10571 | AK12: 8646.384834 | AL12: 143854 | AQ12: Hampton Rds | AR12: 2128366 | AS12: =AR12/$AR$27 -> 0.327302449 | AT12: $3.89/ST cargo only | AU12: $5.75/box
B13: select TEU capacity of ship | C13: 600 | D13: TEU | I13: Fuel Consumption | L13: $$$ | V13: 1400 | W13: 18.9 | X13: 46.4 | Y13: 29 | Z13: 27.1 | AA13: 28.05 | AB13: 3167 | AC13: 16 | AD13: 398 | AE13: 274 | AF13: 870 | AG13: 1300 | AH13: 20000 | AI13: 103258 | AJ13: 11429 | AK13: 10022.29283 | AL13: 162393 | AQ13: Houston-Bay | AT13: 160 | AU13: 2.60/box | AV13: 89.78/box | AW13: 0
K14: Input/Output | V14: 1600 | W14: 19.4 | X14: 53.7 | Y14: 31 | Z14: 33.5 | AA14: 32.25 | AB14: 3167 | AC14: 16 | AD14: 398 | AE14: 274 | AF14: 870 | AG14: 1300 | AH14: 23000 | AI14: 115889 | AJ14: 12286 | AK14: 11398.20083 | AL14: 175355 | AQ14: Houston-BC | AT14: 160 | AU14: 2.60/box | AV14: 89.78/box | AW14: 0 | AX14: 0 | AY14: 0
B15: number of containers (FEU) | C15: 50 | D15: containers | J15: price per ton of fuel | K15: 285 | L15: $/ton | V15: 2000 | W15: 20.1 | X15: 65.6 | Y15: 39 | Z15: 42.6 | AA15: 40.8 | AB15: 3167 | AC15: 16 | AD15: 398 | AE15: 274 | AF15: 870 | AG15: 1300 | AH15: 28000 | AI15: 146886 | AJ15: 13714 | AK15: 13691.38083 | AL15: 196959 | AQ15: Long Beach | AR15: 7316465 | AS15: =AR15/$AR$28 -> 0.4110403615 | AT15: 160 | AU15: 0 | AV15: 0 | AW15: 0 | AX15: 12 | AY15: 70
B16: percent full | C16: 1 | J16: service speed | K16: =VLOOKUP(C13,V10:X23,2) -> 16.4 | L16: knots | Q16: http://www.apl.com/routes/html/asia_north_america.html | V16: 2200 | W16: 20.5 | X16: 72.7 | Y16: =39+0.4*6 -> 41.4 | Z16: 42.6 | AA16: 42 | AB16: 3167 | AC16: 16 | AD16: 398 | AE16: 274 | AF16: 870 | AG16: 1300 | AH16: 31000 | AI16: 159518 | AJ16: 14571 | AK16: 15067.28883 | AL16: 210048 | AQ16: Los Angeles | AR16: 8355039 | AS16: =AR16/$AR$28 -> 0.4693876416 | AT16: 388.5 | AU16: 0 | AV16: 0 | AW16: 0 | AX16: 12 | AY16: 70
C17: =IF(C15<=C13," ","Warning: No. of Containers exceed ship capacity") ->  | J17: service fuel consumption | K17: =VLOOKUP(C13,V10:X23,3) -> 18.9 | L17: tons/day | V17: 2500 | W17: 20.9 | X17: 82 | Y17: 45 | Z17: 46 | AA17: 45.5 | AB17: 3167 | AC17: 16 | AD17: 398 | AE17: 274 | AF17: 870 | AG17: 1300 | AH17: 35000 | AI17: 178465 | AJ17: 15714 | AK17: 16901.83283 | AL17: 227331 | AQ17: NY/NJ (Maher Tariff) | AR17: 5299105 | AS17: =AR17/$AR$27 -> 0.8149021568 | AT17: 0 | AU17: 0 | AV17: $342.53/box | AW17: 0 | AX17: 0 | AY17: 0
B18: number of full containers (FEU) | C18: =C15*C16 -> 50 | V18: 2800 | W18: 21.4 | X18: 91.4 | Y18: =45+0.6*7 -> 49.2 | Z18: 46 | AA18: 47.6 | AB18: 3365 | AC18: 17 | AD18: 398 | AE18: 274 | AF18: 870 | AG18: 1300 | AH18: 39000 | AI18: 197412 | AJ18: 24000 | AK18: 18736.37683 | AL18: 244614 | AQ18: Oakland | AR18: 2388182 | AS18: =AR18/$AR$28 -> 0.134168508 | AT18: $332/FEU | AU18: 0 | AV18: 0 | AW18: 0 | AX18: 0 | AY18: 0
B19: number of empty containers (FEU) | C19: =C15-C18 -> 0 | J19: actual speed | K19: 17.7 | L19: knots | V19: 3000 | W19: 21.6 | X19: 98.3 | Y19: 52 | Z19: 50.2 | AA19: 51.1 | AB19: 3365 | AC19: 17 | AD19: 640 | AE19: 394 | AF19: 870 | AG19: 1300 | AH19: 42000 | AI19: 210044 | AJ19: 27000 | AK19: 20112.28483 | AL19: 257227 | AQ19: Savannah | AR19: 2604312 | AS19: =AR19/$AR$27 -> 0.4004939449 | AT19: 4.20/ST | AU19: $5.75/box | AV19: $115/box | AW19: 0 | AX19: 0 | AY19: 0 | AZ19: $0.53/ST
J20: actual fuel consumption | K20: =K17*((K19/K16)^3) -> 23.7601982 | L20: tons/day | V20: 3500 | W20: 22.3 | X20: 114.3 | Y20: 58 | Z20: 57.1 | AA20: 57.55 | AB20: 3365 | AC20: 17 | AD20: 640 | AE20: 394 | AF20: 870 | AG20: 1300 | AH20: 49000 | AI20: 241623 | AJ20: 34000 | AK20: 23322.73683 | AL20: 285378 | AQ20: Seattle | AR20: 1973504 | AS20: =AR20/$AR$28 -> 0.110871821 | AT20: $10.98/MT | AU20: $325/day/vessel | AV20: 0 | AW20: 0 | AX20: 0 | AY20: 0
B21: loaded container units transported | V21: 4000 | W21: 23 | X21: 127.9 | Y21: 65 | Z21: 65.1 | AA21: 65.05 | AB21: 3365 | AC21: 17 | AD21: 640 | AE21: 394 | AF21: 870 | AG21: 1300 | AH21: 55000 | AI21: 275848 | AJ21: 35000 | AK21: 26074.55283 | AL21: 309561 | AQ21: Tacoma | AR21: 1924934 | AS21: =AR21/$AR$28 -> 0.1081431494 | AT21: $89.22/FEU | AU21: $325/day/vessel | AV21: $58.62/box | AW21: $60.35/box | AX21: 0 | AY21: 0
B22: total TEU | C22: =C18*2 -> 100 | D22: TEU | E22: fuel cost | G22: =C53 -> 71000.37193 | J22: trip time in hrs | K22: =K10*24 -> 251.6384181 | L22: hrs | V22: 4800 | W22: 24 | X22: 165.4 | Y22: =65+0.4*25 -> 75 | Z22: 64.7 | AA22: 69.85 | AB22: 3365 | AC22: 17 | AD22: 640 | AE22: 394 | AF22: 870 | AG22: 1300 | AH22: 66000 | AI22: 275848 | AJ22: 35000 | AK22: 31119.54883 | AL22: 353889 | AT22: per box and per TEU
B23: total FEU | C23: =C18 -> 50 | D23: FEU | E23: maint. cost | G23: 11501.82906 | J23: trip time in days | K23: =K22/24 -> 10.48493409 | L23: days | V23: 6000 | W23: 24.6 | X23: 203.6 | Y23: 90 | Z23: 94.7 | AA23: 92.35 | AB23: 3365 | AC23: 17 | AD23: 995 | AE23: 480 | AF23: 870 | AG23: 1300 | AH23: 82000 | AI23: 275848 | AJ23: 41000 | AK23: 38457.72483 | AL23: 420328
E24: =B55 -> crew labor cost | G24: 33205.78625 | V24: 7650 | W24: 25 | X24: 250 | Y24: 111 | Z24: 113.4 | AA24: 112.2 | AB24: 3365 | AC24: 17 | AD24: 995 | AE24: 480 | AF24: 870 | AG24: 1300 | AH24: 90000 | AI24: 275848 | AJ24: 48000 | AK24: 42126.81283 | AL24: 434098
B25: gross weight of cargo (full) (payload) | C25: =(C18*C11) -> 1700 | D25: tons | E25: =B56 -> capital & invest. cost | G25: 59812.28503 | J25: fuel surcharge (optional) | K25: 0 | L25: $/mile
B26: gross weight of cargo (empty) | C26: =C19*C9 -> 0 | D26: tons | E26: =B57 -> insurance | G26: 6756.31917 | J26: total fuel surcharge | K26: =K25*K9 -> 0 | L26: $$$
E27: =B58 -> loading/unloading | G27: 0 | V27: From USACE tables | AL27: 1 Per Online Toll Calculator for Suez Canal Transit | AP27: Total East | AR27: =SUM(AR19:AR22) -> 6502750 | AS27: =SUM(AS19:AS22) -> 0.6195089152
E28: =B59 -> other cost | G28: 51468 | J28: Total Fuel cost per trip | K28: =K15*K20*K10 -> 71000.37193 | L28: $$$ | AL28: http://www.lethagencies.com/calculator.asp?Port=SUEZTREG | AP28: Total West | AR28: =SUM(AR12:AR16) -> 17799870 | AS28: =SUM(AS12:AS16) -> 1.207730452
B29: total gross weight of cargo | C29: =C25+C26 -> 1700 | D29: tons | E29: total cost | G29: =SUM(G22:G28) -> 233744.5914 | J29: ton-miles per gallon | K29: =C29*K11/(K23*K20*6.45*40) -> 135.5675546 | L29: ton-miles per gal. | W29: Handysize | X29: Handysize | AL29: SDR = on April 23, 2009
E30: cents/ton-mile | G30: =K93 -> 2.682565523 | W30: Handymax | X30: Handymax | AP30: EMPTY
E31: per mile | G31: =K96 -> 45.60361389 | I31: Maintenance and repairs | L31: $$$ | W31: Panamax | X31: Panamax | AI31: 3 http://boydsteamship.com/transit_container.php | AQ31: Port | AR31: Total | AS31: % of | AY31: Clean
E32: per teu | G32: =K94 -> 2337.445914 | K32: Input/Output | L32: (unit) | W32: Aframax | X32: Aframax | AI32: as of 4/24/09 | AR32: TEUs | AS32: TEUs | AT32: Wharfage | AU32: Security | AV32: Throughput | AW32: Gate Fee | AX32: Infra Fee | AY32: Truck
E33: per feu | G33: =K95 -> 4674.891829 | J33: maintenance | K33: =VLOOKUP(C13,V10:AG24,10)*350 -> 95900 | L33: $/annum | AK33: 2 Formula = | AQ33: LA | AT33: 18.74/FEU | AU33: 0 | AV33: 0 | AW33: 0 | AX33: 0 | AY33: 0
B34: Findings | E34: cost/minute | G34: =K92/(K22*60) -> 15.48151201 | J34: stores/supplies/spares & mgmt/admin. | K34: =VLOOKUP(C13,V10:AG24,11)*350 -> 304500 | L34: $/annum | AK34: y = 0.458636(x) + 849.572834 | AQ34: LB | AT34: 19.40/FEU | AU34: 0 | AV34: 0 | AW34: 0 | AX34: 0 | AY34: 0
A35: Ship Data | B35: Cost of shipping is independent of number of containers carried | J35: navigation and comms service | L35: $/annum | M35: Set up table | AK35: SDR = | AL35: 1.4962 USD | AQ35: Oak | AT35: $19/FEU | AU35: 0 | AV35: 0 | AW35: 0 | AX35: 0 | AY35: 0
B36: cost/minute is independent of only trip miles except in ships | AQ36: Seattle | AT36: 0 | AU36: $325/day/vessel | AV36: 0 | AW36: 0 | AX36: 0 | AY36: 0
B37: cost/minute is highest in rail, ships, car | J37: Total Trip Maintenance Cost | K37: =(K33+K34+K35)/365*$K$10 -> 11501.82906 | L37: $$$ | AQ37: Tacoma | AT37: $89.22/FEU | AU37: $325/day/vessel | AV37: $58.62/box | AW37: $60.35/box | AX37: 0 | AY37: 0
AQ38: Houston-BC | AT38: $12.40/box | AU38: 0 | AV38: $35.91/box | AW38: 0
AQ39: Houston-Bay | AT39: $12.40/box | AU39: 0 | AV39: $30.50/box | AW39: $5.41/box
I40: Crew Labor Cost | L40: $$$ | AQ40: NY/NJ (Maher Tariff) | AT40: 0 | AU40: 0 | AV40: $342.53/box | AW40: 0 | AX40: 0 | AY40: 0
K41: Input/Output | L41: (unit) | AQ41: Hampton Rds | AT41: 0 | AU41: $5.75/box | AV41: 0 | AW41: 0 | AX41: 0 | AY41: 0
J42: daily crew wages | K42: =VLOOKUP(C13,V10:AG24,7) -> 3167 | L42: $/day | AQ42: Charleston | AT42: 0 | AU42: $5.75/box | AW42: $61/box | AX42: 0 | AY42: 0 | AZ42: 0
J43: number of onboard crew members | K43: =VLOOKUP(C13,V10:AG24,8) -> 16 | L43: number | AQ43: Savannah | AT43: 0 | AU43: $5.75/box | AV43: 0 | AW43: 0 | AX43: 0 | AY43: 0 | AZ43: 0
J45: Total Trip Labor Cost | K45: =K42*K10 -> 33205.78625 | L45: $$$
I48: Capital and Investment Cost | L48: $$$
K49: Input/Output | L49: (unit)
J50: cost of a ship | K50: =VLOOKUP(C13,V10:AG24,6)*1000000 -> 18900000 | L50: $$$ | AV50: =16/17 -> 0.9411764706
J51: equipment life (years) | K51: 25 | L51: years | AU51: 6500 teu | AV51: 2500 or less | AW51: < 3k teu | AY51: 3-5k teu | AZ51: 5k teu
B52: Cost Break Down | J52: salvage value (percentage) | K52: 0 | L52: % | AT52: 2006 | AU52: 2008
B53: fuel cost | C53: =K28 -> 71000.37193 | D53: $$$ | AQ53: Daily costs | AS53: manning | AT53: 2755 | AU53: 3365 | AV53: =$AV$50*AU53 -> 3167.058824
B54: maintenance cost | C54: =K37 -> 11501.82906 | D54: $$$ | J54: hourly depreciation of ship | K54: =(K50-(K52*K50))/(K51*8760) -> 86.30136986 | L54: $/hr | AS54: h&m | AT54: 935 | AU54: 995 | AW54: =140/350*995 -> 398 | AY54: =225/350*995 -> 639.6428571 | AZ54: 995
B55: crew labor cost | C55: =K45 -> 33205.78625 | D55: $$$ | AS55: p&i | AT55: 450 | AU55: 480 | AW55: =80/140*480 -> 274.2857143 | AY55: =115/140*480 -> 394.2857143 | AZ55: 480
B56: capital & invest. cost | C56: =K61 -> 59812.28503 | D56: $$$ | J56: annual interest rate | K56: 0.1 | L56: percent | AS56: r&m | AT56: 745 | AU56: 870 | AV56: 870 | AW56: 870 | AY56: 870 | AZ56: 870
B57: insurance | C57: =K69 -> 6756.31917 | D57: $$$ | J57: total interest over 25 years | K57: =(PMT(K56,25,K50)*(-1)*25)-K50 -> 33154414.11 | AF57: Main Engine for 8200 TEU Container Ship | AS57: others | AT57: 1180 | AU57: 1300 | AV57: 1300 | AW57: 1300 | AY57: 1300 | AZ57: 1300
B58: loading/unloading | C58: =K77 -> 0 | D58: $$$ | J58: hourly interest charge for ship | K58: =K57/(8760*K51) -> 151.3900188 | L58: $/hr | AF58: Max. power: 68,650 KW/93360 PS | AS58: total | AT58: 6065 | AU58: 7010
B59: other cost | C59: =K87 -> 51468 | D59: $$$ | AF59: Fuel Consumption: 230t/day at 25Kn
AF60: Source: | AQ60: All figures is based on SDR (see below) | BA60: 1.48271 on 4/22/09
J61: Total Trip Depreciation and Interest charges | K61: =(K54+K58)*$K$22 -> 59812.28503 | L61: $$$ | AF61: http://www.naval.ntua.gr/~sdl/Courses/Undergraduate/Presentations/Containership%20NTUA%202005.pdf | AZ61: DWT | BA61: SDR
AS62: Suez Canal Suez Canal net tonnage net tonnage | AZ62: 5000 | BA62: 8
I63: Insurance | L63: $$$ | AC63: 380 cst bunker fuel is 6.45 bbl per ton | AQ63: Vessel type | AR63: Condition | AS63: First | AT63: Next | AU63: Next | AV63: Next | AW63: Next | AX63: Next | AY63: Rest | AZ63: 5000 | BA63: 5.5 | BC63: =AZ62+AZ63 -> 10000
K64: Input/Output | L64: (unit) | AC64: There are 40 gal per barrel. | AS64: 5000 | AT64: 5000 | AU64: 10000 | AV64: 20000 | AW64: 30000 | AX64: 50000 | AZ64: 10000 | BA64: 4.7 | BC64: =AZ64+BC63 -> 20000
J65: hull and machinery (H & M) | K65: =VLOOKUP(C13,V10:AG24,9)*350 -> 139300 | L65: $/annum | AQ65: Tankers of Crude Oil | AR65: Laden | AS65: 7,65 | AT65: 4,80 | AU65: 3,90 | AV65: 1,70 | AW65: 1,50 | AX65: 1,40 | AY65: 1,30 | AZ65: 20000 | BA65: 3 | BC65: =AZ65+BC64 -> 40000
J66: protection and indemnity (P& I) | K66: =VLOOKUP(C13,V10:AG24,10)*350 -> 95900 | L66: $/annum | AZ66: 30000 | BA66: 2.9 | BC66: =AZ66+BC65 -> 70000
J67: other | L67: $/annum | S67: Revise so that there is a declining debt balance each period, | AR67: Ballast | AS67: 6,50 | AT67: 4,08 | AU67: 3,32 | AV67: 1,45 | AW67: 1,28 | AX67: 1,19 | AY67: 1,11 | AZ67: 50000 | BA67: 2.8 | BC67: =AZ67+BC66 -> 120000
S68: just as with mortgages. | AC68: Source: | AD68: http://www.tsacarriers.org/fs_bunker.html
J69: Total Insurance Cost | K69: =(K65+K66+K67)/365*$K$10 -> 6756.31917 | L69: $$$ | AC69: A More Transparent Formula | AQ69: Tankers of Petroleum Products | AR69: Laden | AS69: 7,65 | AT69: 4,80 | AU69: 3,90 | AV69: 2,35 | AW69: 2,30 | AX69: 2,20 | AY69: 2,10
AC71: TSA’s new bunker charge calculation formula starts with fewer variables: | AR71: Ballast | AS71: 6,50 | AT71: 4,08 | AU71: 3,32 | AV71: 1,45 | AW71: 1,28 | AX71: 1,19 | AY71: 1,11
I72: Loading and Unloading Cost (experimental) | L72: $$$
J73: set input to 0 if not in use | K73: Input/Output | L73: (unit) | AC73: 1. We use a publicly accessible web site, http://www.bunkerworld.com/markets/tsaindex/, to track fuel prices. | AQ73: Dry Bulk Carriers | AR73: Laden | AS73: 7,65 | AT73: 5,20 | AU73: 4,40 | AV73: 1,40 | AW73: 1,30 | AX73: 1,25 | AY73: 1,20
J74: loading cost per unit container | L74: $$$
J75: unloading cost per unit container | L75: $$$ | AC75: 2. We base the formula on CS 380 (IFO 380) marine bunker fuel only, which accounts for 98% of marine fuel-related costs. | AR75: Ballast | AS75: 6,50 | AT75: 4,42 | AU75: 3,74 | AV75: 1,19 | AW75: 1,11 | AX75: 1,06 | AY75: 1,02
J77: Total Loading and Unloading Cost (experimental) | K77: =(K74*C22/1.6)+(K75*C22/1.6) -> 0 | L77: $$$ | AC77: A Few Basic Assumptions | AQ77: LPG Carriers | AR77: Laden | AS77: 7,65 | AT77: 4,90 | AU77: 3,90 | AV77: 2,80 | AW77: 2,60 | AX77: 2,50 | AY77: 2,50
AC79: In order to calculate the cost impacts of fuel price fluctuations on an average transpacific sailing, we assume the following, based on a survey of TSA members: | AR79: Ballast | AS79: 6,50 | AT79: 4,17 | AU79: 3,32 | AV79: 2,38 | AW79: 2,21 | AX79: 2,13 | AY79: 2,13
I80: Other Cost $$$ | L80: $$$
K81: Input/Output | L81: (unit) | AC81: Average Vessel Effective Capacity:* | AQ81: LNG Carriers | AR81: Laden | AS81: 7,65 | AT81: 5,30 | AU81: 4,90 | AV81: 3,40 | AW81: 3,30 | AX81: 3,20 | AY81: 3,10
J82: Repositioning of Empty Containers | L82: percent | AC82: 2,744 40’ containers (FEU) to the WC
J83: Port Charges (Origin) | K83: =VLOOKUP(K7,AQ12:AZ22,4)*C15 -> 8000 | L83: $ USD | AC83: 1,928 40’ containers (FEU) to the EC | AR83: Ballast | AS83: 6,50 | AT83: 4,51 | AU83: 4,17 | AV83: 2,89 | AW83: 2,81 | AX83: 2,72 | AY83: 2,64
J84: Port Charges (Destination) | K84: =VLOOKUP(K8,AQ12:AZ22,4)*C15 -> 8000 | L84: $ USD
H85: (Y/N) | I85: Yes | J85: Panama Canal Dues | K85: =IF(I85="Yes",VLOOKUP(C13,V10:AL24,14),0) -> 43468 | L85: $ USD | AC85: Utilization: | AQ85: Chemical and Other Liquid Bulk | AR85: Laden | AS85: 8,00 | AT85: 5,50 | AU85: 4,70 | AV85: 3,00 | AW85: 2,90 | AX85: 2,80 | AY85: 2,80
H86: (Y/N) | I86: No | J86: Suez Canal Dues | K86: =IF(I86="Yes",VLOOKUP(C13,V10:AL24,17),0) -> 0 | L86: $ USD | AC86: 88.19% to the WC / 91.56% to the EC
J87: Total Other Cost | K87: =K82*SUM(K28,K37,K45,K69,K77,K61)+K83+K85+K86 -> 51468 | L87: $$$ | O87: A fully laden Panamax ship, the largest that can | AD87: $/day | AR87: Ballast | AS87: 6,80 | AT87: 4,68 | AU87: 4,00 | AV87: 2,55 | AW87: 2,47 | AX87: 2,38 | AY87: 2,38
O88: fit through the canal, typically pays a toll of | AC88: Average Vessel Fuel Consumption:
O89: about $250,000 for 2,000 FEUs | AC89: 158.45 tons per day to the WC / 127 tons per day to the EC | AQ89: Container Ships | AR89: Laden | AS89: 7,65 | AT89: 5,00 | AU89: 4,00 | AV89: 2,80 | AW89: 2,60 | AX89: 2,05 | AY89: 1,95
I90: Total Shipping Cost | L90: $$$ | O90: 2000 FEUs is approximately 3200 TEUs
K91: Input/Output | L91: (unit) | AC91: Average One-Way Steaming Time (excluding time in port):
J92: Total Shipment Cost | K92: =SUM(K28,K37,K45,K69,K61,K77,K87) -> 233744.5914 | L92: $$$ | O92: According to Lloyd's List, the Suez dues for a | AC92: 13.94 days to the WC / 24 days to the EC | AM92: =AZ62*BA62 -> 40000
J93: per ton-mile (cents) | K93: =K92/(C25*K11)*100 -> 2.682565523 | L93: cents/ton-mile | O93: container ship are running about $600,000 | AM93: 27500 | AN93: =AM92+AM93 -> 67500
J94: per TEU | K94: =K92/C22 -> 2337.445914 | L94: $/TEU | AC94: Empty Reposition Share of Westbound Vessel Deadweight:** | AM94: 47000 | AN94: =AM93+AM94 -> 74500
J95: per FEU | K95: =K92/C23 -> 4674.891829 | L95: $/FEU | AC95: 7.714% from WC / 8.84% from EC | AM95: 60000 | AN95: =AM94+AM95 -> 107000
J96: per mile | K96: =K92/K11 -> 45.60361389 | L96: $/mile | AM96: 87000 | AN96: =AM95+AM96 -> 147000
J97: per TEU-mile | K97: =(K92/(C22*K11)) -> 0.4560361389 | L97: $/TEU-mile | AM97: 140000 | AN97: =AM96+AM97 -> 227000

Sheet Not Used (hidden)
D1: Service Level | E1: Equipment | F1: Goal Hrs 0 | G1: Goal Hrs 1 | H1: Goal Hrs 2 | I1: Goal Hrs 3 | J1: Goal Hrs 4 | K1: Goal Hrs 5 | L1: Goal Hrs 6 | O1: BNSF 6003 Rail Miles Inquiry | X1: Union Pacific
B2: Alliance, TX - Chicago, IL | D2: Expedited | E2: Container | F2: 37 | G2: 37 | H2: 37 | I2: 38 | J2: 38 | K2: 40 | O2: Search Date - May 14 , 2009 | Effective Date - May 14 , 2009 | X2: Origin, St | Y2: Destination, St | Z2: Service Level | AA2: Hrs
B3: Alliance, TX - Global Gateway So, CA | D3: Expedited | E3: Trailer | F3: 35 | G3: 35 | H3: 35 | I3: 36 | J3: 36 | K3: 38 | X3: Dallas (DIT, TX) | Y3: Los Angeles (ICTF, CA) | Z3: Standard | AA3: 85
B4: Alliance, TX - Kansas City, KS | D4: Premium | E4: Container | F4: 58 | G4: 58 | H4: 58 | I4: 58 | J4: 58 | K4: 58 | O4: Origin | R4: Destination | U4: Rail Miles | X4: Dallas (DIT, TX) | Y4: Northern California (Oakland, CA) | Z4: Standard | AA4: 157
B5: Alliance, TX - La Harbor Apm Termi, CA | D5: Premium | E5: Container | I5: 96 | M5: Restricted* | O5: City | P5: State | Q5: SPLC | R5: City | S5: State | T5: SPLC | X5: Dallas (Mesquite, TX) | Y5: Chicago (Yard Center, IL) | Z5: Standard | AA5: 47
B6: Alliance, TX - Long Beach A Pier, CA | D6: Expedited | E6: Trailer | G6: 28 | H6: 28 | I6: 28 | J6: 31 | K6: 31 | L6: 31 | O6: ALLIANCE | P6: TX | Q6: 668100 | R6: CHICAGO | S6: IL | T6: 380000 | U6: 963 | X6: Dallas (Mesquite, TX) | Y6: Los Angeles (Los Angeles, CA) | Z6: Standard | AA6: 66
B7: Alliance, TX - Long Beach Its, CA | D7: Premium | E7: Container | G7: 30 | H7: 30 | I7: 30 | J7: 30 | K7: 30 | L7: 30 | O7: ALLIANCE | P7: TX | Q7: 668100 | R7: CHICAGO | S7: IL | T7: 380000 | U7: 963 | X7: Dallas (Mesquite, TX) | Y7: Los Angeles (Los Angeles, CA) | Z7: Expedited | AA7: 62
B8: Alliance, TX - Long Beach J Pier, CA | D8: Premium | E8: Container | G8: 96 | J8: 96 | M8: Restricted* | O8: ALLIANCE | P8: TX | Q8: 668100 | R8: CHICAGO | S8: IL | T8: 380000 | U8: 963 | X8: Dallas (Mesquite, TX) | Y8: Los Angeles (Los Angeles, CA) | Z8: SuperFlyer | AA8: 57
B9: Alliance, TX - Long Beach Lbc, CA | D9: Premium | E9: Container | K9: 96 | M9: Restricted* | O9: ALLIANCE | P9: TX | Q9: 668100 | R9: GLOBAL GATEWAY SO | S9: CA | T9: 883735 | U9: 1521 | X9: Dallas (Mesquite, TX) | Y9: Memphis (Marion, AR) | Z9: Standard | AA9: 64
B10: Alliance, TX - Long Beach Pct, CA | D10: Premium | E10: Container | K10: 96 | M10: Restricted* | O10: ALLIANCE | P10: TX | Q10: 668100 | R10: KANSAS CITY | S10: KS | T10: 581520 | U10: 529 | X10: Dallas (Mesquite, TX) | Y10: Portland (Albina, OR) | Z10: Standard | AA10: 138
B11: Alliance, TX - Long Beach T Pier, CA | D11: Premium | E11: Container | K11: 96 | M11: Restricted* | O11: ALLIANCE | P11: TX | Q11: 668100 | R11: KANSAS CITY | S11: KS | T11: 581520 | U11: 529 | X11: Dallas (Mesquite, TX) | Y11: Seattle (Seattle, WA) | Z11: Standard | AA11: 138
B12: Alliance, TX - Los Angeles, CA | D12: Premium | E12: Container | K12: 96 | M12: Restricted* | O12: ALLIANCE | P12: TX | Q12: 668100 | R12: LA HARBOR | S12: CA | U12: OD Pair Unavailable | X12: Dallas (Mesquite, TX) | Y12: St. Louis (Dupo, IL) | Z12: Standard | AA12: 40
B13: Alliance, TX - Oakland Int Gateway, CA | D13: Premium | E13: Container | K13: 96 | M13: Restricted* | O13: ALLIANCE | P13: TX | Q13: 668100 | R13: LONG BEACH A PIER | S13: CA | T13: 883743 | U13: 1587 | X13: El Paso (Alfalfa, TX) | Y13: Chicago (Chicanup, IL) | Z13: Standard | AA13: 66
B14: Alliance, TX - Phoenix, AZ | D14: Premium | E14: Container | K14: 96 | M14: Restricted* | O14: ALLIANCE | P14: TX | Q14: 668100 | R14: LONG BEACH ITS | S14: CA | T14: 883710 | U14: 1587 | X14: El Paso (Alfalfa, TX) | Y14: Houston (Englewood, TX) | Z14: Standard | AA14: 105
B15: Alliance, TX - San Bernardino, CA | D15: Expedited | E15: Trailer | F15: 68 | G15: 68 | H15: 68 | I15: 68 | J15: 68 | K15: 68 | O15: ALLIANCE | P15: TX | Q15: 668100 | R15: LONG BEACH J PIER | S15: CA | T15: 883715 | U15: 1588 | X15: El Paso (Alfalfa, TX) | Y15: Los Angeles (ICTF, CA) | Z15: Standard | AA15: 66
B16: Alliance, TX - South Seattle, WA | D16: Premium | E16: Container | F16: 92 | G16: 92 | H16: 92 | I16: 92 | J16: 92 | K16: 92 | O16: ALLIANCE | P16: TX | Q16: 668100 | R16: LONG BEACH LBC | S16: CA | T16: 883733 | U16: 1587 | X16: Houston (Barbours Cut, TX) | Y16: Los Angeles (ICTF, CA) | Z16: Standard | AA16: 146
B17: Alliance, TX - Stockton, CA | D17: Premium | E17: Container | H17: 114 | K17: 114 | M17: Restricted* | O17: ALLIANCE | P17: TX | Q17: 668100 | R17: LONG BEACH PCT | S17: CA | T17: 883209 | U17: 1588 | X17: Houston (Englewood, TX) | Y17: Los Angeles (ICTF, CA) | Z17: Standard | AA17: 91
B18: Alliance, TX - Tictf, CA | D18: Expedited | E18: Trailer | G18: 53 | H18: 53 | I18: 53 | J18: 53 | K18: 53 | L18: 53 | O18: ALLIANCE | P18: TX | Q18: 668100 | R18: LONG BEACH T PIER | S18: CA | T18: 883734 | U18: 1587 | X18: Houston (Englewood, TX) | Y18: Northern California (Oakland, CA) | Z18: Standard | AA18: 139
B19: Alliance, TX - West Basin, CA | D19: Premium | E19: Container | F19: 83 | G19: 83 | H19: 83 | I19: 83 | J19: 83 | K19: 83 | O19: ALLIANCE | P19: TX | Q19: 668100 | R19: LOS ANGELES | S19: CA | T19: 883000 | U19: 1545 | X19: Houston (Settegast, TX) | Y19: Chicago (Yard Center, IL) | Z19: Standard | AA19: 67
B20: Amarillo, TX | D20: Expedited | E20: Container | F20: 60 | G20: 60 | H20: 60 | I20: 60 | J20: 60 | K20: 60 | L20: 60 | O20: ALLIANCE | P20: TX | Q20: 668100 | R20: LOS ANGELES | S20: CA | T20: 883000 | U20: 1545 | X20: Houston (Settegast, TX) | Y20: Denver (Denver, CO) | Z20: Standard | AA20: 160
B21: Atlanta, GA | D21: Expedited | E21: Trailer | F21: 57 | G21: 57 | H21: 57 | I21: 57 | J21: 57 | K21: 57 | L21: 57 | O21: ALLIANCE | P21: TX | Q21: 668100 | R21: OAKLAND INT GATEWAY | S21: CA | T21: 876411 | U21: 1861 | X21: Houston (Settegast, TX) | Y21: El Paso (Alfalfa, TX) | Z21: Standard | AA21: 63
B22: Barbours Cut, TX | D22: Premium | E22: Container | F22: 86 | G22: 86 | H22: 86 | I22: 86 | J22: 86 | K22: 86 | O22: ALLIANCE | P22: TX | Q22: 668100 | R22: PHOENIX | S22: AZ | T22: 797000 | U22: 1247 | X22: Houston (Settegast, TX) | Y22: Los Angeles (City Of Industry, CA) | Z22: Standard | AA22: 109
B23: Birmingham, AL | D23: Expedited | E23: Trailer | F23: 149 | G23: 145 | H23: 145 | I23: 149 | J23: 145 | K23: 149 | O23: ALLIANCE | P23: TX | Q23: 668100 | R23: PHOENIX | S23: AZ | T23: 797000 | U23: 1247 | X23: Houston (Settegast, TX) | Y23: Los Angeles (Los Angeles, CA) | Z23: Standard | AA23: 109
B24: Chicago, IL | D24: Expedited | E24: Container | F24: 74 | G24: 74 | H24: 74 | I24: 74 | J24: 74 | K24: 74 | O24: ALLIANCE | P24: TX | Q24: 668100 | R24: SAN BERNARDINO | S24: CA | T24: 880270 | U24: 1485 | X24: Houston (Settegast, TX) | Y24: Memphis (Marion, AR) | Z24: Standard | AA24: 65
B25: El Paso, TX | D25: Expedited | E25: Trailer | F25: 73 | G25: 73 | H25: 73 | I25: 73 | J25: 73 | K25: 73 | O25: ALLIANCE | P25: TX | Q25: 668100 | R25: SAN BERNARDINO | S25: CA | T25: 880270 | U25: 1485 | X25: Houston (Settegast, TX) | Y25: Portland (Albina, OR) | Z25: Standard | AA25: 161
B26: Global Gateway So, CA | D26: Premium | E26: Container | F26: 108 | G26: 108 | H26: 108 | I26: 108 | J26: 108 | K26: 108 | O26: ALLIANCE | P26: TX | Q26: 668100 | R26: SAN BERNARDINO | S26: CA | T26: 880270 | U26: 1485 | X26: Houston (Settegast, TX) | Y26: Salt Lake City (SLCIT, UT) | Z26: Standard | AA26: 136
B27: Houston, TX | D27: Premium | E27: Container | H27: 96 | M27: Restricted* | O27: ALLIANCE | P27: TX | Q27: 668100 | R27: SOUTH SEATTLE | S27: WA | T27: 845203 | U27: 2385 | X27: Houston (Settegast, TX) | Y27: Seattle (Seattle, WA) | Z27: Standard | AA27: 161
B28: La Harbor APM Termi, CA | D28: Premium | E28: Container | F28: 96 | M28: Restricted* | O28: ALLIANCE | P28: TX | Q28: 668100 | R28: STOCKTON | S28: CA | T28: 875640 | U28: 1779 | X28: Houston (Settegast, TX) | Y28: St. Louis (Dupo, IL) | Z28: Standard | AA28: 49
B29: Long Beach A Pier, CA | C29: Global Gateway So, CA | D29: Premium | E29: Container | F29: 163 | G29: 163 | H29: 163 | I29: 163 | J29: 163 | K29: 163 | M29: Restricted* | O29: ALLIANCE | P29: TX | Q29: 668100 | R29: STOCKTON | S29: CA | T29: 875640 | U29: 1779 | X29: Laredo (Port Laredo, TX) | Y29: Chicago (Yard Center, IL) | Z29: Standard | AA29: 82
B30: Long Beach CUT, CA - Alliance, TX | C30: Oakland Int Gateway, CA | D30: Premium | E30: Container | F30: 143 | G30: 143 | H30: 143 | I30: 143 | J30: 143 | K30: 143 | M30: Restricted* | O30: ALLIANCE | P30: TX | Q30: 668100 | R30: STOCKTON | S30: CA | T30: 875640 | U30: 1779 | X30: Laredo (Port Laredo, TX) | Y30: Los Angeles (City Of Industry, CA) | Z30: Standard | AA30: 110
B31: Long Beach CUT, CA | C31: Tictf, CA | D31: Premium | E31: Container | F31: 163 | G31: 163 | H31: 163 | I31: 163 | J31: 163 | K31: 163 | M31: Restricted* | O31: ALLIANCE | P31: TX | Q31: 668100 | R31: TICTF | S31: CA | T31: 883213 | U31: 1588 | X31: Laredo (Port Laredo, TX) | Y31: Los Angeles (ICTF, CA) | Z31: Standard | AA31: 86
B32: Long Beach ITS, CA - Alliance, TX | C32: Global Gateway So, CA | D32: Premium | E32: Container | F32: 165 | K32: 165 | M32: Restricted* | O32: ALLIANCE | P32: TX | Q32: 668100 | R32: WEST BASIN | S32: CA | T32: 883252 | U32: 1588 | X32: Laredo (Port Laredo, TX) | Y32: Los Angeles (Los Angeles, CA) | Z32: Standard | AA32: 110
B33: Long Beach ITS, CA | C33: La Harbor Apm Termi, CA | D33: Premium | E33: Container | H33: 165 | K33: 165 | M33: Restricted* | O33: AMARILLO | P33: TX | Q33: 672700 | R33: GLOBAL GATEWAY SO | S33: CA | T33: 883735 | U33: 1192 | X33: Laredo (Port Laredo, TX) | Y33: St. Louis (Dupo, IL) | Z33: Standard | AA33: 70
B34: Long Beach J Pier, CA - Alliance, TX | C34: Los Angeles, CA | D34: Expedited | E34: Trailer | G34: 108 | H34: 108 | I34: 108 | J34: 108 | K34: 108 | O34: AMARILLO | P34: TX | Q34: 672700 | R34: OAKLAND INT GATEWAY | S34: CA | T34: 876411 | U34: 1532 | X34: Los Angeles (City Of Industry, CA) | Y34: Chicago (Global 1, IL) | Z34: Standard | AA34: 88
B35: Long Beach J Pier, CA | C35: Los Angeles, CA | D35: Premium | E35: Container | F35: 113 | G35: 113 | H35: 113 | I35: 113 | J35: 113 | K35: 113 | O35: AMARILLO | P35: TX | Q35: 672700 | R35: TICTF | S35: CA | T35: 883213 | U35: 1259 | X35: Los Angeles (City Of Industry, CA) | Y35: Chicago (Global 1, IL) | Z35: Expedited | AA35: 84
B36: Long Beach LBC, CA - Alliance, TX | C36: Oakland Int Gateway, CA | D36: Premium | E36: Container | H36: 161 | M36: Restricted* | O36: ATLANTA | P36: GA | Q36: 456200 | R36: GLOBAL GATEWAY SO | S36: CA | T36: 883735 | U36: 2543 | X36: Los Angeles (City Of Industry, CA) | Y36: Chicago (Global 1, IL) | Z36: SuperFlyer | AA36: 82
B37: Long Beach LBC, CA | C37: Stockton, CA | D37: Premium | E37: Container | F37: 137 | G37: 137 | I37: 137 | K37: 137 | O37: ATLANTA | P37: GA | Q37: 456200 | R37: LA HARBOR | S37: CA | U37: OD Pair Unavailable | X37: Los Angeles (City Of Industry, CA) | Y37: Houston (Settegast, TX) | Z37: Standard | AA37: 82
B38: Long Beach PCT, CA - Alliance, TX | C38: La Harbor Apm Termi, CA | D38: Premium | E38: Container | J38: 113 | M38: Restricted* | O38: ATLANTA | P38: GA | Q38: 456200 | R38: LOS ANGELES | S38: CA | T38: 883000 | U38: 2567 | X38: Los Angeles (City Of Industry, CA) | Y38: Laredo (Port Laredo, TX) | Z38: Standard | AA38: 82
B39: Long Beach PCT, CA | C39: Los Angeles, CA | D39: Premium | E39: Container | J39: 117 | M39: Restricted* | O39: ATLANTA | P39: GA | Q39: 456200 | R39: LOS ANGELES | S39: CA | T39: 883000 | U39: 2567 | X39: Los Angeles (ICTF, CA) | Y39: Chicago (Global 2, IL) | Z39: Standard | AA39: 104
B40: Long Beach T Pier, CA - Alliance, TX | C40: Oakland Int Gateway, CA | D40: Premium | E40: Container | J40: 141 | M40: Restricted* | O40: ATLANTA | P40: GA | Q40: 456200 | R40: OAKLAND INT GATEWAY | S40: CA | T40: 876411 | U40: 2883 | X40: Los Angeles (ICTF, CA) | Y40: Chicago (Global 3, IL) | Z40: Standard | AA40: 104
B41: Long Beach T Pier, CA | C41: Global Gateway So, CA | D41: Premium | E41: Container | G41: 163 | K41: 163 | M41: Restricted* | O41: ATLANTA | P41: GA | Q41: 456200 | R41: STOCKTON | S41: CA | T41: 875640 | U41: 2801 | X41: Los Angeles (ICTF, CA) | Y41: Dallas (DIT, TX) | Z41: Standard | AA41: 73
B42: Los Angeles, CA - Alliance, TX | C42: Long Beach A Pier, CA | D42: Premium | E42: Container | G42: 163 | K42: 163 | M42: Restricted* | O42: BARBOURS CUT | P42: TX | Q42: 684815 | R42: LA HARBOR APM | S42: CA | U42: OD Pair Unavailable | X42: Los Angeles (ICTF, CA) | Y42: Denver (Denver, CO) | Z42: Standard | AA42: 74
B43: Los Angeles, CA | C43: Long Beach J Pier, CA | D43: Premium | E43: Container | G43: 163 | K43: 163 | M43: Restricted* | O43: BARBOURS CUT | P43: TX | Q43: 684815 | R43: LOS ANGELES | S43: CA | T43: 883000 | U43: 1781 | X43: Los Angeles (ICTF, CA) | Y43: El Paso (Alfalfa, TX) | Z43: Standard | AA43: 61
B44: Lubbock, TX | C44: Los Angeles, CA | D44: Premium | E44: Container | G44: 139 | I44: 139 | K44: 139 | O44: BARBOURS CUT | P44: TX | Q44: 684815 | R44: OAKLAND INT GATEWAY | S44: CA | T44: 876411 | U44: 2097 | X44: Los Angeles (ICTF, CA) | Y44: Houston (Barbours Cut, TX) | Z44: Standard | AA44: 95
B45: Oakland Int Gateway, CA - Alliance, TX | C45: Oakland Int Gateway, CA | D45: Premium | E45: Container | G45: 163 | K45: 163 | M45: Restricted* | O45: BIRMINGHAM | P45: AL | Q45: 472600 | R45: GLOBAL GATEWAY SO | S45: CA | T45: 883735 | U45: 2305 | X45: Los Angeles (ICTF, CA) | Y45: Houston (Englewood, TX) | Z45: Standard | AA45: 93
B46: Oakland Int Gateway, CA | C46: Stockton, CA | D46: Premium | E46: Container | G46: 159 | K46: 159 | O46: BIRMINGHAM | P46: AL | Q46: 472600 | R46: LONG BEACH A PIER | S46: CA | T46: 883743 | U46: 2371 | X46: Los Angeles (ICTF, CA) | Y46: Laredo (Port Laredo, TX) | Z46: Standard | AA46: 119
B47: Phoenix, AZ - Alliance, TX | C47: Tictf, CA | D47: Premium | E47: Container | K47: 163 | M47: Restricted* | O47: BIRMINGHAM | P47: AL | Q47: 472600 | R47: LONG BEACH J PIER | S47: CA | T47: 883715 | U47: 2372 | X47: Los Angeles (ICTF, CA) | Y47: Memphis (Marion, AR) | Z47: Standard | AA47: 106
B48: San Bernardino, CA - Alliance, TX | C48: West Basin, CA | D48: Premium | E48: Container | G48: 163 | K48: 163 | M48: Restricted* | O48: BIRMINGHAM | P48: AL | Q48: 472600 | R48: LOS ANGELES | S48: CA | T48: 883000 | U48: 2329 | X48: Los Angeles (ICTF, CA) | Y48: New Orleans (Avondale, LA) | Z48: Standard | AA48: 109
B49: Stockton, CA - Alliance, TX | C49: Albuquerque, NM | D49: Expedited | E49: Trailer | F49: 64 | G49: 64 | H49: 64 | I49: 66 | J49: 66 | K49: 66 | L49: 64 | O49: BIRMINGHAM | P49: AL | Q49: 472600 | R49: OAKLAND INT GATEWAY | S49: CA | T49: 876411 | U49: 2645 | X49: Los Angeles (ICTF, CA) | Y49: Northern California (Oakland, CA) | Z49: Standard | AA49: 51
B50: Stockton, CA | C50: Alliance, TX | D50: Expedited | E50: Container | F50: 40 | G50: 40 | H50: 40 | I50: 40 | J50: 43 | K50: 43 | L50: 43 | O50: BIRMINGHAM | P50: AL | Q50: 472600 | R50: STOCKTON | S50: CA | T50: 875640 | U50: 2563 | X50: Los Angeles (ICTF, CA) | Y50: Omaha (Council Bluffs, IA) | Z50: Standard | AA50: 121
B51: Tictf, CA - Alliance, TX | C51: Alliance, TX | D51: Expedited | E51: Trailer | F51: 36 | G51: 36 | H51: 36 | I51: 36 | J51: 39 | K51: 39 | L51: 36 | O51: BIRMINGHAM | P51: AL | Q51: 472600 | R51: TICTF | S51: CA | T51: 883213 | U51: 2372 | X51: Los Angeles (ICTF, CA) | Y51: Salt Lake City (SLCIT, UT) | Z51: Standard | AA51: 50
B52: Tictf, CA | C52: Alliance, TX | D52: Premium | E52: Container | F52: 44 | G52: 44 | H52: 44 | I52: 44 | J52: 44 | K52: 44 | L52: 47 | O52: BIRMINGHAM | P52: AL | Q52: 472600 | R52: WEST BASIN | S52: CA | T52: 883252 | U52: 2372 | X52: Los Angeles (ICTF, CA) | Y52: San Antonio (SAIT, TX) | Z52: Standard | AA52: 73
B53: West Basin, CA - Alliance, TX | C53: Denver, CO | D53: Expedited | E53: Container | F53: 40 | G53: 40 | H53: 40 | I53: 40 | J53: 40 | K53: 40 | L53: 40 | O53: CHICAGO | P53: IL | Q53: 380000 | R53: ALBUQUERQUE | S53: NM | T53: 774900 | U53: 1277 | X53: Los Angeles (Los Angeles, CA) | Y53: Chicago (Global 1, IL) | Z53: Standard | AA53: 104
B54: West Basin, CA - Houston, TX | C54: Denver, CO | D54: Expedited | E54: Trailer | F54: 32 | G54: 32 | H54: 32 | I54: 32 | J54: 32 | K54: 32 | L54: 32 | O54: CHICAGO | P54: IL | Q54: 380000 | R54: ALLIANCE | S54: TX | T54: 668100 | U54: 963 | X54: Los Angeles (Los Angeles, CA) | Y54: Chicago (Global 3, IL) | Z54: Standard | AA54: 106
C55: Denver, CO | D55: Premium | E55: Container | G55: 60 | I55: 60 | L55: 60 | O55: CHICAGO | P55: IL | Q55: 380000 | R55: ALLIANCE | S55: TX | T55: 668100 | U55: 963 | X55: Los Angeles (Los Angeles, CA) | Y55: Dallas (Mesquite, TX) | Z55: Standard | AA55: 80
C56: Dilworth, MN | D56: Premium | E56: Container | F56: 39 | G56: 39 | H56: 39 | I56: 87 | J56: 63 | K56: 39 | L56: 39 | M56: Restricted* | O56: CHICAGO | P56: IL | Q56: 380000 | R56: ALLIANCE | S56: TX | T56: 668100 | U56: 963 | X56: Los Angeles (Los Angeles, CA) | Y56: Dallas (Mesquite, TX) | Z56: Expedited | AA56: 56
C57: El Paso, TX | D57: Premium | E57: Container | I57: 144 | K57: 144 | M57: Restricted* | O57: CHICAGO | P57: IL | Q57: 380000 | R57: DENVER | S57: CO | T57: 744300 | U57: 1009 | X57: Los Angeles (Los Angeles, CA) | Y57: Dallas (Mesquite, TX) | Z57: SuperFlyer | AA57: 55
C58: Fresno, CA | D58: Expedited | E58: Trailer | H58: 99 | I58: 75 | J58: 68 | K58: 68 | O58: CHICAGO | P58: IL | Q58: 380000 | R58: DENVER | S58: CO | T58: 744300 | U58: 1009 | X58: Los Angeles (Los Angeles, CA) | Y58: Denver (Denver, CO) | Z58: Standard | AA58: 56
C59: Fresno, CA | D59: Premium | E59: Container | H59: 133 | I59: 133 | J59: 133 | K59: 133 | O59: CHICAGO | P59: IL | Q59: 380000 | R59: DENVER | S59: CO | T59: 744300 | U59: 1009 | X59: Los Angeles (Los Angeles, CA) | Y59: Denver (Denver, CO) | Z59: Expedited | AA59: 55
C60: Global Gateway So, CA | D60: Premium | E60: Container | F60: 158 | M60: Restricted* | O60: CHICAGO | P60: IL | Q60: 380000 | R60: DILWORTH | S60: MN | T60: 503963 | U60: 672 | X60: Los Angeles (Los Angeles, CA) | Y60: Denver (Denver, CO) | Z60: SuperFlyer | AA60: 54
C61: Houston, TX | D61: Premium | E61: Container | F61: 72 | H61: 72 | J61: 72 | O61: CHICAGO | P61: IL | Q61: 380000 | R61: EL PASO | S61: TX | T61: 696900 | U61: 1367 | X61: Los Angeles (Los Angeles, CA) | Y61: Houston (Settegast, TX) | Z61: Standard | AA61: 103
C62: Kansas City, KS | D62: Expedited | E62: Trailer | L62: 14 | O62: CHICAGO | P62: IL | Q62: 380000 | R62: FRESNO | S62: CA | T62: 878600 | U62: 2234 | X62: Los Angeles (Los Angeles, CA) | Y62: Kansas City (Kansas City, MO) | Z62: Standard | AA62: 84
C63: Kansas City, KS | D63: Expedited | E63: Trailer | F63: 20 | G63: 20 | H63: 20 | I63: 20 | J63: 28 | K63: 20 | O63: CHICAGO | P63: IL | Q63: 380000 | R63: FRESNO | S63: CA | T63: 878600 | U63: 2234 | X63: Los Angeles (Los Angeles, CA) | Y63: Laredo (Port Laredo, TX) | Z63: Standard | AA63: 127
C64: Kansas City, KS | D64: Premium | E64: Container | F64: 54 | G64: 54 | H64: 54 | I64: 54 | J64: 54 | K64: 54 | O64: CHICAGO | P64: IL | Q64: 380000 | R64: GLOBAL GATEWAY SO | S64: CA | T64: 883735 | U64: 2096 | X64: Los Angeles (Los Angeles, CA) | Y64: Memphis (Marion, AR) | Z64: Standard | AA64: 106
C65: La Harbor Apm Termi, CA | D65: Premium | E65: Container | H65: 146 | J65: 146 | L65: 146 | M65: Restricted* | O65: CHICAGO | P65: IL | Q65: 380000 | R65: HOUSTON | S65: TX | T65: 684800 | U65: 1183 | X65: Los Angeles (Los Angeles, CA) | Y65: Memphis (Marion, AR) | Z65: Expedited | AA65: 80
C66: Long Beach A Pier, CA | D66: Premium | E66: Container | F66: 161 | H66: 161 | K66: 161 | M66: Restricted* | O66: CHICAGO | P66: IL | Q66: 380000 | R66: KANSAS CITY | S66: KS | T66: 581520 | U66: 434 | X66: Los Angeles (Los Angeles, CA) | Y66: Memphis (Marion, AR) | Z66: SuperFlyer | AA66: 77
C67: Long Beach J Pier, CA | D67: Premium | E67: Container | F67: 161 | H67: 161 | J67: 161 | M67: Restricted* | O67: CHICAGO | P67: IL | Q67: 380000 | R67: KANSAS CITY | S67: KS | T67: 581520 | U67: 434 | X67: Los Angeles (Los Angeles, CA) | Y67: Salt Lake City (SLCIT, UT) | Z67: Standard | AA67: 54
C68: Chicago, IL | D68: Premium | E68: Container | F68: 128 | H68: 128 | J68: 128 | L68: 128 | M68: Restricted* | O68: CHICAGO | P68: IL | Q68: 380000 | R68: KANSAS CITY | S68: KS | T68: 581520 | U68: 434 | X68: Los Angeles (Los Angeles, CA) | Y68: Salt Lake City (SLCIT, UT) | Z68: Expedited | AA68: 32
C69: Los Angeles, CA | D69: Premium | E69: Container | G69: 123 | K69: 123 | M69: Restricted* | O69: CHICAGO | P69: IL | Q69: 380000 | R69: LA HARBOR APM TERMI | S69: CA | T69: 883737 | U69: 2163 | X69: Los Angeles (Los Angeles, CA) | Y69: Salt Lake City (SLCIT, UT) | Z69: SuperFlyer | AA69: 32
C70: Alliance, TX | D70: Premium | E70: Container | F70: 109 | G70: 109 | H70: 109 | I70: 109 | J70: 109 | K70: 109 | L70: 109 | M70: Restricted* | O70: CHICAGO | P70: IL | Q70: 380000 | R70: LONG BEACH A PIER | S70: CA | T70: 883743 | U70: 2162 | X70: Los Angeles (Los Angeles, CA) | Y70: San Antonio (SAIT, TX) | Z70: Standard | AA70: 79
C71: Houston, TX | D71: Premium | E71: Container | F71: 111 | G71: 111 | H71: 111 | I71: 111 | J71: 111 | K71: 111 | L71: 111 | M71: Restricted* | O71: CHICAGO | P71: IL | Q71: 380000 | R71: LONG BEACH J PIER | S71: CA | T71: 883715 | U71: 2163 | X71: Los Angeles (Los Angeles, CA) | Y71: St. Louis (Dupo, IL) | Z71: Standard | AA71: 94
C72: Chicago, IL | D72: Premium | E72: Container | F72: 72 | H72: 72 | J72: 72 | O72: EL PASO | P72: TX | Q72: 696900 | R72: CHICAGO | S72: IL | T72: 380000 | U72: 1367 | X72: Northern California (Oakland, CA) | Y72: Dallas (DIT, TX) | Z72: Standard | AA72: 134
C73: Global Gateway So, CA | D73: Premium | E73: Container | F73: 136 | H73: 136 | K73: 136 | M73: Restricted* | O73: EL PASO | P73: TX | Q73: 696900 | R73: LOS ANGELES | S73: CA | T73: 883000 | U73: 1096 | X73: Northern California (Oakland, CA) | Y73: Houston (Englewood, TX) | Z73: Standard | AA73: 149
C74: La Harbor Apm Termi, CA | D74: Premium | E74: Container | F74: 136 | H74: 136 | K74: 136 | M74: Restricted* | O74: GLOBAL GATEWAY SO | P74: CA | Q74: 883735 | R74: ALLIANCE | S74: TX | T74: 668100 | U74: 1521 | X74: San Antonio (SAIT, TX) | Y74: Chicago (Yard Center, IL) | Z74: Standard | AA74: 80
C75: Long Beach A Pier, CA | D75: Premium | E75: Container | F75: 136 | H75: 136 | K75: 136 | M75: Restricted* | O75: GLOBAL GATEWAY SO | P75: CA | Q75: 883735 | R75: HOUSTON | S75: TX | T75: 684800 | U75: 1734 | X75: San Antonio (SAIT, TX) | Y75: Los Angeles (City Of Industry, CA) | Z75: Standard | AA75: 87
C76: Long Beach Its, CA | D76: Premium | E76: Container | F76: 136 | H76: 136 | K76: 136 | M76: Restricted* | O76: HOUSTON | P76: TX | Q76: 684800 | R76: CHICAGO | S76: IL | T76: 380000 | U76: 1183 | X76: San Antonio (SAIT, TX) | Y76: Los Angeles (ICTF, CA) | Z76: Standard | AA76: 86
C77: Long Beach J Pier, CA | D77: Premium | E77: Container | F77: 136 | H77: 136 | K77: 136 | M77: Restricted* | O77: HOUSTON | P77: TX | Q77: 684800 | R77: GLOBAL GATEWAY SO | S77: CA | T77: 883735 | U77: 1734 | X77: San Antonio (SAIT, TX) | Y77: Los Angeles (Los Angeles, CA) | Z77: Standard | AA77: 87
C78: Long Beach Pct, CA | D78: Premium | E78: Container | F78: 136 | H78: 136 | K78: 136 | M78: Restricted* | O78: HOUSTON | P78: TX | Q78: 684800 | R78: LA HARBOR | S78: CA | U78: OD Pair Unavailable
C79: Long Beach T Pier, CA | D79: Premium | E79: Container | F79: 136 | H79: 136 | K79: 136 | M79: Restricted* | O79: HOUSTON | P79: TX | Q79: 684800 | R79: LONG BEACH A PIER | S79: CA | T79: 883743 | U79: 1800
C80: Los Angeles, CA | D80: Premium | E80: Container | G80: 92 | I80: 92 | J80: 92 | O80: HOUSTON | P80: TX | Q80: 684800 | R80: LONG BEACH ITS | S80: CA | T80: 883710 | U80: 1800
C81: Oakland Int Gateway, CA | D81: Premium | E81: Container | F81: 140 | H81: 140 | K81: 140 | M81: Restricted* | O81: HOUSTON | P81: TX | Q81: 684800 | R81: LONG BEACH J PIER | S81: CA | T81: 883715 | U81: 1801
C82: Stockton, CA | D82: Premium | E82: Container | F82: 136 | H82: 136 | K82: 136 | O82: HOUSTON | P82: TX | Q82: 684800 | R82: LONG BEACH PCT | S82: CA | T82: 883209 | U82: 1801
C83: Tictf, CA | D83: Premium | E83: Container | F83: 136 | H83: 136 | K83: 136 | M83: Restricted* | O83: HOUSTON | P83: TX | Q83: 684800 | R83: LONG BEACH T PIER | S83: CA | T83: 883734 | U83: 1800
C84: West Basin, CA | D84: Premium | E84: Container | F84: 136 | H84: 136 | K84: 136 | M84: Restricted* | O84: HOUSTON | P84: TX | Q84: 684800 | R84: LOS ANGELES | S84: CA | T84: 883000 | U84: 1758
C85: Alliance, TX | D85: Premium | E85: Container | F85: 109 | G85: 109 | H85: 109 | I85: 109 | J85: 109 | K85: 109 | L85: 109 | M85: Restricted* | O85: HOUSTON | P85: TX | Q85: 684800 | R85: OAKLAND INT GATEWAY | S85: CA | T85: 876411 | U85: 2074
C86: Barbours Cut, TX | D86: Premium | E86: Container | F86: 149 | J86: 135 | M86: Restricted* | O86: HOUSTON | P86: TX | Q86: 684800 | R86: STOCKTON | S86: CA | T86: 875640 | U86: 1992
C87: Houston, TX | D87: Premium | E87: Container | F87: 111 | G87: 111 | H87: 111 | I87: 111 | J87: 111 | K87: 111 | L87: 111 | M87: Restricted* | O87: HOUSTON | P87: TX | Q87: 684800 | R87: TICTF | S87: CA | T87: 883213 | U87: 1801
C88: Alliance, TX | D88: Premium | E88: Container | F88: 109 | G88: 109 | H88: 109 | I88: 109 | J88: 109 | K88: 109 | L88: 109 | M88: Restricted* | O88: HOUSTON | P88: TX | Q88: 684800 | R88: WEST BASIN | S88: CA | T88: 883252 | U88: 1801
C89: Barbours Cut, TX | D89: Premium | E89: Container | F89: 149 | J89: 135 | M89: Restricted* | O89: LA HARBOR APM TERMI | P89: CA | Q89: 883737 | R89: ALLIANCE | S89: TX | T89: 668100 | U89: 1588
C90: Houston, TX | D90: Premium | E90: Container | F90: 111 | G90: 111 | H90: 111 | I90: 111 | J90: 111 | K90: 111 | L90: 111 | M90: Restricted* | O90: LA HARBOR APM TERMI | P90: CA | Q90: 883737 | R90: BARBOURS CUT | S90: TX | T90: 684815 | U90: 1824
C91: Alliance, TX | D91: Premium | E91: Container | F91: 109 | G91: 109 | H91: 109 | I91: 109 | J91: 109 | K91: 109 | L91: 109 | M91: Restricted* | O91: LA HARBOR APM TERMI | P91: CA | Q91: 883737 | R91: HOUSTON | S91: TX | T91: 684800 | U91: 1801
C92: Houston, TX | D92: Premium | E92: Container | F92: 111 | G92: 111 | H92: 111 | I92: 111 | J92: 111 | K92: 111 | L92: 111 | M92: Restricted* | O92: LONG BEACH A PIER | P92: CA | Q92: 883743 | R92: ALLIANCE | S92: TX | T92: 668100 | U92: 1587
C93: Alliance, TX | D93: Premium | E93: Container | F93: 109 | G93: 109 | H93: 109 | I93: 109 | J93: 109 | K93: 109 | L93: 109 | M93: Restricted* | O93: LONG BEACH A PIER | P93: CA | Q93: 883743 | R93: BARBOURS CUT | S93: TX | T93: 684815 | U93: 1823
C94: Houston, TX | D94: Premium | E94: Container | F94: 111 | G94: 111 | H94: 111 | I94: 111 | J94: 111 | K94: 111 | L94: 111 | M94: Restricted* | O94: LONG BEACH A PIER | P94: CA | Q94: 883743 | R94: HOUSTON | S94: TX | T94: 684800 | U94: 1800
C95: Alliance, TX | D95: Premium | E95: Container | F95: 109 | G95: 109 | H95: 109 | I95: 109 | J95: 109 | K95: 109 | L95: 109 | M95: Restricted* | O95: LONG BEACH CUT | P95: CA | Q95: 883732 | R95: ALLIANCE | S95: TX | T95: 668100 | U95: 1524
C96: Houston, TX | D96: Premium | E96: Container | F96: 111 | G96: 111 | H96: 111 | I96: 111 | J96: 111 | K96: 111 | L96: 111 | M96: Restricted* | O96: LONG BEACH CUT | P96: CA | Q96: 883732 | R96: HOUSTON | S96: TX | T96: 684800 | U96: 1737
C97: Alliance, TX | D97: Premium | E97: Container | F97: 109 | G97: 109 | H97: 109 | I97: 109 | J97: 109 | K97: 109 | L97: 109 | M97: Restricted* | O97: LONG BEACH ITS | P97: CA | Q97: 883710 | R97: ALLIANCE | S97: TX | T97: 668100 | U97: 1587
C98: Houston, TX | D98: Premium | E98: Container | F98: 111 | G98: 111 | H98: 111 | I98: 111 | J98: 111 | K98: 111 | L98: 111 | M98: Restricted* | O98: LONG BEACH ITS | P98: CA | Q98: 883710 | R98: HOUSTON | S98: TX | T98: 684800 | U98: 1800
C99: Alliance, TX | D99: Premium | E99: Container | F99: 109 | G99: 109 | H99: 109 | I99: 109 | J99: 109 | K99: 109 | L99: 109 | M99: Restricted* | O99: LONG BEACH J PIER | P99: CA | Q99: 883715 | R99: ALLIANCE | S99: TX | T99: 668100 | U99: 1588
C100: Houston, TX | D100: Premium | E100: Container | F100: 111 | G100: 111 | H100: 111 | I100: 111 | J100: 111 | K100: 111 | L100: 111 | M100: Restricted* | O100: LONG BEACH J PIER | P100: CA | Q100: 883715 | R100: HOUSTON | S100: TX | T100: 684800 | U100: 1801
C101: Alliance, TX | D101: Premium | E101: Container | F101: 109 | G101: 109 | H101: 109 | I101: 109 | J101: 109 | K101: 109 | L101: 109 | M101: Restricted* | O101: LONG BEACH LBC | P101: CA | Q101: 883733 | R101: ALLIANCE | S101: TX | T101: 668100 | U101: 1587
C102: Houston, TX | D102: Premium | E102: Container | F102: 111 | G102: 111 | H102: 111 | I102: 111 | J102: 111 | K102: 111 | L102: 111 | M102: Restricted* | O102: LONG BEACH LBC | P102: CA | Q102: 883733 | R102: HOUSTON | S102: TX | T102: 684800 | U102: 1800
C103: Alliance, TX | D103: Expedited | E103: Trailer | H103: 55 | I103: 55 | J103: 55 | K103: 55 | O103: LONG BEACH PCT | P103: CA | Q103: 883209 | R103: ALLIANCE | S103: TX | T103: 668100 | U103: 1588
C104: Alliance, TX | D104: Premium | E104: Container | F104: 79 | G104: 79 | H104: 79 | I104: 79 | J104: 79 | K104: 79 | O104: LONG BEACH PCT | P104: CA | Q104: 883209 | R104: HOUSTON | S104: TX | T104: 684800 | U104: 1801
C105: El Paso, TX | D105: Premium | E105: Container | G105: 154 | I105: 154 | K105: 154 | M105: Restricted* | O105: LONG BEACH T PIER | P105: CA | Q105: 883734 | R105: ALLIANCE | S105: TX | T105: 668100 | U105: 1587
C106: Houston, TX | D106: Premium | E106: Container | G106: 105 | I106: 105 | K106: 105 | O106: LONG BEACH T PIER | P106: CA | Q106: 883734 | R106: HOUSTON | S106: TX | T106: 684800 | U106: 1800
C107: Global Gateway So, CA | D107: Premium | E107: Container | F107: 164 | J107: 164 | M107: Restricted* | O107: LOS ANGELES | P107: CA | Q107: 883000 | R107: ALLIANCE | S107: TX | T107: 668100 | U107: 1545
C108: Long Beach A Pier, CA | D108: Premium | E108: Container | F108: 164 | J108: 164 | M108: Restricted* | O108: LOS ANGELES | P108: CA | Q108: 883000 | R108: ALLIANCE | S108: TX | T108: 668100 | U108: 1545
C109: Los Angeles, CA | D109: Premium | E109: Container | F109: 140 | J109: 140 | M109: Restricted* | O109: LOS ANGELES | P109: CA | Q109: 883000 | R109: EL PASO | S109: TX | T109: 696900 | U109: 1096
C110: Oakland Int Gateway, CA | D110: Premium | E110: Container | F110: 144 | J110: 144 | M110: Restricted* | O110: LOS ANGELES | P110: CA | Q110: 883000 | R110: HOUSTON | S110: TX | T110: 684800 | U110: 1758
C111: Tictf, CA | D111: Premium | E111: Container | F111: 164 | J111: 164 | M111: Restricted* | O111: LUBBOCK | P111: TX | Q111: 677200 | R111: GLOBAL GATEWAY SO | S111: CA | T111: 883735 | U111: 1189
C112: West Basin, CA | D112: Premium | E112: Container | F112: 164 | J112: 164 | M112: Restricted* | O112: LUBBOCK | P112: TX | Q112: 677200 | R112: LONG BEACH A PIER | S112: CA | T112: 883743 | U112: 1255
C113: Alliance, TX | D113: Premium | E113: Container | G113: 109 | K113: 109 | M113: Restricted* | O113: LUBBOCK | P113: TX | Q113: 677200 | R113: LOS ANGELES | S113: CA | T113: 883000 | U113: 1213
C114: Barbours Cut, TX | D114: Premium | E114: Container | K114: 159 | M114: Restricted* | O114: LUBBOCK | P114: TX | Q114: 677200 | R114: OAKLAND INT GATEWAY | S114: CA | T114: 876411 | U114: 1529
C115: Houston, TX | D115: Premium | E115: Container | G115: 135 | K115: 135 | M115: Restricted* | O115: LUBBOCK | P115: TX | Q115: 677200 | R115: TICTF | S115: CA | T115: 883213 | U115: 1256
C116: Alliance, TX | D116: Expedited | E116: Trailer | J116: 75 | O116: LUBBOCK | P116: TX | Q116: 677200 | R116: WEST BASIN | S116: CA | T116: 883252 | U116: 1256
C117: Alliance, TX | D117: Premium | E117: Container | J117: 83 | O117: OAKLAND INT GATEWAY | P117: CA | Q117: 876411 | R117: ALLIANCE | S117: TX | T117: 668100 | U117: 1861
C118: Alliance, TX | D118: Expedited | E118: Container | F118: 59 | G118: 59 | H118: 57 | I118: 57 | J118: 57 | K118: 57 | O118: OAKLAND INT GATEWAY | P118: CA | Q118: 876411 | R118: BARBOURS CUT | S118: TX | T118: 684815 | U118: 2097
C119: Alliance, TX | D119: Expedited | E119: Trailer | F119: 55 | G119: 55 | H119: 55 | I119: 55 | J119: 55 | K119: 55 | O119: OAKLAND INT GATEWAY | P119: CA | Q119: 876411 | R119: HOUSTON | S119: TX | T119: 684800 | U119: 2074
C120: Alliance, TX | D120: Premium | E120: Container | F120: 81 | G120: 81 | H120: 81 | I120: 81 | J120: 81 | K120: 81 | O120: PHOENIX | P120: AZ | Q120: 797000 | R120: ALLIANCE | S120: TX | T120: 668100 | U120: 1247
C121: Alliance, TX | D121: Expedited | E121: Container | F121: 92 | G121: 92 | H121: 92 | I121: 92 | J121: 92 | O121: PHOENIX | P121: AZ | Q121: 797000 | R121: ALLIANCE | S121: TX | T121: 668100 | U121: 1247
C122: Alliance, TX | D122: Expedited | E122: Trailer | F122: 92 | G122: 92 | H122: 92 | I122: 92 | J122: 92 | O122: SAN BERNARDINO | P122: CA | Q122: 880270 | R122: ALLIANCE | S122: TX | T122: 668100 | U122: 1485
C123: Alliance, TX | D123: Premium | E123: Container | F123: 108 | G123: 108 | H123: 108 | I123: 108 | J123: 108 | O123: SAN BERNARDINO | P123: CA | Q123: 880270 | R123: ALLIANCE | S123: TX | T123: 668100 | U123: 1485
C124: Houston, TX | D124: Premium | E124: Container | G124: 110 | I124: 110 | J124: 110 | O124: SAN BERNARDINO | P124: CA | Q124: 880270 | R124: ALLIANCE | S124: TX | T124: 668100 | U124: 1485
C125: Alliance, TX | D125: Premium | E125: Container | F125: 109 | G125: 109 | H125: 109 | I125: 109 | J125: 109 | K125: 109 | L125: 109 | M125: Restricted* | O125: STOCKTON | P125: CA | Q125: 875640 | R125: ALLIANCE | S125: TX | T125: 668100 | U125: 1779
C126: Houston, TX | D126: Premium | E126: Container | F126: 111 | G126: 111 | H126: 111 | I126: 111 | J126: 111 | K126: 111 | L126: 111 | M126: Restricted* | O126: STOCKTON | P126: CA | Q126: 875640 | R126: ALLIANCE | S126: TX | T126: 668100 | U126: 1779
D127: Premium | E127: Container | F127: 109 | G127: 109 | H127: 109 | I127: 109 | J127: 109 | K127: 109 | L127: 109 | M127: Restricted* | O127: STOCKTON | P127: CA | Q127: 875640 | R127: ALLIANCE | S127: TX | T127: 668100 | U127: 1779
D128: Premium | E128: Container | F128: 159 | G128: 135 | H128: 111 | I128: 111 | J128: 111 | K128: 111 | L128: 111 | M128: Restricted* | O128: STOCKTON | P128: CA | Q128: 875640 | R128: HOUSTON | S128: TX | T128: 684800 | U128: 1992
O129: TICTF | P129: CA | Q129: 883213 | R129: ALLIANCE | S129: TX | T129: 668100 | U129: 1588
O130: TICTF | P130: CA | Q130: 883213 | R130: HOUSTON | S130: TX | T130: 684800 | U130: 1801
O131: WEST BASIN | P131: CA | Q131: 883252 | R131: ALLIANCE | S131: TX | T131: 668100 | U131: 1588
O132: WEST BASIN | P132: CA | Q132: 883252 | R132: HOUSTON | S132: TX | T132: 684800 | U132: 1801

Sheet Maps (hidden)
I3: BNSF Terminals | U3: UP Terminals
I4: Alliance, TX | U4: Barbours Cut, TX
I5: Amarillo, TX | U5: Dallas (DIT, TX)
I6: Atlanta, GA | U6: Dallas (Mesquite, TX)
I7: Barbours Cut, TX | U7: El Paso (Alfalfa, TX)
I8: Birmingham, AL | U8: Englewood (Houston, TX)
I9: Chicago, IL | U9: Laredo (Port Laredo, TX)
I10: El Paso, TX | U10: Long Beach (ICTF, CA)
I11: Global Gateway So, CA | U11: Los Angeles (City Of Industry, CA)
I12: Houston, TX | U12: Los Angeles (LA, CA)
I13: La Harbor Apm Termi, CA | U13: Northern California (Oakland, CA)
I14: Long Beach A Pier, CA | U14: San Antonio (SAIT, TX)
I15: Long Beach CUT, CA | U15: Houston (Settegast, TX)
I16: Long Beach ITS, CA
I17: Long Beach J Pier, CA
I18: Long Beach LBC, CA
I19: Long Beach PCT, CA
I20: Long Beach T Pier, CA
I21: Los Angeles, CA
I22: Lubbock, TX
I23: Oakland Int Gateway, CA
I24: Phoenix, AZ
I25: San Bernardino, CA
I26: Stockton, CA
I27: Tictf, CA
I28: West Basin, CA
B30: BNSF Origin - Destination Matrix | C30: Distance | D30: Goal Hrs 0 | E30: Goal Hrs 1 | F30: Goal Hrs 2 | G30: Goal Hrs 3 | H30: Goal Hrs 4 | I30: Goal Hrs 5 | J30: Goal Hrs 6 | K30: Min Time | L30: Comments | M30: Speeds | Q30: UP Origin - Destination, | R30: Distance | S30: Hrs | T30: Equipment
B31: Alliance, TX - Chicago, IL | C31: 963 | D31: 58 | E31: 58 | F31: 58 | G31: 58 | H31: 58 | I31: 58 | K31: 58 | M31: =Table7[[#This Row],[Distance]]/Table7[[#This Row],[Min Time]] -> 16.60344828 | Q31: Barbours Cut (Houston, TX) - El Paso (Alfalfa, TX)
B32: Alliance, TX - Chicago, IL (Expedited) | C32: 963 | D32: 37 | E32: 37 | F32: 37 | G32: 38 | H32: 38 | I32: 40 | K32: =MIN(D32:J32) -> 37 | M32: =Table7[[#This Row],[Distance]]/Table7[[#This Row],[Min Time]] -> 26.02702703 | Q32: Barbours Cut (Houston, TX) - Englewood (Houston, TX) | T32: 133 | U32: 181
B33: Alliance, TX - Global Gateway So, CA | C33: 1521 | G33: 96 | K33: 96 | L33: Restricted* | M33: =Table7[[#This Row],[Distance]]/Table7[[#This Row],[Min Time]] -> 15.84375 | Q33: Barbours Cut (Houston, TX) - Los Angeles (ICTF, CA)
B34: Alliance, TX - Kansas City, KS | C34: 529 | E34: 30 | F34: 30 | G34: 30 | H34: 30 | I34: 30 | J34: 30 | K34: 30 | M34: =Table7[[#This Row],[Distance]]/Table7[[#This Row],[Min Time]] -> 17.63333333 | Q34: Barbours Cut (Houston, TX) - Northern California (Oakland, CA) | T34: 88
B35: Alliance, TX - La Harbor Apm Termi, CA | E35: 96 | H35: 96 | K35: 96 | L35: Restricted* | M35: =Table7[[#This Row],[Distance]]/Table7[[#This Row],[Min Time]] -> 0 | Q35: Dallas (DIT, TX) - Los Angeles (ICTF, CA)
B36: Alliance, TX - Long Beach A Pier, CA | C36: 1587 | I36: 96 | K36: 96 | L36: Restricted* | M36: =Table7[[#This Row],[Distance]]/Table7[[#This Row],[Min Time]] -> 16.53125 | Q36: Dallas (DIT, TX) - Northern California (Oakland, CA)
B37: Alliance, TX - Long Beach Its, CA | C37: 1587 | I37: 96 | K37: 96 | L37: Restricted* | M37: =Table7[[#This Row],[Distance]]/Table7[[#This Row],[Min Time]] -> 16.53125 | Q37: Dallas (Mesquite, TX) - Chicago (Yard Center, IL)
B38: Alliance, TX - Long Beach J Pier, CA | C38: 1588 | I38: 96 | K38: 96 | L38: Restricted* | M38: =Table7[[#This Row],[Distance]]/Table7[[#This Row],[Min Time]] -> 16.54166667 | Q38: Dallas (Mesquite, TX) - Los Angeles (Los Angeles, CA) | S38: 66
B39: Alliance, TX - Long Beach Lbc, CA | C39: 1587 | I39: 96 | K39: 96 | L39: Restricted* | M39: =Table7[[#This Row],[Distance]]/Table7[[#This Row],[Min Time]] -> 16.53125 | Q39: Dallas (Mesquite, TX) - Los Angeles (Los Angeles, CA) - SuperFlyer | S39: 57
B40: Alliance, TX - Long Beach Pct, CA | C40: 1588 | I40: 96 | K40: 96 | L40: Restricted* | M40: =Table7[[#This Row],[Distance]]/Table7[[#This Row],[Min Time]] -> 16.54166667 | Q40: Dallas (Mesquite, TX) - Los Angeles (Los Angeles, CA) - Expedited | S40: 62
B41: Alliance, TX - Long Beach T Pier, CA | C41: 1587 | I41: 96 | K41: 96 | L41: Restricted* | M41: =Table7[[#This Row],[Distance]]/Table7[[#This Row],[Min Time]] -> 16.53125 | Q41: Dallas (Mesquite, TX) - Memphis (Marion, AR)
B42: Alliance, TX - Los Angeles, CA | C42: 1545 | D42: 92 | E42: 92 | F42: 92 | G42: 92 | H42: 92 | I42: 92 | K42: 92 | M42: =Table7[[#This Row],[Distance]]/Table7[[#This Row],[Min Time]] -> 16.79347826 | Q42: Dallas (Mesquite, TX) - Portland (Albina, OR)
B43: Alliance, TX - Oakland Int Gateway, CA | C43: 1861 | F43: 114 | I43: 114 | K43: 114 | L43: Restricted* | M43: =Table7[[#This Row],[Distance]]/Table7[[#This Row],[Min Time]] -> 16.3245614 | Q43: Dallas (Mesquite, TX) - Seattle (Seattle, WA)
B44: Alliance, TX - Phoenix, AZ | C44: 1247 | D44: 83 | E44: 83 | F44: 83 | G44: 83 | H44: 83 | I44: 83 | K44: 83 | M44: =Table7[[#This Row],[Distance]]/Table7[[#This Row],[Min Time]] -> 15.02409639 | Q44: Dallas (Mesquite, TX) - St. Louis (Dupo, IL)
B45: Alliance, TX - San Bernardino, CA | C45: 1485 | D45: 86 | E45: 86 | F45: 86 | G45: 86 | H45: 86 | I45: 86 | K45: 86 | M45: =Table7[[#This Row],[Distance]]/Table7[[#This Row],[Min Time]] -> 17.26744186 | Q45: El Paso (Alfalfa, TX) - Chicago (Chicanup, IL)
B46: Alliance, TX - San Bernardino, CA (Expedited) | C46: 1485 | D46: 60 | E46: 60 | F46: 60 | G46: 60 | H46: 60 | I46: 60 | J46: 60 | K46: 60 | M46: =Table7[[#This Row],[Distance]]/Table7[[#This Row],[Min Time]] -> 24.75 | Q46: El Paso (Alfalfa, TX) - Englewood (Houston, TX) | S46: 105 | T46: 163
B47: Alliance, TX - Stockton, CA | C47: 1779 | D47: 108 | E47: 108 | F47: 108 | G47: 108 | H47: 108 | I47: 108 | K47: 108 | M47: =Table7[[#This Row],[Distance]]/Table7[[#This Row],[Min Time]] -> 16.47222222 | Q47: El Paso (Alfalfa, TX) - Los Angeles (ICTF, CA) | S47: 66
B48: Alliance, TX - Stockton, CA (Expedited) | C48: 1779 | D48: 74 | E48: 74 | F48: 74 | G48: 74 | H48: 74 | I48: 74 | K48: 74 | M48: =Table7[[#This Row],[Distance]]/Table7[[#This Row],[Min Time]] -> 24.04054054 | Q48: El Paso (Alfalfa, TX) - Northern California (Oakland, CA)
B49: Alliance, TX - TICTF, CA | C49: 1588 | F49: 96 | K49: 96 | L49: Restricted* | M49: =Table7[[#This Row],[Distance]]/Table7[[#This Row],[Min Time]] -> 16.54166667 | Q49: Englewood (Houston, TX) - Laredo (Port Laredo, TX)
B50: Alliance, TX - West Basin, CA | C50: 1588 | D50: 96 | K50: 96 | L50: Restricted* | M50: =Table7[[#This Row],[Distance]]/Table7[[#This Row],[Min Time]] -> 16.54166667 | Q50: Englewood (Houston, TX) - Barbours Cut (Houston, TX)
B51: Amarillo, TX - Global Gateway So, CA | C51: 1192 | D51: 163 | E51: 163 | F51: 163 | G51: 163 | H51: 163 | I51: 163 | K51: 163 | L51: Restricted* | M51: =Table7[[#This Row],[Distance]]/Table7[[#This Row],[Min Time]] -> 7.312883436 | Q51: Englewood (Houston, TX) - Los Angeles (ICTF, CA)
B52: Amarillo, TX - Oakland Int Gateway, CA | C52: 1532 | D52: 143 | E52: 143 | F52: 143 | G52: 143 | H52: 143 | I52: 143 | K52: 143 | L52: Restricted* | M52: =Table7[[#This Row],[Distance]]/Table7[[#This Row],[Min Time]] -> 10.71328671 | Q52: Englewood (Houston, TX) - Northern California (Oakland, CA) | S52: 139 | T52: 113 | U52: 89
B53: Amarillo, TX - TICTF, CA | C53: 1259 | D53: 163 | E53: 163 | F53: 163 | G53: 163 | H53: 163 | I53: 163 | K53: 163 | L53: Restricted* | M53: =Table7[[#This Row],[Distance]]/Table7[[#This Row],[Min Time]] -> 7.72392638 | Q53: Laredo (Port Laredo, TX) - Chicago (Yard Center, IL) | S53: 82
B54: Atlanta, GA - Global Gateway So, CA | C54: 2543 | D54: 165 | I54: 165 | K54: 165 | L54: Restricted* | M54: =Table7[[#This Row],[Distance]]/Table7[[#This Row],[Min Time]] -> 15.41212121 | Q54: Laredo (Port Laredo, TX) - Englewood (Houston, TX) | T54: 184
B55: Atlanta, GA - La Harbor Apm Termi, CA | F55: 165 | I55: 165 | K55: 165 | L55: Restricted* | M55: =Table7[[#This Row],[Distance]]/Table7[[#This Row],[Min Time]] -> 0 | Q55: Laredo (Port Laredo, TX) - Los Angeles (City Of Industry, CA) | S55: 110
B56: Atlanta, GA - La Harbor Apm Termi, CA | H56: 113 | K56: 113 | L56: Restricted* | M56: =Table7[[#This Row],[Distance]]/Table7[[#This Row],[Min Time]] -> 0 | Q56: Laredo (Port Laredo, TX) - Los Angeles (ICTF, CA) | S56: 86
B57: Atlanta, GA - Los Angeles, CA | C57: 1781 | H57: 117 | K57: 117 | L57: Restricted* | M57: =Table7[[#This Row],[Distance]]/Table7[[#This Row],[Min Time]] -> 15.22222222 | Q57: Laredo (Port Laredo, TX) - Los Angeles (Los Angeles, CA) | S57: 110 | T57: 88
B58: Atlanta, GA - Los Angeles, CA | C58: 2567 | D58: 113 | E58: 113 | F58: 113 | G58: 113 | H58: 113 | I58: 113 | K58: 113 | M58: =Table7[[#This Row],[Distance]]/Table7[[#This Row],[Min Time]] -> 22.71681416 | Q58: Laredo (Port Laredo, TX) - St. Louis (Dupo, IL) | S58: 70
B59: Atlanta, GA - Oakland Int Gateway, CA | C59: 2097 | H59: 141 | K59: 141 | L59: Restricted* | M59: =Table7[[#This Row],[Distance]]/Table7[[#This Row],[Min Time]] -> 14.87234043 | Q59: Long Beach (ICTF, CA) - Barbours Cut (Houston, TX) | S59: 95 | T59: 110 | U59: 140
B60: Atlanta, GA - Oakland Int Gateway, CA | C60: 2883 | F60: 161 | K60: 161 | L60: Restricted* | M60: =Table7[[#This Row],[Distance]]/Table7[[#This Row],[Min Time]] -> 17.9068323 | Q60: Long Beach (ICTF, CA) - Chicago (Global 2, IL) | S60: 104
B61: Atlanta, GA - Stockton, CA | C61: 2801 | D61: 137 | E61: 137 | G61: 137 | I61: 137 | K61: 137 | M61: =Table7[[#This Row],[Distance]]/Table7[[#This Row],[Min Time]] -> 20.44525547 | Q61: Long Beach (ICTF, CA) - Chicago (Global 3, IL) | S61: 104 | T61: 118
B62: Birmingham, AL - Global Gateway So, CA | C62: 2305 | E62: 163 | I62: 163 | K62: 163 | L62: Restricted* | M62: =Table7[[#This Row],[Distance]]/Table7[[#This Row],[Min Time]] -> 14.14110429 | Q62: Long Beach (ICTF, CA) - Dallas (DIT, TX) | S62: 73
B63: Birmingham, AL - Long Beach A Pier, CA | C63: 2371 | E63: 163 | I63: 163 | K63: 163 | L63: Restricted* | M63: =Table7[[#This Row],[Distance]]/Table7[[#This Row],[Min Time]] -> 14.54601227 | Q63: Long Beach (ICTF, CA) - Denver (Denver, CO) | S63: 74
B64: Birmingham, AL - Long Beach J Pier, CA | C64: 2372 | E64: 163 | I64: 163 | K64: 163 | L64: Restricted* | M64: =Table7[[#This Row],[Distance]]/Table7[[#This Row],[Min Time]] -> 14.55214724 | Q64: Long Beach (ICTF, CA) - El Paso (Alfalfa, TX) | S64: 61
B65: Birmingham, AL - Los Angeles, CA | C65: 2329 | E65: 139 | G65: 139 | I65: 139 | K65: 139 | M65: =Table7[[#This Row],[Distance]]/Table7[[#This Row],[Min Time]] -> 16.75539568 | Q65: Long Beach (ICTF, CA) - Englewood (Houston, TX) | S65: 93
B66: Birmingham, AL - Oakland Int Gateway, CA | C66: 2645 | E66: 163 | I66: 163 | K66: 163 | L66: Restricted* | M66: =Table7[[#This Row],[Distance]]/Table7[[#This Row],[Min Time]] -> 16.22699387 | Q66: Long Beach (ICTF, CA) - Laredo (Port Laredo, TX) | S66: 119
B67: Birmingham, AL - Stockton, CA | C67: 2563 | E67: 159 | I67: 159 | K67: 159 | M67: =Table7[[#This Row],[Distance]]/Table7[[#This Row],[Min Time]] -> 16.11949686 | Q67: Long Beach (ICTF, CA) - Los Angeles (LA, CA)
B68: Birmingham, AL - TICTF, CA | C68: 2372 | I68: 163 | K68: 163 | L68: Restricted* | M68: =Table7[[#This Row],[Distance]]/Table7[[#This Row],[Min Time]] -> 14.55214724 | Q68: Long Beach (ICTF, CA) - Memphis (Marion, AR) | S68: 106
B69: Birmingham, AL - West Basin, CA | C69: 2372 | E69: 163 | I69: 163 | K69: 163 | L69: Restricted* | M69: =Table7[[#This Row],[Distance]]/Table7[[#This Row],[Min Time]] -> 14.55214724 | Q69: Long Beach (ICTF, CA) - New Orleans (Avondale, LA) | S69: 109
B70: Chicago, IL - Alliance, TX | C70: 963 | D70: 44 | E70: 44 | F70: 44 | G70: 44 | H70: 44 | I70: 44 | J70: 47 | K70: 44 | M70: =Table7[[#This Row],[Distance]]/Table7[[#This Row],[Min Time]] -> 21.88636364 | Q70: Long Beach (ICTF, CA) - Northern California (Oakland, CA) | S70: 51
B71: Chicago, IL - Alliance, TX (Expedited) | C71: 963 | D71: 40 | E71: 40 | F71: 40 | G71: 40 | H71: 43 | I71: 43 | J71: 43 | K71: 40 | M71: =Table7[[#This Row],[Distance]]/Table7[[#This Row],[Min Time]] -> 24.075 | Q71: Long Beach (ICTF, CA) - Omaha (Council Bluffs, IA) | S71: 121
B72: Chicago, IL - Denver, CO | C72: 1009 | E72: 60 | G72: 60 | J72: 60 | K72: 60 | M72: =Table7[[#This Row],[Distance]]/Table7[[#This Row],[Min Time]] -> 16.81666667 | Q72: Long Beach (ICTF, CA) - Salt Lake City (SLCIT, UT) | S72: 50
B73: Chicago, IL - Denver, CO (Expedited) | C73: 1009 | D73: 40 | E73: 40 | F73: 40 | G73: 40 | H73: 40 | I73: 40 | J73: 40 | K73: 40 | M73: =Table7[[#This Row],[Distance]]/Table7[[#This Row],[Min Time]] -> 25.225 | Q73: Long Beach (ICTF, CA) - San Antonio (SAIT, TX) | S73: 73
B74: Chicago, IL - Dilworth, MN | C74: 672 | D74: 39 | E74: 39 | F74: 39 | G74: 87 | H74: 63 | I74: 39 | J74: 39 | K74: 39 | L74: Restricted* | M74: =Table7[[#This Row],[Distance]]/Table7[[#This Row],[Min Time]] -> 17.23076923 | Q74: Los Angeles (City Of Industry, CA) - Chicago (Global 1, IL) | S74: 88
B75: Chicago, IL - El Paso, TX | C75: 1367 | G75: 144 | I75: 144 | K75: 144 | L75: Restricted* | M75: =Table7[[#This Row],[Distance]]/Table7[[#This Row],[Min Time]] -> 9.493055556 | Q75: Los Angeles (City Of Industry, CA) - Chicago (Global 1, IL) - Expedited | S75: 84
B76: Chicago, IL - Fresno, CA | C76: 2234 | F76: 133 | G76: 133 | H76: 133 | I76: 133 | K76: 133 | M76: =Table7[[#This Row],[Distance]]/Table7[[#This Row],[Min Time]] -> 16.79699248 | Q76: Los Angeles (City Of Industry, CA) - Chicago (Global 1, IL) - SuperFlyer | S76: 82
B77: Chicago, IL - Global Gateway So, CA | C77: 2096 | D77: 158 | K77: 158 | L77: Restricted* | M77: =Table7[[#This Row],[Distance]]/Table7[[#This Row],[Min Time]] -> 13.26582278 | Q77: Los Angeles (City Of Industry, CA) - Laredo (Port Laredo, TX) | S77: 82
B78: Chicago, IL - Houston, TX | C78: 1183 | D78: 72 | F78: 72 | H78: 72 | K78: 72 | M78: =Table7[[#This Row],[Distance]]/Table7[[#This Row],[Min Time]] -> 16.43055556 | Q78: Los Angeles (City Of Industry, CA) - Settegast (Houston, TX) | S78: 82
B79: Chicago, IL - Kansas City, KS | C79: 434 | D79: 54 | E79: 54 | F79: 54 | G79: 54 | H79: 54 | I79: 54 | K79: 54 | M79: =Table7[[#This Row],[Distance]]/Table7[[#This Row],[Min Time]] -> 8.037037037 | Q79: Los Angeles (LA, CA) - Chicago (Global 1, IL) | S79: 104
B80: Chicago, IL - La Harbor Apm Termi, CA | C80: 2163 | F80: 146 | H80: 146 | J80: 146 | K80: 146 | L80: Restricted* | M80: =Table7[[#This Row],[Distance]]/Table7[[#This Row],[Min Time]] -> 14.81506849 | Q80: Los Angeles (LA, CA) - Chicago (Global 3, IL) | S80: 106
B81: Chicago, IL - Long Beach A Pier, CA | C81: 2162 | D81: 161 | F81: 161 | I81: 161 | K81: 161 | L81: Restricted* | M81: =Table7[[#This Row],[Distance]]/Table7[[#This Row],[Min Time]] -> 13.42857143 | Q81: Los Angeles (LA, CA) - Dallas (Mesquite, TX) | S81: 80
B82: Chicago, IL - Long Beach J Pier, CA | C82: 2163 | D82: 161 | F82: 161 | H82: 161 | K82: 161 | L82: Restricted* | M82: =Table7[[#This Row],[Distance]]/Table7[[#This Row],[Min Time]] -> 13.43478261 | Q82: Los Angeles (LA, CA) - Dallas (Mesquite, TX) - Expedited | S82: 56
B83: El Paso, TX - Chicago, IL | C83: 1367 | D83: 128 | F83: 128 | H83: 128 | J83: 128 | K83: 128 | L83: Restricted* | M83: =Table7[[#This Row],[Distance]]/Table7[[#This Row],[Min Time]] -> 10.6796875 | Q83: Los Angeles (LA, CA) - Dallas (Mesquite, TX) - SuperFlyer | S83: 55
B84: El Paso, TX - Los Angeles, CA | C84: 1096 | E84: 123 | I84: 123 | K84: 123 | L84: Restricted* | M84: =Table7[[#This Row],[Distance]]/Table7[[#This Row],[Min Time]] -> 8.910569106 | Q84: Los Angeles (LA, CA) - Denver (Denver, CO) | S84: 56
B85: Global Gateway So, CA - Alliance, TX | C85: 1521 | D85: 109 | E85: 109 | F85: 109 | G85: 109 | H85: 109 | I85: 109 | J85: 109 | K85: 109 | L85: Restricted* | M85: =Table7[[#This Row],[Distance]]/Table7[[#This Row],[Min Time]] -> 13.95412844 | Q85: Los Angeles (LA, CA) - Denver (Denver, CO) - Expedited | S85: 55
B86: Global Gateway So, CA - Houston, TX | C86: 1734 | D86: 111 | E86: 111 | F86: 111 | G86: 111 | H86: 111 | I86: 111 | J86: 111 | K86: 111 | L86: Restricted* | M86: =Table7[[#This Row],[Distance]]/Table7[[#This Row],[Min Time]] -> 15.62162162 | Q86: Los Angeles (LA, CA) - Denver (Denver, CO) - SuperFlyer | S86: 54
B87: Houston, TX - Chicago, IL | C87: 1183 | D87: 72 | F87: 72 | H87: 72 | K87: 72 | M87: =Table7[[#This Row],[Distance]]/Table7[[#This Row],[Min Time]] -> 16.43055556 | Q87: Los Angeles (LA, CA) - Kansas City (Kansas City, MO) | S87: 84
B88: Houston, TX - Global Gateway So, CA | C88: 1734 | D88: 136 | F88: 136 | I88: 136 | K88: 136 | L88: Restricted* | M88: =Table7[[#This Row],[Distance]]/Table7[[#This Row],[Min Time]] -> 12.75 | Q88: Los Angeles (LA, CA) - Laredo (Port Laredo, TX) | S88: 127
B89: Houston, TX - La Harbor Apm Termi, CA | D89: 136 | F89: 136 | I89: 136 | K89: 136 | L89: Restricted* | M89: =Table7[[#This Row],[Distance]]/Table7[[#This Row],[Min Time]] -> 0 | Q89: Los Angeles (LA, CA) - Memphis (Marion, AR) | S89: 106
B90: Houston, TX - Long Beach A Pier, CA | C90: 1800 | D90: 136 | F90: 136 | I90: 136 | K90: 136 | L90: Restricted* | M90: =Table7[[#This Row],[Distance]]/Table7[[#This Row],[Min Time]] -> 13.23529412 | Q90: Los Angeles (LA, CA) - Memphis (Marion, AR) - Expedited | S90: 80
B91: Houston, TX - Long Beach Its, CA | C91: 1800 | D91: 136 | F91: 136 | I91: 136 | K91: 136 | L91: Restricted* | M91: =Table7[[#This Row],[Distance]]/Table7[[#This Row],[Min Time]] -> 13.23529412 | Q91: Los Angeles (LA, CA) - Memphis (Marion, AR) - SuperFlyer | S91: 77
B92: Houston, TX - Long Beach J Pier, CA | C92: 1801 | D92: 136 | F92: 136 | I92: 136 | K92: 136 | L92: Restricted* | M92: =Table7[[#This Row],[Distance]]/Table7[[#This Row],[Min Time]] -> 13.24264706 | Q92: Los Angeles (LA, CA) - Northern California (Oakland, CA)
B93: Houston, TX - Long Beach Pct, CA | C93: 1801 | D93: 136 | F93: 136 | I93: 136 | K93: 136 | L93: Restricted* | M93: =Table7[[#This Row],[Distance]]/Table7[[#This Row],[Min Time]] -> 13.24264706 | Q93: Los Angeles (LA, CA) - Salt Lake City (SLCIT, UT) | S93: 54
B94: Houston, TX - Long Beach T Pier, CA | C94: 1800 | D94: 136 | F94: 136 | I94: 136 | K94: 136 | L94: Restricted* | M94: =Table7[[#This Row],[Distance]]/Table7[[#This Row],[Min Time]] -> 13.23529412 | Q94: Los Angeles (LA, CA) - Salt Lake City (SLCIT, UT) - Expedited | S94: 32
B95: Houston, TX - Los Angeles, CA | C95: 1758 | E95: 92 | G95: 92 | H95: 92 | K95: 92 | M95: =Table7[[#This Row],[Distance]]/Table7[[#This Row],[Min Time]] -> 19.10869565 | Q95: Los Angeles (LA, CA) - Salt Lake City (SLCIT, UT) - SuperFlyer | S95: 32
B96: Houston, TX - Oakland Int Gateway, CA | C96: 2074 | D96: 140 | F96: 140 | I96: 140 | K96: 140 | L96: Restricted* | M96: =Table7[[#This Row],[Distance]]/Table7[[#This Row],[Min Time]] -> 14.81428571 | Q96: Los Angeles (LA, CA) - San Antonio (SAIT, TX) | S96: 79
B97: Houston, TX - Stockton, CA | C97: 1992 | D97: 136 | F97: 136 | I97: 136 | K97: 136 | M97: =Table7[[#This Row],[Distance]]/Table7[[#This Row],[Min Time]] -> 14.64705882 | Q97: Los Angeles (LA, CA) - Settegast (Houston, TX) | S97: 103
B98: Houston, TX - TICTF, CA | C98: 1801 | D98: 136 | F98: 136 | I98: 136 | K98: 136 | L98: Restricted* | M98: =Table7[[#This Row],[Distance]]/Table7[[#This Row],[Min Time]] -> 13.24264706 | Q98: Los Angeles (LA, CA) - St. Louis (Dupo, IL) | S98: 94
B99: Houston, TX - West Basin, CA | C99: 1801 | D99: 136 | F99: 136 | I99: 136 | K99: 136 | L99: Restricted* | M99: =Table7[[#This Row],[Distance]]/Table7[[#This Row],[Min Time]] -> 13.24264706 | Q99: Northern California (Oakland, CA) - Dallas (DIT, TX) | S99: 134
B100: La Harbor APM Termi, CA - Alliance, TX | C100: 1588 | D100: 109 | E100: 109 | F100: 109 | G100: 109 | H100: 109 | I100: 109 | J100: 109 | K100: 109 | L100: Restricted* | M100: =Table7[[#This Row],[Distance]]/Table7[[#This Row],[Min Time]] -> 14.56880734 | Q100: Northern California (Oakland, CA) - El Paso (Alfalfa, TX)
B101: La Harbor APM Termi, CA - Barbours Cut, TX | C101: 1824 | D101: 149 | H101: 135 | K101: 135 | L101: Restricted* | M101: =Table7[[#This Row],[Distance]]/Table7[[#This Row],[Min Time]] -> 13.51111111 | Q101: Northern California (Oakland, CA) - Englewood (Houston, TX) | S101: 149
B102: La Harbor APM Termi, CA - Houston, TX | C102: 1801 | D102: 111 | E102: 111 | F102: 111 | G102: 111 | H102: 111 | I102: 111 | J102: 111 | K102: 111 | L102: Restricted* | M102: =Table7[[#This Row],[Distance]]/Table7[[#This Row],[Min Time]] -> 16.22522523 | Q102: San Antonio (SAIT, TX) - Chicago (Yard Center, IL) | S102: 80
B103: Long Beach A Pier, CA - Alliance, TX | C103: 1587 | D103: 109 | E103: 109 | F103: 109 | G103: 109 | H103: 109 | I103: 109 | J103: 109 | K103: 109 | L103: Restricted* | M103: =Table7[[#This Row],[Distance]]/Table7[[#This Row],[Min Time]] -> 14.55963303 | Q103: San Antonio (SAIT, TX) - Los Angeles (City Of Industry, CA) | S103: 87
B104: Long Beach A Pier, CA - Barbours Cut, TX | C104: 1823 | D104: 149 | H104: 135 | K104: 135 | L104: Restricted* | M104: =Table7[[#This Row],[Distance]]/Table7[[#This Row],[Min Time]] -> 13.5037037 | Q104: San Antonio (SAIT, TX) - Long Beach (ICTF, CA) | S104: 86
B105: Long Beach A Pier, CA - Houston, TX | C105: 1800 | D105: 111 | E105: 111 | F105: 111 | G105: 111 | H105: 111 | I105: 111 | J105: 111 | K105: 111 | L105: Restricted* | M105: =Table7[[#This Row],[Distance]]/Table7[[#This Row],[Min Time]] -> 16.21621622 | Q105: San Antonio (SAIT, TX) - Los Angeles (Los Angeles, CA) | S105: 87
B106: Long Beach CUT, CA - Alliance, TX | C106: 1524 | D106: 109 | E106: 109 | F106: 109 | G106: 109 | H106: 109 | I106: 109 | J106: 109 | K106: 109 | L106: Restricted* | M106: =Table7[[#This Row],[Distance]]/Table7[[#This Row],[Min Time]] -> 13.98165138 | Q106: Settegast (Houston, TX) - Chicago (Yard Center, IL) | S106: 67
B107: Long Beach CUT, CA - Houston, TX | C107: 1737 | D107: 111 | E107: 111 | F107: 111 | G107: 111 | H107: 111 | I107: 111 | J107: 111 | K107: 111 | L107: Restricted* | M107: =Table7[[#This Row],[Distance]]/Table7[[#This Row],[Min Time]] -> 15.64864865 | Q107: Settegast (Houston, TX) - Denver (Denver, CO) | S107: 160
B108: Long Beach ITS, CA - Alliance, TX | C108: 1587 | D108: 109 | E108: 109 | F108: 109 | G108: 109 | H108: 109 | I108: 109 | J108: 109 | K108: 109 | L108: Restricted* | M108: =Table7[[#This Row],[Distance]]/Table7[[#This Row],[Min Time]] -> 14.55963303 | Q108: Settegast (Houston, TX) - El Paso (Alfalfa, TX) | S108: 63
B109: Long Beach ITS, CA - Houston, TX | C109: 1800 | D109: 111 | E109: 111 | F109: 111 | G109: 111 | H109: 111 | I109: 111 | J109: 111 | K109: 111 | L109: Restricted* | M109: =Table7[[#This Row],[Distance]]/Table7[[#This Row],[Min Time]] -> 16.21621622 | Q109: Settegast (Houston, TX) - Los Angeles (City Of Industry, CA) | S109: 109
B110: Long Beach J Pier, CA - Alliance, TX | C110: 1588 | D110: 109 | E110: 109 | F110: 109 | G110: 109 | H110: 109 | I110: 109 | J110: 109 | K110: 109 | L110: Restricted* | M110: =Table7[[#This Row],[Distance]]/Table7[[#This Row],[Min Time]] -> 14.56880734 | Q110: Settegast (Houston, TX) - Los Angeles (Los Angeles, CA) | S110: 109
B111: Long Beach J Pier, CA - Houston, TX | C111: 1801 | D111: 111 | E111: 111 | F111: 111 | G111: 111 | H111: 111 | I111: 111 | J111: 111 | K111: 111 | L111: Restricted* | M111: =Table7[[#This Row],[Distance]]/Table7[[#This Row],[Min Time]] -> 16.22522523 | Q111: Settegast (Houston, TX) - Memphis (Marion, AR) | S111: 65
B112: Long Beach LBC, CA - Alliance, TX | C112: 1587 | D112: 109 | E112: 109 | F112: 109 | G112: 109 | H112: 109 | I112: 109 | J112: 109 | K112: 109 | L112: Restricted* | M112: =Table7[[#This Row],[Distance]]/Table7[[#This Row],[Min Time]] -> 14.55963303 | Q112: Settegast (Houston, TX) - Portland (Albina, OR) | S112: 161
B113: Long Beach LBC, CA - Houston, TX | C113: 1800 | D113: 111 | E113: 111 | F113: 111 | G113: 111 | H113: 111 | I113: 111 | J113: 111 | K113: 111 | L113: Restricted* | M113: =Table7[[#This Row],[Distance]]/Table7[[#This Row],[Min Time]] -> 16.21621622 | Q113: Settegast (Houston, TX) - Salt Lake City (SLCIT, UT) | S113: 136
B114: Long Beach PCT, CA - Alliance, TX | C114: 1588 | D114: 109 | E114: 109 | F114: 109 | G114: 109 | H114: 109 | I114: 109 | J114: 109 | K114: 109 | L114: Restricted* | M114: =Table7[[#This Row],[Distance]]/Table7[[#This Row],[Min Time]] -> 14.56880734 | Q114: Settegast (Houston, TX) - Seattle (Seattle, WA) | S114: 161
B115: Long Beach PCT, CA - Houston, TX | C115: 1801 | D115: 111 | E115: 111 | F115: 111 | G115: 111 | H115: 111 | I115: 111 | J115: 111 | K115: 111 | L115: Restricted* | M115: =Table7[[#This Row],[Distance]]/Table7[[#This Row],[Min Time]] -> 16.22522523 | Q115: Settegast (Houston, TX) - St. Louis (Dupo, IL) | S115: 49
B116: Long Beach T Pier, CA - Alliance, TX | C116: 1587 | D116: 109 | E116: 109 | F116: 109 | G116: 109 | H116: 109 | I116: 109 | J116: 109 | K116: 109 | L116: Restricted* | M116: =Table7[[#This Row],[Distance]]/Table7[[#This Row],[Min Time]] -> 14.55963303
B117: Long Beach T Pier, CA - Houston, TX | C117: 1800 | D117: 111 | E117: 111 | F117: 111 | G117: 111 | H117: 111 | I117: 111 | J117: 111 | K117: 111 | L117: Restricted* | M117: =Table7[[#This Row],[Distance]]/Table7[[#This Row],[Min Time]] -> 16.21621622
B118: Los Angeles, CA - Alliance, TX | C118: 1545 | D118: 79 | E118: 79 | F118: 79 | G118: 79 | H118: 79 | I118: 79 | K118: 79 | M118: =Table7[[#This Row],[Distance]]/Table7[[#This Row],[Min Time]] -> 19.55696203
B119: Los Angeles, CA - El Paso, TX | C119: 1096 | E119: 154 | G119: 154 | I119: 154 | K119: 154 | L119: Restricted* | M119: =Table7[[#This Row],[Distance]]/Table7[[#This Row],[Min Time]] -> 7.116883117
B120: Los Angeles, CA - Houston, TX | C120: 1758 | E120: 105 | G120: 105 | I120: 105 | K120: 105 | M120: =Table7[[#This Row],[Distance]]/Table7[[#This Row],[Min Time]] -> 16.74285714
B121: Lubbock, TX - Global Gateway So, CA | C121: 1189 | D121: 164 | H121: 164 | K121: 164 | L121: Restricted* | M121: =Table7[[#This Row],[Distance]]/Table7[[#This Row],[Min Time]] -> 7.25
B122: Lubbock, TX - Long Beach A Pier, CA | C122: 1255 | D122: 164 | H122: 164 | K122: 164 | L122: Restricted* | M122: =Table7[[#This Row],[Distance]]/Table7[[#This Row],[Min Time]] -> 7.652439024 | Q122: UP Notes and Information.
B123: Lubbock, TX - Los Angeles, CA | C123: 1213 | D123: 140 | H123: 140 | K123: 140 | L123: Restricted* | M123: =Table7[[#This Row],[Distance]]/Table7[[#This Row],[Min Time]] -> 8.664285714
B124: Lubbock, TX - Oakland Int Gateway, CA | C124: 1529 | D124: 144 | H124: 144 | K124: 144 | L124: Restricted* | M124: =Table7[[#This Row],[Distance]]/Table7[[#This Row],[Min Time]] -> 10.61805556 | Q124: 1. 90th Percentile Hrs represents the hours from cutoff to availability in which 90% of the units arrived by during the past 60 days. At terminals utilizing the Gate Reservation System, cutoff is based on the associated gate reservation.
B125: Lubbock, TX - TICTF CA | C125: 1256 | D125: 164 | H125: 164 | K125: 164 | L125: Restricted* | M125: =Table7[[#This Row],[Distance]]/Table7[[#This Row],[Min Time]] -> 7.658536585 | Q125: 2. Holiday schedules and times may vary.
B126: Lubbock, TX - West Basin, CA | C126: 1256 | D126: 164 | H126: 164 | K126: 164 | L126: Restricted* | M126: =Table7[[#This Row],[Distance]]/Table7[[#This Row],[Min Time]] -> 7.658536585 | Q126: 3. Scheduled Available Time also referred to as Van Grounding Time.
B127: Oakland Int Gateway, CA - Alliance, TX | C127: 1861 | E127: 109 | I127: 109 | K127: 109 | L127: Restricted* | M127: =Table7[[#This Row],[Distance]]/Table7[[#This Row],[Min Time]] -> 17.0733945 | Q127: 4. View Union Pacific's Highest Elevation Map for Intermodal Customers.
B128: Oakland Int Gateway, CA - Barbours Cut, TX | C128: 2097 | I128: 159 | K128: 159 | L128: Restricted* | M128: =Table7[[#This Row],[Distance]]/Table7[[#This Row],[Min Time]] -> 13.18867925 | Q128: 5. Ramp Service Matrix.
B129: Oakland Int Gateway, CA - Houston, TX | C129: 2074 | E129: 135 | I129: 135 | K129: 135 | L129: Restricted* | M129: =Table7[[#This Row],[Distance]]/Table7[[#This Row],[Min Time]] -> 15.36296296
B130: Phoenix, AZ - Alliance, TX | C130: 1247 | H130: 83 | K130: 83 | M130: =Table7[[#This Row],[Distance]]/Table7[[#This Row],[Min Time]] -> 15.02409639
B131: San Bernardino, CA - Alliance, TX | C131: 1485 | D131: 81 | E131: 81 | F131: 81 | G131: 81 | H131: 81 | I131: 81 | K131: 81 | M131: =Table7[[#This Row],[Distance]]/Table7[[#This Row],[Min Time]] -> 18.33333333
B132: San Bernardino, CA - Alliance, TX (Expedited) | C132: 1485 | D132: 59 | E132: 59 | F132: 57 | G132: 57 | H132: 57 | I132: 57 | K132: 57 | M132: =Table7[[#This Row],[Distance]]/Table7[[#This Row],[Min Time]] -> 26.05263158
B133: Stockton, CA - Alliance, TX | C133: 1779 | D133: 108 | E133: 108 | F133: 108 | G133: 108 | H133: 108 | K133: 108 | M133: =Table7[[#This Row],[Distance]]/Table7[[#This Row],[Min Time]] -> 16.47222222
B134: Stockton, CA - Alliance, TX (Expedited) | C134: 1779 | D134: 92 | E134: 92 | F134: 92 | G134: 92 | H134: 92 | K134: 92 | M134: =Table7[[#This Row],[Distance]]/Table7[[#This Row],[Min Time]] -> 19.33695652
B135: Stockton, CA - Houston, TX | C135: 1992 | E135: 110 | G135: 110 | H135: 110 | K135: 110 | M135: =Table7[[#This Row],[Distance]]/Table7[[#This Row],[Min Time]] -> 18.10909091
B136: TICTF, CA - Alliance, TX | C136: 1588 | D136: 109 | E136: 109 | F136: 109 | G136: 109 | H136: 109 | I136: 109 | J136: 109 | K136: 109 | L136: Restricted* | M136: =Table7[[#This Row],[Distance]]/Table7[[#This Row],[Min Time]] -> 14.56880734
B137: TICTF, CA - Houston, TX | C137: 1801 | D137: 111 | E137: 111 | F137: 111 | G137: 111 | H137: 111 | I137: 111 | J137: 111 | K137: 111 | L137: Restricted* | M137: =Table7[[#This Row],[Distance]]/Table7[[#This Row],[Min Time]] -> 16.22522523
B138: West Basin, CA - Alliance, TX | C138: 1588 | D138: 109 | E138: 109 | F138: 109 | G138: 109 | H138: 109 | I138: 109 | J138: 109 | K138: 109 | L138: Restricted* | M138: =Table7[[#This Row],[Distance]]/Table7[[#This Row],[Min Time]] -> 14.56880734
B139: West Basin, CA - Houston, TX | C139: 1801 | D139: 159 | E139: 135 | F139: 111 | G139: 111 | H139: 111 | I139: 111 | J139: 111 | K139: 111 | L139: Restricted* | M139: =Table7[[#This Row],[Distance]]/Table7[[#This Row],[Min Time]] -> 16.22522523
B142: Restricted* = Available to International Contract Holders only

Sheet Routes (hidden)
B3: Union Pacific | R3: Resources
C4: Barbours Cut, TX | D4: Dallas (DIT, TX) | E4: Dallas (Mesquite, TX) | F4: El Paso (Alfalfa, TX) | G4: Englewood (Houston, TX) | H4: Laredo (Port Laredo, TX) | I4: Long Beach (ICTF, CA) | J4: Los Angeles (City Of Industry, CA) | K4: Los Angeles (LA, CA) | L4: Northern California (Oakland, CA) | M4: San Antonio (SAIT, TX) | N4: Houston (Settegast, TX) | R4: http://www.bnsf.com/markets/intermodal/pdf/small_Intermodal_map_2009.pdf
B5: Barbours Cut, TX | C5: 0 | D5: 290 | E5: 301 | F5: 833 | G5: 26 | H5: 384 | I5: 1671 | J5: 1641 | K5: 1656 | L5: 2086 | M5: 229 | N5: 24 | R5: http://www.uprr.com/customers/intermodal/intmap/index.shtml
B6: Dallas (DIT, TX) | C6: 290 | D6: 0 | E6: 15 | F6: 642 | G6: 266 | H6: 442 | I6: 1466 | J6: 1450 | K6: 1466 | L6: 1896 | M6: 290 | N6: 265 | R6: http://c02.my.uprr.com/cdm/intermodal/intermodal_schedule.jas?industryaffiliation=intermodal&cmd
B7: Dallas (Mesquite, TX) | C7: =E5 -> 301 | D7: =E6 -> 15 | E7: 0 | F7: 657 | G7: 278 | H7: 453 | I7: 1496 | J7: 1465 | K7: 1481 | L7: 1911 | M7: 301 | N7: 277 | R7: http://www.bnsf.com/markets/intermodal/pdf/Intermodal_map_large_2009.pdf
B8: El Paso (Alfalfa, TX) | C8: =$F5 -> 833 | D8: =F6 -> 642 | E8: =F7 -> 657 | F8: 0 | G8: 812 | H8: 741 | I8: 1481 | J8: 808 | K8: 824 | L8: 1254 | M8: 604 | N8: 810 | R8: http://www.kcsouthern.com/en-us/KCS/Documents/system_map%5B1%5D.pdf
B9: Englewood (Houston, TX) | C9: =G5 -> 26 | D9: =G6 -> 266 | E9: =G7 -> 278 | F9: =G8 -> 812 | G9: 0 | H9: 352 | I9: 1651 | J9: 1620 | K9: 1636 | L9: 2066 | M9: 204 | N9: 4 | R9: http://www.kcsouthern.com/en-us/Customers/Pages/Intermodal.aspx
B10: Laredo (Port Laredo, TX) | C10: =H5 -> 384 | D10: =H6 -> 442 | E10: =H7 -> 453 | F10: =H8 -> 741 | G10: =H9 -> 352 | H10: 0 | I10: 1568 | J10: 1549 | K10: 1565 | L10: 1995 | M10: 155 | N10: 361 | R10: http://www.bnsf.com/tools/glossary.html
B11: Long Beach (ICTF, CA) | C11: 1671 | D11: 1466 | E11: 1496 | F11: 1481 | G11: 1651 | H11: 1568 | I11: 0 | J11: 41 | K11: 19 | L11: 490 | M11: 1442 | N11: 1649 | R11: http://www.bnsf.com/tools/reference/division_maps/?menu=5&submenu=0
B12: Los Angeles (City Of Industry, CA) | C12: 1641 | D12: 1450 | E12: 1465 | F12: 808 | G12: 1620 | H12: 1549 | I12: 41 | J12: 0 | K12: 28 | L12: 488 | M12: 1411 | N12: 1618 | R12: http://www.uprr.com/aboutup/maps/index.shtml
B13: Los Angeles (LA, CA) | C13: 1656 | D13: 1466 | E13: 1481 | F13: 824 | G13: 1636 | H13: 1565 | I13: 19 | J13: 28 | K13: 0 | L13: 473 | M13: 1427 | N13: 1633 | R13: http://c02.my.uprr.com/mlg/mileagecalculator/mileage_query.jas
B14: Northern California (Oakland, CA) | C14: 2086 | D14: 1896 | E14: 1911 | F14: 1254 | G14: 2066 | H14: 1995 | I14: 490 | J14: 488 | K14: 473 | L14: 0 | M14: 1857 | N14: 2063 | R14: http://www.bnsf.com/bnsf.was6/siisweb/cntrl
B15: San Antonio (SAIT, TX) | C15: 229 | D15: 290 | E15: 301 | F15: 604 | G15: 204 | H15: 155 | I15: 1442 | J15: 1411 | K15: 1427 | L15: 1857 | M15: 0 | N15: 206 | R15: http://www.csx.com/?fuseaction=customers.maps
B16: Houston (Settegast, TX) | C16: 24 | D16: 265 | E16: 277 | F16: 810 | G16: 4 | H16: 361 | I16: 1649 | J16: 1618 | K16: 1633 | L16: 2063 | M16: 206 | N16: 0 | R16: http://www.uprr.com/newsinfo/attachments/2005/sunset.pdf
R20: Glossary
R21: Availability: Arrival times for intermodal and over-the-road freight. Cutoff- to-availability tables reflect transit times of shipments.
R22: Cutoff Time: Time a container or trailer must be ingated at the terminal to meet a scheduled train loading for departure. If a unit comes in after the scheduled cutoff, it is scheduled for the train coinciding with a later cut-off time. Cutoff-to-availability tables reflect transit times of shipments.
J30: 0
B31: BNSF
C33: Alliance, TX | D33: Amarillo, TX | E33: Barbours Cut, TX | F33: Birmingham, AL | G33: Chicago, IL | H33: El Paso, TX | I33: Global Gateway So, CA | J33: Houston, TX | K33: La Harbor APM Termi, CA | L33: La Harbor APM Termi, CA | M33: Long Beach A Pier, CA | N33: Long Beach ITS, CA | O33: Long Beach J Pier, CA | P33: Long Beach LBC, CA | Q33: Long Beach PCT, CA | R33: Long Beach T Pier, CA | S33: Los Angeles, CA | T33: Lubbock, TX | U33: Oakland Int Gateway, CA | V33: San Bernardino, CA | W33: Stockton, CA | X33: Tictf, CA | Y33: West Basin, CA
B34: Alliance, TX | C34: - | G34: 963 | I34: 1521 | K34: 1588 | L34: 1588 | M34: 1587 | N34: 1587 | O34: 1588 | P34: 1587 | Q34: 1588 | R34: 1587 | S34: 1545 | U34: 1861 | V34: 1485 | W34: 1779 | X34: 1588 | Y34: 1588
B35: Amarillo, TX | D35: - | I35: 1192 | U35: 1532 | X35: 1259
B36: Barbours Cut, TX | E36: - | K36: 1824 | U36: 2097
B37: Birmingham, AL | F37: - | I37: 2305 | M37: 2371 | O37: 2372 | S37: 2329 | U37: 2645 | W37: 2563 | X37: 2372 | Y37: 2372
B38: Chicago, IL | C38: 963 | G38: - | H38: 1367 | I38: 2096 | J38: 1183 | K38: 2163 | L38: 2163 | M38: 2162 | O38: 2163
B39: El Paso, TX | G39: 1367 | H39: - | S39: 1096
B40: Global Gateway So, CA | C40: 1521 | D40: 1192 | F40: 2305 | G40: 2096 | I40: - | T40: 1189
B41: Houston, TX | G41: 1183 | I41: 1734 | J41: - | K41: 1801 | N41: 1801 | P41: 1801 | R41: 1800
B42: La Harbor APM Termi, CA | C42: 1588 | G42: 2163 | J42: 1801 | K42: - | L42: -
B43: Long Beach A Pier, CA | C43: 1587 | F43: 2371 | G43: 2162 | J43: 1800 | M43: - | T43: 1255
B44: Long Beach ITS, CA | C44: 1587 | J44: 1800 | N44: -
B45: Long Beach J Pier, CA | C45: 1588 | F45: 2372 | G45: 2163 | J45: 1801 | O45: -
B46: Long Beach LBC, CA | C46: 1587 | P46: -
B47: Long Beach PCT, CA | C47: 1588 | J47: 1801 | Q47: -
B48: Long Beach T Pier, CA | C48: 1587 | J48: 1800 | R48: -
B49: Los Angeles, CA | C49: 1545 | F49: 2329 | H49: 1096 | J49: 1758 | S49: - | T49: 1213
B50: Lubbock, TX | T50: -
B51: Oakland Int Gateway, CA | C51: 1861 | D51: 1532 | F51: 2645 | J51: 2074 | T51: 1529 | U51: -
B52: San Bernardino, CA | C52: 1485 | V52: -
B53: Stockton, CA | C53: 1779 | F53: 2563 | J53: 1992 | W53: -
B54: Tictf, CA | C54: 1588 | D54: 1259 | F54: 2372 | J54: 1801 | T54: 1256 | X54: -
B55: West Basin, CA | C55: 1588 | F55: 2372 | J55: 1801 | T55: 1256 | Y55: -
C65: KCS
N66: Interchange with NS | O66: Interchange with NS | P66: Interchange with NS | Q66: Interchange with NS
C67: Lazaro Cardenas | D67: Toluca, EM | E67: San Luis Potosi, SL | F67: México City, DF | G67: Monterrey, NL | H67: Laredo, TX | I67: Houston, TX | J67: Dallas, TX | K67: Jackson, MS | L67: Corinth, MS | M67: Kansas City, MO | N67: Atlanta, GA | O67: Charlotte, NC | P67: Rutherford, PA | Q67: Croxton, NJ
B68: Lazaro Cardenas | C68: 0 | D68: 437 | E68: 481 | F68: 535 | G68: 789 | H68: 944 | I68: 1322 | J68: 1838 | K68: 1845 | L68: 2134 | M68: 2182 | N68: 2252 | O68: 2512 | P68: 3006 | Q68: 3181
B69: Toluca, EM | C69: 437 | D69: 0
B70: San Luis Potosi, SL | C70: 481 | E70: 0
B71: México City, DF | C71: 535 | F71: 0
B72: Monterrey, NL | C72: 789 | G72: 0
B73: Laredo, TX | C73: 944 | H73: 0 | I73: =I68-H68 -> 378 | J73: 885 | K73: 889 | L73: 1167 | M73: 1288
B74: Houston, TX | C74: 1322 | H74: 378 | I74: 0 | J74: =J68-I68 -> 516 | K74: =K68-I68 -> 523 | L74: =L68-H68 -> 1190 | M74: =M68-I68 -> 860
B75: Dallas, TX | C75: 1838 | H75: 885 | I75: 516 | J75: 0 | K75: 426 | L75: 704 | M75: 747
B76: Jackson, MS | C76: 1845 | H76: 889 | I76: 523 | J76: 426 | K76: 0 | L76: 279 | M76: 769
B77: Corinth, MS | C77: 2134 | H77: 1167 | I77: 1190 | J77: 704 | K77: 279 | L77: 0 | M77: 1048
B78: Kansas City, MO | C78: 2182 | H78: 1288 | I78: 860 | J78: 747 | K78: 769 | L78: 1048 | M78: 0
B79: Atlanta, GA | C79: 2252 | N79: 0
B80: Charlotte, NC | C80: 2512 | O80: 0
B81: Rutherford, PA | C81: 3006 | P81: 0
B82: Croxton, NJ | C82: 3181 | Q82: 0

Sheet Model
C1: STEP 1 | H1: =IF(OR(ROUND(equation_of_motion,2)<>0,ROUND(equation_maxspeed_upperbound,2)<>0),"RECALCULATE SPEED NOW","STEP 2") -> STEP 2 | M1: =IF(OR(ROUND(equation_of_motion,2)<>0,ROUND(equation_maxspeed_upperbound,2)<>0),"RECALCULATE SPEED NOW","STEP 2") -> STEP 2 | R1: STEP 4 | W1: STEP 5
B3: Cargo Weight, Number of Containers, and Rail Car Configuration Module | G3: Configure Locomotives Module | L3: Basic Trip Details Module | Q3: Fuel Consumption & Cost Module ($$$) | V3: Maintenance Cost Module ($$$)
B4: required [x] | D4: Input/Output | G4: type-1 loco | I4: Input/Output | L4: required [x] | N4: Input/Output | S4: Input/Output | X4: Input/Output
B5: x | C5: select type of container (20ft., 40ft., 45ft. HC) | D5: 40 ft Dry | E5: type | H5: select locomotive horsepower | I5: 4000 | J5: hp | L5: x | M5: select railroad company | N5: BNSF | Q5: x | R5: price per gallon of fuel (p) | S5: 2.5 | T5: $ USD | W5: track maintenance | X5: 0.5 | Y5: $ per car, per loco. mile
C6: ="tare weight of one " & D5 -> tare weight of one 40 ft Dry | D6: =VLOOKUP(D5,Data!D4:E9,2) -> 4.2 | E6: tons | H6: average length of a locomotive | I6: =VLOOKUP(I5,Data!I19:L26,3) -> 75 | J6: ft. | L6: =IF($N$5="CTR RailRoad"," ","x") -> x | M6: =IF($N$5="CTR RailRoad","[inputs disabled]","select origin") -> select origin | N6: ALLIANCE | Q6: x | R6: thermal efficiency of diesel-electric engine (decimal)(η) | S6: 0.35 | T6: (25-30%) | W6: car maintenance | X6: 0.12 | Y6: $/mile
H7: number of axles | I7: 6 | J7: axles | L7: =IF($N$5="CTR RailRoad"," ","x") -> x | M7: =IF($N$5="CTR RailRoad","","select destination") -> select destination | N7: CHICAGO | R7: total horsepower of locomotives | S7: =I13 -> 11545.45455 | T7: hp | W7: locomotive maintenance | X7: 2.1 | Y7: $/mile
B8: x | C8: =IF(input_container_type=Data!D8,"input cargo weight per car", "input cargo weight per container") -> input cargo weight per container | D8: 15 | E8: tons | H8: =IF(input_hptt_ratio>6,"WARNING!! MAX HPTT = 6.0", " ") -> 
C9: =IF(input_container_type=Data!D8,"cargo weight of one car", "gross weight of one container") -> gross weight of one container | D9: =D8+D6 -> 19.2 | E9: tons | H9: input desired maximum train speed | I9: 80 | J9: mph | M9: =IF($N$5="CTR RailRoad","go to 'user rail inputs', and select 'Yes'","default distance") -> default distance | N9: =IF($N$5="CTR Railroad"," ",VLOOKUP($N$5,Data!D18:F21,2)) -> 963 | O9: =IF($N$5="CTR RailRoad"," ","miles") -> miles | R9: fuel surcharge (optional) | S9: 0 | T9: $/mile | W9: Total maintenance | X9: =(X5*(D23+I28)+(X6*D23)+(X7*I28))*N32 -> 10670 | Y9: $$$
D10: =IF(Model!D16>VLOOKUP(input_car_type,Data!I4:P13,3),"Max. Allowable Weight of " & VLOOKUP(input_car_type,Data!I4:P13,3)& " tons Exceeded"," ") ->  | H10: input desired horsepower per ton ratio | I10: 4.123376623 | J10: hptt | M10: percentage grade of terrain | N10: 0 | O10: % | R10: total fuel surcharge | S10: =S9*N32 -> 0 | T10: $$$ | W10: track only maintenance cost per gross ton-mile | X10: =X9/(I42*N32) -> 0.01141176471 | Y10: $/ton-mile
B11: x | C11: select type of car | D11: Container Carriers (5-unit) | E11: car type | H11: calculated horsepower per ton ratio | I11: 4.123376623 | J11: hptt | M11: curve of c degrees | N11: 0 | O11: degress °
C12: tare weight of car | D12: =VLOOKUP(D11,data_rail_cars,2) -> 17.6 | E12: tons | M12: =IF($N$5="CTR RailRoad"," ","estimated cruising speed") -> estimated cruising speed | N12: =cruising_speed -> 80 | O12: =IF($N$5="CTR RailRoad"," ","mph") -> mph | R12: Total Fuel cost per trip | S12: =(N37*S5*0.0183*S7/S6 )+S10 -> 5187.723214 | T12: $$$
H13: required horsepower | I13: =D31*input_hptt_ratio -> 11545.45455 | J13: hp | M13: =IF($N$5="CTR RailRoad"," ","number of sidings to be used") -> number of sidings to be used | N13: 0 | O13: =IF($N$5="CTR RailRoad"," ","sidings") -> sidings | R13: ton-miles per gallon (compare with AAR claim) | S13: =I41*N32/(S12/S5) -> 254.4468827 | T13: ton-miles per gal.
B14: x | C14: =IF(input_car_type=Data!$I$7,"input number of containers","number of cars") -> input number of containers | D14: 100 | E14: =IF(input_car_type=Data!$I$7,"containers","cars") -> containers | M14: =IF($N$5="CTR RailRoad"," ","estimated wait time per siding") -> estimated wait time per siding | N14: 0 | O14: =IF($N$5="CTR RailRoad"," ","mins") -> mins | R14: gallons consumed per hr per locomotive | S14: =S18/I28 -> 201.2207792 | T14: gals/hr/loco.
B15: =IF(input_car_type=Data!$I$7,"x"," ") -> x | C15: =IF(input_car_type=Data!$I$7,"are containers double stacked?","double-stacking?") -> are containers double stacked? | D15: Yes | H15: =IF(S7<I13,"Warning! Total Loco HP is less than req. hp"," Good!! Desired Locomotive HP achieved") -> Good!! Desired Locomotive HP achieved | I15: =(I5*I29)+IF(I23="Yes",(I24*I25),0) -> 12000 | J15: hp | M15: total siding stop delay | N15: =((N14/60)*N13) -> 0 | O15: hrs | R15: total gallons consumed per locomotive | S15: =S12/(S5*I28) -> 691.6964286 | T15: gals | Y15: =8*45 -> 360
C16: gross weight of one car | D16: =IF(input_double_stacked="Yes",(2*D9+D12),D9+D12) -> 56 | E16: tons | H16: =IF(I23="Yes",IF((I15-I13)>(I25*I24),"Excess HP!! reduce no. of type-1 loco by ...", "if necessary, reduce no. of type-1 loco by ...")," ") ->  | J16: =IF(H16=" ","","locomotive(s)") ->  | M16: =IF($N$5="CTR RailRoad"," ","calculated travel time") -> calculated travel time | N16: =IF($N$5="USER SPECIFIED"," ",(N9/N12)+N15) -> 12.0375 | O16: =IF($N$5="CTR RailRoad"," ","hrs") -> hrs | R16: fuel cost per gross ton mile | S16: =S12/(I42*N32) -> 0.005548367074 | T16: gross ton mile
R17: GTM/gallon of fuel | S17: =(gross_weight_of_train*train_trip_miles)/(S15*number_of_locomotives) -> 450.5830214 | T17: GTM/gal | W17: =CEILING(train_travel_time/24,1) -> 1
C18: =IF(D15="Yes","required no. of double stacked " & D11,"required no. of single stacked " & D11) -> required no. of double stacked Container Carriers (5-unit) | D18: =ROUNDUP(IF(D15="Yes",D14/2,D14),0.1) -> 50 | E18: =IF(input_car_type=Data!I7,"wells","cars") -> wells | R18: total gallons consumed per hr | S18: =(S12/S5)/N37 -> 603.6623377 | T18: gals/hr
B19: x | C19: =IF(input_car_type=Data!$I$7,"utilization ratio (no. of full containers)","utilization ratio (number of full " &D11 &")") -> utilization ratio (no. of full containers) | D19: 1 | E19: percent | L19: USER SPECIFIED INPUTS | N19: =IF($N$5="CTR RailRoad","[required input]","[optional]") -> [optional]
C20: =IF(input_car_type=Data!$I$7,"number of full containers","number of full cars") -> number of full containers | D20: =ROUND(D14*D19,0) -> 100 | L20: =IF($N$5="CTR RailRoad","x"," ") ->  | M20: =IF($N$5="USER SPECIFIED","select 'Yes' & input USER SPECIFIED data ","compare with my inputs?") -> compare with my inputs? | N20: Yes | O20: yes/no
C21: =IF(input_car_type=Data!$I$7,"number of empty containers","number of empty cars") -> number of empty containers | D21: =D14-D20 -> 0 | G21: =IF(I22="Yes","type-2 loco"," ") ->  | L21: =IF($N$20="Yes","x"," ") -> x | M21: =IF(N20="Yes","input distance","[inputs disabled]") -> input distance | N21: 275 | O21: =IF($N$20="Yes","miles"," ") -> miles | V21: Crew Labor Cost Module ($$$)
G22: =IF(I23="Yes","type-2 loco"," ") ->  | I22: [optional inputs] | M22: =IF($N$20="Yes","percentage grade of terrain"," ") -> percentage grade of terrain | N22: 0 | O22: =IF($N$20="Yes","%"," ") -> % | Q22: Rail Emission Module | X22: Input/Output
C23: =IF(input_car_type=Data!I7,"total number of wells (intermodal)","total number of cars") -> total number of wells (intermodal) | D23: =D18+D54 -> 50 | E23: =IF(input_car_type=Data!I7,"wells","cars") -> wells | H23: add additional loco of different hp (type-2) | I23: No | M23: =IF($N$20="Yes","curve of c degrees"," ") -> curve of c degrees | N23: 0 | O23: =IF($N$20="Yes","degress °"," ") -> degress ° | S23: Input/Output | W23: average crew wages | X23: 360 | Y23: $/day
H24: =IF(I23="Yes","horsepower of one (1) type-2 locomotive","[optional inputs disabled]") -> [optional inputs disabled] | I24: horsepower | L24: =IF($N$20="Yes","x"," ") -> x | M24: =IF($N$20="Yes","input speed"," ") -> input speed | N24: =cruising_speed -> 80 | O24: =IF($N$20="Yes","mph"," ") -> mph | R24: gallons of fuel consumed | S24: =S15*number_of_locomotives -> 2075.089286 | T24: gals | W24: number of crew members | X24: 2 | Y24: number
C25: total TEU - full | D25: =IF($D$41="Yes",($D$20*VLOOKUP(D5,Data!D5:F8,3)+$D$57*VLOOKUP(D42,Data!D5:F8,3)),$D$20*VLOOKUP(D5,Data!D5:F8,3)) -> 200 | E25: TEU | H25: =IF(I23="Yes","number of type-2 locomotive desired"," ") ->  | M25: =IF($N$20="Yes","number of sidings to be used"," ") -> number of sidings to be used | N25: 0 | O25: =IF($N$20="Yes","sidings"," ") -> sidings | R25: select TIER | S25: Tier 0
C26: total TEU - empty | D26: =($D$21*VLOOKUP(D5,Data!D5:F8,3)+$D$58*VLOOKUP(D42,Data!D5:F8,3)) -> 0 | E26: TEU | M26: =IF($N$20="Yes","estimated wait time per siding"," ") -> estimated wait time per siding | N26: 0 | O26: =IF($N$20="Yes","mins"," ") -> mins | W26: other crew labor wages | X26: 0 | Y26: $/hr
M27: =IF($N$20="Yes","total siding stop delay"," ") -> total siding stop delay | N27: =((N26/60)*N25) -> 0 | O27: =IF($N$20="Yes","hrs"," ") -> hrs | R27: Pollutants (g/gal) | S27: emission factors | X27: 0 | Y27: number
C28: gross weight of full cars/containers | D28: =IF($D$41="Yes",(D9*D20)+(D46*D57),(D9*D20)) -> 1920 | E28: tons | H28: total number of locomotives | I28: =IF(I23="Yes",ROUNDUP(I13/I5,0.1)+I25-I16,ROUNDUP(I13/I5,0.1)) -> 3 | J28: locomotive(s) | M28: =IF($N$20="Yes","calculated time travel time"," ") -> calculated time travel time | N28: =(N21/N24)+N27 -> 3.4375 | O28: =IF($N$20="Yes","hrs"," ") -> hrs | R28: HC | S28: =(INDEX(data_emission_factor, MATCH($S$25,Data!$R$17:$R$23,), MATCH(R28,Data!$R$17:$W$17,))*$S$24)/(1000*907.18) -> 0.02287406342 | T28: tons
C29: gross weight of empy cars/containers | D29: =(D6*D21)+(D43*D58) -> 0 | E29: tons | H29: number of type-1 locomotives | I29: =IF(I23="Yes",ROUNDUP(I13/I5,0)-IF(I23="Yes",I16,0.1),ROUNDUP(I13/I5,0.1)) -> 3 | J29: locomotive(s) | R29: CO | S29: =(INDEX(data_emission_factor, MATCH($S$25,Data!$R$17:$R$23,), MATCH(R29,Data!$R$17:$W$17,))*$S$24)/(1000*907.18) -> 0.06084500871 | T29: tons | W29: other crew labor wages (per mile calculation) | X29: 0 | Y29: $/mile
H30: =IF($I$23="Yes","number of type-2 locomotives","") ->  | I30: =IF(I23="Yes",I25,0) -> 0 | J30: =IF($I$23="Yes","locomotive(s)","") ->  | R30: NOx | S30: =(INDEX(data_emission_factor, MATCH($S$25,Data!$R$17:$R$23,), MATCH(R30,Data!$R$17:$W$17,))*$S$24)/(1000*907.18) -> 0.407158329 | T30: tons | X30: 0 | Y30: number
C31: total gross weight of all cars and containers | D31: =(D54*D49)+(D18*D12)+D28+D29 -> 2800 | E31: tons | L31: trip summary (USE FOR FINAL CHECK) | R31: PM | S31: =(INDEX(data_emission_factor, MATCH($S$25,Data!$R$17:$R$23,), MATCH(R31,Data!$R$17:$W$17,))*$S$24)/(1000*907.18) -> 0.01532562249 | T31: tons
H32: =IF(I23="Yes","weight of type-1 locomotive","weight of single type-1 locomotive") -> weight of single type-1 locomotive | I32: =VLOOKUP(I5,Data!I19:L26,2) -> 200 | J32: tons | M32: distance used in calculations | N32: =IF($N$20="Yes",N21,N9) -> 275 | O32: miles | R32: VOC | S32: =(INDEX(data_emission_factor, MATCH($S$25,Data!$R$17:$R$23,), MATCH(R32,Data!$R$17:$W$17,))*$S$24)/(1000*907.18) -> 0.02408638879 | T32: tons | W32: Total Labor Cost | X32: =(X24*X23*CEILING(train_travel_time/24,1))+(X26*X27*CEILING(train_travel_time/24,1))+(X29*X30*train_trip_miles) -> 720 | Y32: $$$
C33: length of car | D33: =VLOOKUP(input_car_type,data_rail_cars,4) -> 53 | E33: ft | H33: =IF($I$23="Yes","weight of type-2 locomotive","") ->  | I33: =IF(I23="Yes",VLOOKUP(I24,Data!I19:L26,2),0) -> 0 | J33: =IF($I$23="Yes","tons","") ->  | M33: percentage grade of terrain | N33: =IF($N$20="Yes",N22,N10) -> 0 | O33: % | S33: =SUM(S28:S32) -> 0.5302894124 | W33: labor cost per crew member per day | X33: =X23*X24 -> 720 | Y33: $/day
C34: number of axles | D34: =VLOOKUP(input_car_type,data_rail_cars,6) -> 4 | E34: axles | M34: curve of c degrees | N34: =IF($N$20="Yes",N23,N11) -> 0 | O34: degress °
C35: k-value | D35: =VLOOKUP(input_car_type,data_rail_cars,7) -> 0.0935 | H35: weight of all locomotives | I35: =(I29*I32)+(I30*I33) -> 600 | J35: tons | M35: trip speed | N35: =IF($N$20="Yes",N24,N12) -> 80 | O35: mph
C36: k-adj-value | D36: =VLOOKUP(input_car_type,data_rail_cars,8) -> 0.95 | M36: total siding stop delay | N36: =IF($N$20="Yes",N27,N15) -> 0 | O36: hrs
M37: trip time used in calculations | N37: =IF(N20="Yes",N28,N16) -> 3.4375 | O37: hrs
B38: =IF($D$41="Yes","x"," ") ->  | V38: Loading and Unloading Cost Module ($$$) (experimental)
G39: Train Data Summary | Q39: Capital Cost Module ($$$) | T39: $$$ | W39: set input to 0 if not in use | X39: Input/Output
D40: [optional inputs] | I40: Input/Output | S40: Input/Output | W40: loading cost per unit container | X40: 100
C41: happen to have other containers or rail cars? | D41: No | H41: weight of cargo | I41: =SUM(D28:D29) -> 1920 | J41: tons | L41: Total Rail Cost ($$$) | R41: cost of one (1) car | S41: =VLOOKUP(input_car_type,Data!I4:M13,5) -> 39000 | T41: $$$ | W41: unloading cost per unit container | X41: 100
B42: =IF($D$41="Yes","x"," ") ->  | C42: =IF($D$41="Yes","select type of container","[optional inputs disabled]") -> [optional inputs disabled] | D42: 20 ft. Reefer | E42: =IF($D$41="Yes","type","") ->  | H42: gross weight of train | I42: =gross_wt_of_cars+gross_wt_of_locomotives -> 3400 | J42: tons | N42: Input/Output | R42: cost of one (1) locomotive | S42: 2000000 | T42: $$$
C43: =IF($D$41="Yes","tare weight of one " &D42," ") ->  | D43: =IF(D41="Yes",VLOOKUP(D42,Data!D5:E9,2),0) -> 0 | E43: =IF($D$41="Yes","tons","") ->  | H43: length of cars | I43: =(VLOOKUP(input_car_type,data_rail_cars,4)*number_of_carswells) -> 2650 | J43: ft | M43: Total Rail Cost | N43: =SUM(S12,X9,X32,S57,X43,X57) -> 36671.31268 | O43: $$$ | R43: rail equipment life (years) | S43: 30 | T43: years | W43: Total Loading and Unloading Cost (experimental) | X43: =(X40*D14)+(X41*D14) -> 20000 | Y43: $$$
D44: =IF(AND(D41="Yes",D45>VLOOKUP(D42,Data!D5:G9,4)),"Warning! cargo weight exceeds allowed container payload. Maximum is "&VLOOKUP(D42,Data!D5:G9,4)&" tons"," ") ->  | H44: length of locomotives | I44: =VLOOKUP(input_locomotive_hp,data_locomotives,3)*I29 -> 225 | J44: ft | M44: per ton-mile (cents) | N44: =N43/(I41*N32)*100 -> 6.945324372 | O44: cents/ton-mile | R44: salvage value (percentage) | S44: 0.1 | T44: percent'
B45: =IF($D$41="Yes","x"," ") ->  | C45: =IF($D$41="Yes","input cargo weight per container","") ->  | E45: =IF($D$41="Yes","tons","") ->  | H45: length of train | I45: =I43+I44 -> 2875 | J45: ft | M45: per TEU | N45: =N43/D25 -> 183.3565634 | O45: $/TEU
C46: =IF($D$41="Yes","gross weight of one container"," ") ->  | D46: =IF(D41="Yes",D45+D43,0) -> 0 | E46: =IF($D$41="Yes","tons","") ->  | H46: total number of axles - locomotives | I46: =I7*number_of_locomotives -> 18 | J46: axles | M46: per FEU | N46: =N43/number_of_carswells -> 733.4262537 | O46: $/FEU | R46: hourly depreciation of one (1) car | S46: =(S41-(S44*S41))/(S43*8760) -> 0.1335616438 | T46: $/hr
H47: total number of axles - cars | I47: =number_of_carswells*D34 -> 200 | J47: axles | M47: per mile | N47: =N43/N32 -> 133.3502279 | O47: $/mile | R47: all cars | S47: =S46*D23 -> 6.678082192 | T47: $/hr
B48: =IF($D$41="Yes","x"," ") ->  | C48: =IF(D41="Yes", "select type of car", " ") ->  | D48: 5 unit cars | E48: =IF(D41="Yes","car type","") ->  | M48: per TEU-mile | N48: =(N43/(D25*N32)) -> 0.6667511397 | O48: $/TEU-mile | R48: hourly depreciation of one (1) locomotive | S48: =(S42-(S44*S42))/(S43*8760) -> 6.849315068 | T48: $/hr
C49: =IF($D$41="Yes","tare weight of one " &D48," ") ->  | D49: =IF(D41="Yes",VLOOKUP(D48,Data!I4:J6,2),0) -> 0 | E49: =IF(D41="Yes","tons","") ->  | M49: per ton | N49: =total_cost/I41 -> 19.09964202 | O49: $/ton | R49: all locomotives | S49: =S48*I28 -> 20.54794521 | T49: $/hr | V49: Other Cost Calculation Module ($$$)
B50: =IF($D$41="Yes","x"," ") ->  | H50: 117000 | I50: 105000 | J50: =SUM(H50:I50) -> 222000 | M50: percentage fuel | N50: =N55/total_cost -> 0.1414654354 | O50: % | X50: Input/Output
C51: =IF($D$41="Yes","input number of containers","") ->  | E51: =IF($D$41="Yes","containers","") ->  | M51: percentage maintenance | N51: =N56/total_cost -> 0.2909631322 | O51: % | R51: annual interest rate | S51: 0 | T51: percent | W51: Empty Return Ratio (experimental) | X51: 0 | Y51: percent
G52: Locomotive Performance Module (Used in Calculating Train Speed) | M52: cost per carload | N52: =total_cost/number_of_carswells -> 733.4262537 | O52: $/carload | R52: hourly interest charge for one car | S52: =S41*S43*S51/(8760*S43) -> 0 | T52: $/hr | W52: other | Y52: $/hr
B53: =IF($D$41="Yes","x"," ") ->  | C53: =IF($D$41="Yes","are containers double stacked?","") ->  | D53: Yes | E53: =IF($D$41="Yes","yes/no","") ->  | I53: Input/Output | R53: all cars | S53: =S52*D23 -> 0 | T53: $/hr | W53: other | Y53: $/hr
C54: =IF(D41="Yes","number of " &D48& " needed"," ") ->  | D54: =IF(D41="Yes",ROUNDUP(IF(D53="Yes",D51/(2*VLOOKUP(D48,Data!I5:K7,3)),D51/VLOOKUP(D48,Data!I5:K7,3)),0.1),0) -> 0 | E54: =IF(D41="Yes","cars"," ") ->  | H54: iterated speed | I54: 80 | J54: mph | M54: Cost Break Down | R54: hourly interest charge for one (1) locomotive | S54: =S42*S43*S51/(8760*S43) -> 0 | T54: $/hr | W54: other | Y54: $/mile
C55: =IF(D42="Yes","number of " &D49& " needed"," ") ->  | H55: equation of motion | I55: =308*required_horsepower-(1.3*gross_wt_of_locomotives+0.6*k_adj_value*gross_wt_of_cars+(20*user_input_percent_grade+0.8*user_input_curve_degrees)*gross_weight_of_train+29*no_of_axles_locomotives+20*k_adj_value*no_of_axles_cars)*iterated_speed-(0.03*gross_wt_of_locomotives+0.01*k_adj_value*gross_wt_of_cars)*iterated_speed^2-(0.3*number_of_locomotives+k_adj_value*k_value*number_of_carswells)*iterated_speed^3 -> 1.294538379e-07 | M55: fuel cost | N55: =S12 -> 5187.723214 | O55: $ USD | R55: all locomotives | S55: =S54*I28 -> 0 | T55: $/hr | W55: other | Y55: $/mile
C56: =IF($D$41="Yes","utilization ratio (number of full containers)","") ->  | E56: =IF($D$41="Yes","percent","") ->  | H56: cruising speed | I56: =iterated_speed -> 80 | J56: mph | M56: maintenance cost | N56: =X9 -> 10670 | O56: $ USD
C57: =IF($D$41="Yes","number of full containers"," ") ->  | D57: =IF(D41="Yes",ROUND(D51*D56,0.1),0) -> 0 | E57: =IF($D$41="Yes",$D$42,"") ->  | H57: difference from maximum speed equation | I57: =input_maximum_train_speed-cruising_speed -> 5.400124792e-12 | J57: mph | M57: crew labor cost | N57: =X32 -> 720 | O57: $ USD | R57: Total Depreciation and Interest charges | S57: =(S47+S49+S53+S55)*N37 -> 93.58946918 | T57: $$$ | W57: Total Other Cost | X57: =X51*SUM(S12,X9,X32,X43,S57)+(X52*train_travel_time)+(X53*+train_travel_time)+(X54*train_trip_miles)+(X55*train_trip_miles) -> 0 | Y57: $$$
C58: =IF($D$41="Yes","number of empty containers"," ") ->  | D58: =IF(D41="Yes",D51-D57,0) -> 0 | E58: =IF($D$41="Yes",$D$42,"") ->  | H58: tractive effort | I58: =308*required_horsepower/iterated_speed -> 44450 | J58: lbs/ton | M58: capital & invest. cost | N58: =S57 -> 93.58946918 | O58: $ USD
M59: loading/unloading | N59: =X43 -> 20000 | O59: $ USD
M60: other cost | N60: =X57 -> 0 | O60: $ USD
Q63: Advanced Trip Details
Q64: Station # | R64: Location Name | S64: Dist. Travelled | T64: Elevation | U64: Grade | V64: Curvature | W64: Speed | X64: Travel Time | Y64: No. of Stops | Z64: Avg. Stop Delay | AA64: Fuel Cost
Q65: 1 | R65: Dallas | S65: 1000 | T65: 100 | U65: =(T66-T65)/S65 -> 0.005
G66: Locomotive Performance Module - DeSalvo's Formulation (for Comparison) | T66: 105
H68: iterated velocity | I68: 38.3750026 | J68: mph
H69: percentage grade of terrain | I69: =user_input_percent_grade -> 0 | J69: %
H70: curve of c degrees | I70: =user_input_curve_degrees -> 0 | J70: degress °
H71: total number of axles of locomotive units | I71: =I7*number_of_locomotives -> 18 | J71: axles
H72: total number of axles of freight cars | I72: =D34*D23 -> 200 | J72: axles
H73: weight per axle | I73: =D31/SUM(I72) -> 14
H75: equation of motion (DeSalvo) | I75: =(308*I15)-((1.3+20*I69+0.8*I70)*I42+29*SUM(I71:I72))*I68-(0.03*I35+0.045*D31)*(I68^2)-(0.28125*number_of_locomotives+0.04375*D23)*(I68^3) -> 2900411.638 | J75: mph
H76: tractive effort | I76: =308*required_horsepower/I68 -> 92664.48884 | J76: lbs
H77: cruising speed | I77: =IF(I75<10,I68,"Keep trying") -> Keep trying | J77: mph

Sheet Data
B2: Select | D2: Containers | I2: Rail Cars (Single unit data) Source: http://www.tealinc.com/carposting.htm | R2: Kadj values
B3: Yes | D3: container | E3: tare wt. | F3: TEUs | G3: max. payload (tons) | I3: type | J3: tare weight (tons) | K3: max gross wt. | L3: length | M3: cost | N3: axles | O3: K values | P3: Kadj values | R3: equipment | S3: Kadj
B4: No | D4: 20 ft. Dry | E4: 2.5 | F4: 1 | G4: 24 | I4: Auto Transporters | J4: 74 | K4: 130 | L4: 145.33 | N4: 4 | O4: 0.07 | P4: 1.3 | R4: Pre-1950 equipment | S4: 1
D5: 20 ft. Reefer | E5: 3.2 | F5: 1 | G5: 24 | I5: Boxcars | J5: 37.1 | K5: 143 | L5: 58.35 | N5: 4 | O5: 0.07 | P5: 0.85 | R5: Conventional post-1950 cars | S5: 0.85
B6: =IF(input_containers=Data!I7,$B$3:$B$4,"inactive") -> inactive | D6: 40 ft Dry | E6: 4.2 | F6: 2 | G6: 30 | I6: Center Partition Railcars | J6: 30.5 | K6: 143 | L6: 80.53 | N6: 4 | O6: 0.07 | P6: 0.85 | R6: Container-on-flatcar | S6: 0.95
D7: 45 ft. H. Cube | E7: 4.5 | F7: 2 | G7: 30 | I7: Container Carriers (5-unit) | J7: 17.6 | K7: 110 | L7: 53 | M7: =195000/5 -> 39000 | N7: 4 | O7: 0.0935 | P7: 0.95 | R7: Trailer-on-flatcar and hopper cars | S7: 1.05
D8: No Containers | E8: 0 | F8: 0 | G8: 30 | I8: Gondolas | J8: 37.5 | K8: 143 | L8: 66 | N8: 4 | O8: 0.07 | P8: 0.85 | R8: Empty, covered auto racks | S8: 1.2
D9: Reefer 40 ft. | E9: 4.8 | F9: 2 | G9: 30.5 | I9: High Cube Box Cars | J9: 39.65 | K9: 143 | L9: 67.875 | N9: 4 | O9: 0.07 | P9: 0.85 | R9: Loaded auto racks | S9: 1.3
I10: Hoppers | J10: 30.75 | K10: 143 | L10: 58 | N10: 4 | O10: 0.07 | P10: 1.05 | R10: Empty, uncovered auto racks | S10: 1.9
I11: Intermodal Flatcars | J11: 34 | K11: 110 | L11: 70 | M11: 85000 | N11: 4 | O11: 0.0935 | P11: 0.95
D12: http://www.railgoat.railfan.net/railwhales/a-axles.htm | I12: Other Flatcars | J12: 34 | K12: 110 | L12: 90 | N12: 4 | O12: 0.16 | P12: 1.05
I13: Tankers | J13: 32.85 | K13: 131.5 | L13: 57.125 | N13: 4 | O13: 0.07 | P13: 0.85
N15: Sources | O15: (Car Weight)
D16: Data retrieval from Routes | N16: http://chicago.railfan.net/cgi/photos.pl/?page=DTTX_73342 | R16: Line-Haul Emission Factors (g/gal)
D17: RailRoad | E17: Distance | F17: Trip Time | I17: Locomotives | N17: http://www.tealinc.com/carposting.htm | S17: HC | T17: CO | U17: NOx | V17: PM | W17: VOC
D18: BNSF | E18: =IFERROR(VLOOKUP(Model!N6&Model!N7,BNSF_Distances_Only,2),"N/A") -> 963 | I18: horsepower | J18: wt. (tons) | K18: length (ft.) | L18: cost | M18: axles | R18: Uncontrolled | S18: 10 | T18: 26.6 | U18: 270.4 | V18: 6.7 | W18: =1.053*S18 -> 10.53
D19: KCS | E19: =INDEX(Routes!$B$67:$U$86, MATCH(Model!$N$6,Routes!$B$67:$B$86,), MATCH(Model!$N$7,Routes!$B$67:$U$67,)) ->  | I19: 2000 | J19: 190 | K19: 75 | M19: 6 | R19: Tier 0 | S19: 10 | T19: 26.6 | U19: 178 | V19: 6.7 | W19: 10.53
D20: UP | E20: =INDEX(Routes!$B$4:$O$16, MATCH(Model!$N$6,Routes!$B$4:$B$16,), MATCH(Model!$N$7,Routes!$B$4:$O$4,)) ->  | I20: 3000 | J20: 195 | K20: 75 | M20: 6 | R20: Tier 1 | S20: 9.8 | T20: 26.6 | U20: 139 | V20: 6.7 | W20: 10.3194
D21: NS | I21: 3500 | J21: 200 | K21: 75 | M21: 6 | R21: Tier 2 | S21: 5.4 | T21: 26.6 | U21: 103 | V21: 3.6 | W21: 5.6862
D22: USER SPECIFIED | I22: 3800 | J22: 200 | K22: 75 | M22: 6 | R22: Tier 3 | S22: 2.7 | T22: 26.6 | U22: 103 | V22: 1.66 | W22: 2.8431
I23: 4000 | J23: 200 | K23: 75 | M23: 6 | R23: Tier 4 | S23: 0.83 | T23: 26.6 | U23: 20.8 | V23: 0.31 | W23: 0.87399
I24: 4400 | J24: 200 | K24: 75 | M24: 6
D25: Unit Convertor | I25: 5000 | J25: 200 | K25: 75 | M25: 6
D26: 220000 | E26: lbs | F26: =D26*0.0005 -> 110 | G26: tons | I26: 6000 | J26: 200 | K26: 75 | M26: 6
E27: tons | F27: =D27*2000 -> 0 | G27: lbs
E28: km | F28: =D28*0.62137 -> 0 | G28: miles
E29: miles | F29: =D29* 1.6093 -> 0 | G29: km
I32: 220,000 lbs. Approx. Tare Weight 68,200 lbs. For Sale.
D34: Rail Facts from Jim Blaze
C35: 1 | D35: 40ft - 53 ft well - 286,000 lbs (110 tons) gross weight
C36: 2 | D36: Westbound Rail: 50-60% empty | N36: =1.053*J37 -> 0
C37: 3 | D37: Eastbound Rail: 5% empty
C38: 4 | D38: Eastern Railroads use 2.5-3.00 HPTT (BNSF), UP uses 2.2 HPTT
C39: 5 | D39: BNSF: 70mph
C40: 5 | D40: Average locomotive horsepower: 4400HP
O43: Recent Emissions Standards for Locomotives
O44: http://www.epa.gov/OMS/regs/nonroad/locomotv/420f09025.pdf
O45: http://www.epa.gov/OMS/locomotives.htm#il

Sheet Trial Hub
B1: User Input Column | D1: MACROS MUST BE ENABLED | T1: SYSTEM REQUIREMENTS: EXCEL 2007 AND ABOVE WITH MACROS ENABLED.
B3: Analysis Table | O3: Scenario Manager | AC3: Don’t Delete
B4: Input Data Column | C4: total cost | D4: per ton-mile | E4: per mile | F4: per TEU | G4: per FEU/Carload | H4: %fuel | I4: No. of Locos | J4: Speed (mph) | K4: Travel Time (hr) | L4: Horsepower Rqd | M4: % maintenance | P4: Build | Q4: Output | AC4: Yes
B5: 50 | C5: 9150.4343 | D5: 3.466073614 | E5: 33.2743 | F5: 91.5043 | G5: 366.0174 | H5: 0.3376880519 | I5: 2 | J5: 80 | K5: 3.4375 | L5: 6876.883117 | M5: 0.622101617 | O5: Fuel Price ($) | P5: 2.5 | Q5: =input_fuel_price -> 2.5 | R5: =IF(P5=Q5,"GOOD","ANALYZED") -> GOOD | AC5: No
B6: 60 | C6: 10424.7761 | D6: 3.290649023 | E6: 37.9083 | F6: 86.8731 | G6: 347.4925 | H6: 0.336653611 | I6: 2 | J6: 80 | K6: 3.4375 | L6: 7810.597403 | M6: 0.6278312295 | O6: Distance (miles) | P6: 275 | Q6: =user_input_distance -> 275 | R6: =IF(P6=Q6,"GOOD","ANALYZED") -> GOOD
B7: 70 | C7: 12437.6624 | D7: 3.365168396 | E7: 45.2279 | F7: 88.8404 | G7: 355.3618 | H7: 0.3159021825 | I7: 3 | J7: 80 | K7: 3.4375 | L7: 8744.311688 | M7: 0.6522527904 | O7: Max Speed (mph) | P7: 80 | Q7: =train_trip_speed -> 80 | R7: ANALYZED
B8: 80 | C8: 13712.0042 | D8: 3.246213105 | E8: 49.8618 | F8: 85.7 | G8: 342.8001 | H8: 0.3171404281 | I8: 3 | J8: 80 | K8: 3.4375 | L8: 9678.025974 | M8: 0.6538066864 | O8: No. of Sidings | P8: 0 | Q8: =user_input_sidings -> 0 | R8: GOOD
B9: 90 | C9: 14986.3459 | D9: 3.153692323 | E9: 54.4958 | F9: 83.2575 | G9: 333.0299 | H9: 0.3181680889 | I9: 3 | J9: 80 | K9: 3.4375 | L9: 10611.74026 | M9: 0.6550963159 | O9: Average Sidings Delay (min.) | P9: 0 | Q9: =user_input_sidings_delay -> 0 | R9: GOOD
B10: 100 | C10: 16260.6877 | D10: 3.079675698 | E10: 59.1298 | F10: 81.3034 | G10: 325.2138 | H10: 0.3190346752 | I10: 3 | J10: 80 | K10: 3.4375 | L10: 11545.45455 | M10: 0.6561838102 | O10: Type of Container | P10: 40 ft Dry | Q10: =input_container_type -> 40 ft Dry | R10: GOOD
B11: 110 | C11: 18604.3278 | D11: 3.203224483 | E11: 67.6521 | F11: 84.5651 | G11: 338.2605 | H11: 0.3191742953 | I11: 4 | J11: 80 | K11: 3.4375 | L11: 13215.27273 | M11: 0.6577770578 | O11: Cargo Weight (tons) | P11: 15 | Q11: =input_cargo_weight -> 15 | R11: GOOD
B12: 120 | C12: 19878.6696 | D12: 3.137416281 | E12: 72.2861 | F12: 82.8278 | G12: 331.3112 | H12: 0.3198186563 | I12: 4 | J12: 80 | K12: 3.4375 | L12: 14148.98701 | M12: 0.6584947731 | O12: Type of Car | P12: Container Carriers (5-unit) | Q12: =input_car_type -> Container Carriers (5-unit) | R12: GOOD
B13: 130 | C13: 21153.0113 | D13: 3.081732419 | E13: 76.92 | F13: 81.3577 | G13: 325.4309 | H13: 0.3203853795 | I13: 4 | J13: 80 | K13: 3.4375 | L13: 15082.7013 | M13: 0.6591260122 | O13: No. of Containers / No. of Cars | P13: 100 | Q13: =input_containers -> 100 | R13: GOOD
B14: 140 | C14: 23496.6514 | D14: 3.178659556 | E14: 85.4424 | F14: 83.9166 | G14: 335.6664 | H14: 0.3203612048 | I14: 5 | J14: 80 | K14: 3.4375 | L14: 16752.51948 | M14: 0.6600940582 | O14: Double Stacked | P14: Yes | Q14: =input_double_stacked -> Yes | R14: GOOD
B15: 150 | C15: 24770.9932 | D15: 3.127650656 | E15: 90.0763 | F15: 82.57 | G15: 330.2799 | H15: 0.3208172426 | I15: 5 | J15: 80 | K15: 3.4375 | L15: 17686.23377 | M15: 0.6605508253 | O15: Utilization Ratio (%) | P15: 1 | Q15: =input_utilization_ratio -> 1 | R15: GOOD
B16: 160 | C16: 26045.335 | D16: 3.08301787 | E16: 94.7103 | F16: 81.3917 | G16: 325.5667 | H16: 0.3212286546 | I16: 5 | J16: 80 | K16: 3.4375 | L16: 18619.94805 | M16: 0.6609628951 | O16: Starting HPTT | P16: 7 | Q16: =calculated_hptt_ratio -> 4.123376623 | R16: ANALYZED
B17: 170 | C17: 27319.6767 | D17: 3.043635999 | E17: 99.3443 | F17: 80.352 | G17: 321.408 | H17: 0.3216016855 | I17: 5 | J17: 80 | K17: 3.4375 | L17: 19553.66234 | M17: 0.6613365224 | O17: Locomotive HP | P17: 4000 | Q17: =input_locomotive_hp -> 4000 | R17: GOOD
B18: 180 | C18: 29663.3168 | D18: 3.12114024 | E18: 107.8666 | F18: 82.3981 | G18: 329.5924 | H18: 0.3214864384 | I18: 6 | J18: 80 | K18: 3.4375 | L18: 21223.48052 | M18: 0.6619286746 | O18: Loading and Unloading Cost | P18: 100 | Q18: =input_loading_cost_per_container -> 100 | R18: =IF(P18=Q18,"GOOD","ANALYZED") -> GOOD
B19: 190 | C19: 30937.6586 | D19: 3.083897389 | E19: 112.5006 | F19: 81.4149 | G19: 325.6596 | H19: 0.3218052272 | I19: 6 | J19: 80 | K19: 3.4375 | L19: 22157.19481 | M19: 0.6622188273
B20: 200 | C20: 32212.0004 | D20: 3.050378823 | E20: 117.1345 | F20: 80.53 | G20: 322.12 | H20: 0.3220987927 | I20: 6 | J20: 80 | K20: 3.4375 | L20: 23090.90909 | M20: 0.6624860225
O21: Last Analysis Run: | P21: Number of Containers Analysis
O22: Train Length after last run = | P22: =Model!I43 -> 2650 | Q22: ft.
O23: Train Weight after last run = | P23: =gross_weight_of_train -> 3400 | Q23: tons
A24: Instructions | O24: Cargo Weight after last run = | P24: =gross_wt_of_cars -> 2800 | Q24: tons
A25: To begin, Macros must be Enabled
A26: 1. Build train using Scenario Manager. Use Build Column only! | H26: NUMBER OF CARS/CONTAINERS ANALYSIS COMPLETED!!!
A27: 2. Input variables of interest into Input Data Column (i.e. varying distances, varying fuel prices, etc.)
A28: 3. Perform Analysis of interest by clicking on buttons | R28: DO NOT TOUCH. ONLY VIEW IF YOUR ANALYSIS INFLUENCES TRAIN SPEED
A29: 4. Check Output column of Scenario Manager to make sure all the rows read GOOD.
A30: The row which reads ANALYZED is the row containing the variable that was just analyzed.
A31: 5. Copy graphs or data of interest into Word document or different spreadsheet before re-running
A32: OR click Save Run to save analysis in different sheet without graphs. | R32: 80 | S32: Iterated Speed
A33: 6. If Save Run is used, delete generated sheets when not needed. | R33: =308*hub_required_horsepower-(1.3*gross_wt_of_locomotives+0.6*k_adj_value*gross_wt_of_cars+(20*user_input_percent_grade+0.8*user_input_curve_degrees)*gross_weight_of_train+29*no_of_axles_locomotives+20*k_adj_value*no_of_axles_cars)*iterated_speed_hub-(0.03*gross_wt_of_locomotives+0.01*k_adj_value*gross_wt_of_cars)*iterated_speed_hub^2-(0.3*number_of_locomotives+k_adj_value*k_value*number_of_carswells)*iterated_speed_hub^3 -> -4.996545613e-07 | S33: Equation of Motion (Hub)
R34: =equation_maxspeed_upperbound -> 5.400124792e-12 | S34: Equation Max Speed
R35: =P24*hub_calculated_hptt_ratio -> 11545.45455 | S35: Required Horsepower
R36: 4.123376623 | S36: Calculated HPTT Ratio
I48: 0

Sheet Truck Cost
B1: SEMI-TRAILER LINE HAUL COST ANALYSIS | J1: Model: Updated April 16, 2009 | K1: Version: | L1: 0.7
B3: Cell Legend >> | C3: User Input | D3: Calculation | E3: Total Cost | H3: note: calculation cells have been locked. to freely edit cells, "unprotect sheet" (under "review" tab).
A5: Cargo and Trailer Weight | I5: Basic Trip Details | R5: Data Table | W5: Vehicle Configuration
C6: Input/Output | D6: (unit) | K6: Input/Output | L6: (unit) | R6: Yes
B7: cargo weight of one (1) container | C7: 15 | D7: tons | J7: distance | K7: 275 | L7: miles | R7: No | W7: type | X7: Container Sizes | AA7: Tare Weight | AB7: cost
J8: average speed | K8: 65 | L8: mph | W8: Standard Double | X8: 20 | Y8: 20 | AA8: 17.6
B9: tare weight of one (1) container (40 feet) | C9: 4 | D9: tons | J9: estimated annual mileage | K9: 60000 | L9: miles | W9: Standard Tractor-Semi | X9: 53 | AA9: 17.7
B10: tare weight of trailer | C10: 5 | D10: tons | W10: 6-Axle Tractor-Semi | X10: 53 | AA10: 18.85
W11: Rocky Mountain Double | X11: 40 | Y11: 30 | AA11: 22.25
B12: gross weight of one (1) car (or well) | C12: =C7+C9+C10 -> 24 | D12: tons | W12: Triple Trailer | X12: 20 | Y12: 20 | Z12: 20 | AA12: 23.55
C13: =IF(C12>110,"Warning! Recommended max of 110 tons exceeded", " ") ->  | I13: Fuel Consumption | L13: $$$ | W13: Turnpike Double | X13: 40 | Y13: 40 | AA13: 25.6
B14: number of trailers | C14: 1 | D14: trailers | K14: Input/Output | L14: (unit)
I15: p | J15: price per gallon of diesel fuel | K15: 2.5 | L15: $ USD
I16: η | J16: fuel efficiency | K16: 5.5 | L16: mpg
B17: container units transported
B18: total TEU | C18: =C14*2 -> 2 | D18: TEU | I18: F | J18: Trip Fuel Cost | K18: =K7/K16*K15 -> 125 | L18: $$$
B19: total FEU | C19: =C14 -> 1 | D19: FEU | J19: per mile | K19: =K18/K7 -> 0.4545454545 | L19: cents/mile
J20: fuel consumption | K20: =K7/K16 -> 50 | L20: gals
I22: T | J22: trip time (known) | L22: hr | M22: =K22/24 -> 0 | N22: day(s)
A23: Truck Tractor | E23: mini cost table | I23: T | J23: trip time (calculated) | K23: =K7/K8 -> 4.230769231 | L23: hr | M23: =K23/24 -> 0.1762820513 | N23: day(s)
C24: Input/Output | D24: (unit) | E24: =B42 -> fuel cost | G24: =C42 -> 125
B25: gross weight of truck tractor | C25: 5 | D25: tons | E25: maintenance cost | G25: 53.85416667 | I25: Truck Emmisions | L25: $$$
E26: labor and admin cost | G26: 194.6153846
E27: capital & invest. cost | G27: 134.75
E28: loading/unloading | G28: 0
E29: other cost | G29: 0
E30: total cost | G30: =SUM(G24:G29) -> 508.2195513
A31: Total Gross Weight of Semi-Trailer | E31: cents/ton-mile | G31: =K90 -> 7.700296232
C32: Input/Output | E32: per mile | G32: =K93 -> 1.848071096 | Y32: LP Tardiff & Associates, 2006
A33: W | B33: gross weight of semi-trailer | C33: =C25+(C14*C12) -> 29 | D33: tons | E33: =J91 -> per TEU | G33: =K91 -> 254.1097756
B34: in pounds | C34: =C33*2000 -> 58000 | D34: lbs | E34: =J92 -> per FEU | G34: =K92 -> 508.2195513
E35: cost per minute | G35: =K89/(K23*60) -> 2.00207702
I36: Maintenance | L36: $$$
B37: 1 ton = 2000 lbs | K37: Input/Output | L37: (unit)
J38: annual cost of repairs | K38: 5000 | L38: $/yr
J39: annual cost of license | K39: 1750 | L39: $/yr
J40: annual cost of insurance | K40: 5000 | L40: $/yr
B41: Cost Break Down Chart
B42: fuel cost | C42: =K18 -> 125 | D42: $$$ | J42: Annual maintenance cost | K42: =SUM(K38:K40) -> 11750 | L42: $$$/yr
B43: maintenance cost | C43: =K45 -> 53.85416667 | D43: $$$ | J43: per mile | K43: =K42/K9 -> 0.1958333333 | L43: $/mile
B44: labor and admin cost | C44: =K53 -> 194.6153846 | D44: $$$
B45: capital & invest. cost | C45: =K67 -> 134.75 | D45: $$$ | J45: Trip maintenance cost | K45: =K43*K7 -> 53.85416667 | L45: $$$
B46: loading/unloading | C46: =K75 -> 0 | D46: $$$
B47: other cost | C47: =K84 -> 0 | D47: $$$ | I47: Labor and Admin Cost | L47: $$$
K48: Input/Output | L48: (unit)
J49: driver wage | K49: 45 | L49: $/hr | M49: =K49*8 -> 360 | N49: $/day
J50: tolls | K50: 1 | L50: $/hr
J53: Trip Administrative Cost | K53: =SUM(K49:K51)*IF($K$23=0,$K$22,$K$23) -> 194.6153846 | L53: $$$
I56: Capital and Investment Cost | L56: $$$
K57: Input/Output | L57: (unit)
J58: purchase price | K58: 110000 | L58: $$$
J59: years truck will be owned | K59: 5 | L59: years
J60: expected salvage value at end of ownership | K60: 18000 | L60: $$$
J62: annual interest rate | K62: 0.1 | L62: %
J64: Depreciation per mile | K64: =(K58-K60)/(K9*K59) -> 0.3066666667 | L64: $/mile
J65: Interest charges per mile | K65: =(K58*K59*K62)/(K9*K59) -> 0.1833333333 | L65: $/mile
J67: Trip Depreciation and Interest Cost | K67: =(K64+K65)*K7 -> 134.75 | L67: $$$
I70: Loading and Unloading Cost (experimental) | L70: $$$
B71: Data Sources: | J71: set input to 0 if not in use | K71: Input/Output | L71: (unit)
B72: http://www.atri-online.org/research/results/economicanalysis/Operational_Costs_OnePager.pdf | J72: loading cost per unit container | K72: 0 | L72: $$$
B73: http://www.ooida.com/trucking_tools/cpm/cost_per_mile.htm | J73: unloading cost per unit container | K73: 0 | L73: $$$
B74: http://www.truckinfo.net/trucking/shop-talk/costpermileadvice.htm
B75: http://tonto.eia.doe.gov/oog/info/gdu/gasdiesel.asp | J75: Total Loading and Unloading Cost (experimental) | K75: =(K72*C14)+(K73*C14) -> 0 | L75: $$$
I78: Other Cost $$$ | L78: $$$
B79: Note: Calculation cells have been locked. To freely edit cells, "Unprotect Sheet" (under "Review" tab). | K79: Input/Output | L79: (unit)
J80: other | L80: percent
J81: other | L81: $/hr
J82: other | L82: $/mile
J84: Total Other Cost | K84: =K80*(K18+K45+K53+K67+K75)+(K81*MAX(K22,K23))+(K82*K7) -> 0 | L84: $$$
I87: TOTAL TRUCK COST | L87: $$$
K88: Input/Output | L88: (unit)
J89: Total Truck Cost | K89: =SUM(K18,K45,K53, K67,K75,K84) -> 508.2195513 | L89: $$$
J90: per ton-mile | K90: =K89/(C12*K7)*100 -> 7.700296232 | L90: cents/ton-mile
J91: per TEU | K91: =K89/C18 -> 254.1097756 | L91: $/TEU
J92: per FEU | K92: =K89/C19 -> 508.2195513 | L92: $/FEU
J93: per mile | K93: =K89/K7 -> 1.848071096 | L93: $/mile

Sheet BNSF (hidden)
A1: BNSF 6003 Rail Miles Inquiry
A2: Search Date - Aug 24 , 2009 | Effective Date - Aug 24 , 2009
I3: DO NOT TOUCH
A4: Origin | D4: Destination | G4: Rail Miles | L4: City/Terminals
A5: City | B5: State | C5: SPLC | D5: City | E5: State | F5: SPLC | J5: Miles | L5: ALBUQUERQUE
A6: ALBUQUERQUE | B6: NM | C6: 774900 | D6: CHICAGO | E6: IL | F6: 380000 | G6: 1277 | I6: =A6&D6 -> ALBUQUERQUECHICAGO | J6: =G6 -> 1277 | L6: ALLIANCE
G7: OD Pair Unavailable | I7: =A7&D7 ->  | J7: =G7 -> OD Pair Unavailable | L7: AMARILLO
A8: ALLIANCE | B8: TX | C8: 668100 | D8: CHICAGO | E8: IL | F8: 380000 | G8: 963 | I8: ALLIANCECHICAGO | J8: 963 | L8: ATLANTA
A9: ALLIANCE | B9: TX | C9: 668100 | D9: GLOBAL GATEWAY SO | E9: CA | F9: 883735 | G9: 1521 | I9: ALLIANCEGLOBAL GATEWAY SO | J9: 1521 | L9: BARBOURS CUT
A10: ALLIANCE | B10: TX | C10: 668100 | D10: KANSAS CITY | E10: KS | F10: 581520 | G10: 529 | I10: ALLIANCEKANSAS CITY | J10: 529 | L10: BIRMINGHAM
A11: ALLIANCE | B11: TX | C11: 668100 | D11: LA HARBOR APM TERMI | E11: CA | F11: 883737 | G11: 1588 | I11: ALLIANCELA HARBOR APM TERMI | J11: 1588 | L11: CHICAGO
A12: ALLIANCE | B12: TX | C12: 668100 | D12: LONG BEACH A PIER | E12: CA | F12: 883743 | G12: 1587 | I12: ALLIANCELONG BEACH A PIER | J12: 1587 | L12: CHICAGO WESTERN AVE
A13: ALLIANCE | B13: TX | C13: 668100 | D13: LONG BEACH ITS | E13: CA | F13: 883710 | G13: 1587 | I13: ALLIANCELONG BEACH ITS | J13: 1587 | L13: DENVER
A14: ALLIANCE | B14: TX | C14: 668100 | D14: LONG BEACH J PIER | E14: CA | F14: 883715 | G14: 1588 | I14: ALLIANCELONG BEACH J PIER | J14: 1588 | L14: DILWORTH
A15: ALLIANCE | B15: TX | C15: 668100 | D15: LONG BEACH LBC | E15: CA | F15: 883733 | G15: 1587 | I15: ALLIANCELONG BEACH LBC | J15: 1587 | L15: EAST WINONA
A16: ALLIANCE | B16: TX | C16: 668100 | D16: LONG BEACH PCT | E16: CA | F16: 883209 | G16: 1588 | I16: ALLIANCELONG BEACH PCT | J16: 1588 | L16: EL PASO
A17: ALLIANCE | B17: TX | C17: 668100 | D17: LONG BEACH T PIER | E17: CA | F17: f | G17: 1587 | I17: ALLIANCELONG BEACH T PIER | J17: 1587 | L17: FRESNO
A18: ALLIANCE | B18: TX | C18: 668100 | D18: LOS ANGELES | E18: CA | F18: 883000 | G18: 1545 | I18: ALLIANCELOS ANGELES | J18: 1545 | L18: GLOBAL GATEWAY SO
A19: ALLIANCE | B19: TX | C19: 668100 | D19: OAKLAND INT GATEWAY | E19: CA | F19: 876411 | G19: 1861 | I19: ALLIANCEOAKLAND INT GATEWAY | J19: 1861 | L19: HOUSTON
A20: ALLIANCE | B20: TX | C20: 668100 | D20: PHOENIX | E20: AZ | F20: 797000 | G20: 1247 | I20: ALLIANCEPHOENIX | J20: 1247 | L20: KANSAS CITY
A21: ALLIANCE | B21: TX | C21: 668100 | D21: SAN BERNARDINO | E21: CA | F21: 880270 | G21: 1485 | I21: ALLIANCESAN BERNARDINO | J21: 1485 | L21: LA HARBOR APM TERMI
A22: ALLIANCE | B22: TX | C22: 668100 | D22: SOUTH SEATTLE | E22: WA | F22: 845203 | G22: 2385 | I22: ALLIANCESOUTH SEATTLE | J22: 2385 | L22: LOGISTICS PARK CHIC
A23: ALLIANCE | B23: TX | C23: 668100 | D23: STOCKTON | E23: CA | F23: 875640 | G23: 1779 | I23: ALLIANCESTOCKTON | J23: 1779 | L23: LONG BEACH A PIER
A24: ALLIANCE | B24: TX | C24: 668100 | D24: TICTF | E24: CA | F24: 883213 | G24: 1588 | I24: ALLIANCETICTF | J24: 1588 | L24: LONG BEACH CUT
A25: ALLIANCE | B25: TX | C25: 668100 | D25: WEST BASIN | E25: CA | F25: 883252 | G25: 1588 | I25: ALLIANCEWEST BASIN | J25: 1588 | L25: LONG BEACH ITS
G26: OD Pair Unavailable | J26: OD Pair Unavailable | L26: LONG BEACH J PIER
A27: AMARILLO | B27: TX | C27: 672700 | D27: GLOBAL GATEWAY SO | E27: CA | F27: 883735 | G27: 1192 | I27: AMARILLOGLOBAL GATEWAY SO | J27: 1192 | L27: LONG BEACH LBC
A28: AMARILLO | B28: TX | C28: 672700 | D28: OAKLAND INT GATEWAY | E28: CA | F28: 876411 | G28: 1532 | I28: AMARILLOOAKLAND INT GATEWAY | J28: 1532 | L28: LONG BEACH PCT
A29: AMARILLO | B29: TX | C29: 672700 | D29: TICTF | E29: CA | F29: 883213 | G29: 1259 | I29: AMARILLOTICTF | J29: 1259 | L29: LONG BEACH T PIER
G30: OD Pair Unavailable | J30: OD Pair Unavailable | L30: LOS ANGELES
A31: ATLANTA | B31: GA | C31: 456200 | D31: GLOBAL GATEWAY SO | E31: CA | F31: 883735 | G31: 2543 | I31: ATLANTAGLOBAL GATEWAY SO | J31: 2543 | L31: LUBBOCK
A32: ATLANTA | B32: GA | C32: 456200 | D32: LA HARBOR APM TERMI | E32: CA | F32: 883737 | G32: 2610 | I32: ATLANTALA HARBOR APM TERMI | J32: 2610 | L32: MEMPHIS
A33: ATLANTA | B33: GA | C33: 456200 | D33: LOS ANGELES | E33: CA | F33: 883000 | G33: 2567 | I33: ATLANTALOS ANGELES | J33: 2567 | L33: NEW ORLEANS
A34: ATLANTA | B34: GA | C34: 456200 | D34: OAKLAND INT GATEWAY | E34: CA | F34: 876411 | G34: 2883 | I34: ATLANTAOAKLAND INT GATEWAY | J34: 2883 | L34: OAKLAND INT GATEWAY
A35: ATLANTA | B35: GA | C35: 456200 | D35: PHOENIX | E35: AZ | F35: 797000 | G35: 2269 | I35: ATLANTAPHOENIX | J35: 2269 | L35: OMAHA
A36: ATLANTA | B36: GA | C36: 456200 | D36: STOCKTON | E36: CA | F36: 875640 | G36: 2801 | I36: ATLANTASTOCKTON | J36: 2801 | L36: PHOENIX
G37: OD Pair Unavailable | J37: OD Pair Unavailable | L37: PORTLAND
A38: BARBOURS CUT | B38: TX | C38: 684815 | D38: LA HARBOR APM TERMI | E38: CA | F38: 883737 | G38: 1824 | I38: BARBOURS CUTLA HARBOR APM TERMI | J38: 1824 | L38: SAN BERNARDINO
A39: BARBOURS CUT | B39: TX | C39: 684815 | D39: LOS ANGELES | E39: CA | F39: 883000 | G39: 1781 | I39: BARBOURS CUTLOS ANGELES | J39: 1781 | L39: SEATTLE
A40: BARBOURS CUT | B40: TX | C40: 684815 | D40: OAKLAND INT GATEWAY | E40: CA | F40: 876411 | G40: 2097 | I40: BARBOURS CUTOAKLAND INT GATEWAY | J40: 2097 | L40: SOUTH SEATTLE
J41: 0 | L41: SPOKANE
A42: BIRMINGHAM | B42: AL | C42: 472600 | D42: GLOBAL GATEWAY SO | E42: CA | F42: 883735 | G42: 2305 | I42: BIRMINGHAMGLOBAL GATEWAY SO | J42: 2305 | L42: ST LOUIS
A43: BIRMINGHAM | B43: AL | C43: 472600 | D43: LONG BEACH A PIER | E43: CA | F43: 883743 | G43: 2371 | I43: BIRMINGHAMLONG BEACH A PIER | J43: 2371 | L43: ST PAUL
A44: BIRMINGHAM | B44: AL | C44: 472600 | D44: LONG BEACH J PIER | E44: CA | F44: 883715 | G44: 2372 | I44: BIRMINGHAMLONG BEACH J PIER | J44: 2372 | L44: STOCKTON
A45: BIRMINGHAM | B45: AL | C45: 472600 | D45: LOS ANGELES | E45: CA | F45: 883000 | G45: 2329 | I45: BIRMINGHAMLOS ANGELES | J45: 2329 | L45: TACOMA
A46: BIRMINGHAM | B46: AL | C46: 472600 | D46: OAKLAND INT GATEWAY | E46: CA | F46: 876411 | G46: 2645 | I46: BIRMINGHAMOAKLAND INT GATEWAY | J46: 2645 | L46: TACOMA BLAIR
A47: BIRMINGHAM | B47: AL | C47: 472600 | D47: STOCKTON | E47: CA | F47: 875640 | G47: 2563 | I47: BIRMINGHAMSTOCKTON | J47: 2563 | L47: TACOMA EXP
A48: BIRMINGHAM | B48: AL | C48: 472600 | D48: TICTF | E48: CA | F48: 883213 | G48: 2372 | I48: BIRMINGHAMTICTF | J48: 2372 | L48: TACOMA SIM
A49: BIRMINGHAM | B49: AL | C49: 472600 | D49: WEST BASIN | E49: CA | F49: 883252 | G49: 2372 | I49: BIRMINGHAMWEST BASIN | J49: 2372 | L49: TICTF
G50: OD Pair Unavailable | J50: OD Pair Unavailable | L50: WEST BASIN
A51: CHICAGO | B51: IL | C51: 380000 | D51: ALBUQUERQUE | E51: NM | F51: 774900 | G51: 1277 | I51: CHICAGOALBUQUERQUE | J51: 1277
A52: CHICAGO | B52: IL | C52: 380000 | D52: ALLIANCE | E52: TX | F52: 668100 | G52: 963 | I52: CHICAGOALLIANCE | J52: 963
A53: CHICAGO | B53: IL | C53: 380000 | D53: DENVER | E53: CO | F53: 744300 | G53: 1009 | I53: CHICAGODENVER | J53: 1009
A54: CHICAGO | B54: IL | C54: 380000 | D54: DILWORTH | E54: MN | F54: 503963 | G54: 672 | I54: CHICAGODILWORTH | J54: 672
A55: CHICAGO | B55: IL | C55: 380000 | D55: EL PASO | E55: TX | F55: 696900 | G55: 1367 | I55: CHICAGOEL PASO | J55: 1367
A56: CHICAGO | B56: IL | C56: 380000 | D56: FRESNO | E56: CA | F56: 878600 | G56: 2234 | I56: CHICAGOFRESNO | J56: 2234
A57: CHICAGO | B57: IL | C57: 380000 | D57: GLOBAL GATEWAY SO | E57: CA | F57: 883735 | G57: 2096 | I57: CHICAGOGLOBAL GATEWAY SO | J57: 2096
A58: CHICAGO | B58: IL | C58: 380000 | D58: HOUSTON | E58: TX | F58: 684800 | G58: 1183 | I58: CHICAGOHOUSTON | J58: 1183
A59: CHICAGO | B59: IL | C59: 380000 | D59: KANSAS CITY | E59: KS | F59: 581520 | G59: 434 | I59: CHICAGOKANSAS CITY | J59: 434
A60: CHICAGO | B60: IL | C60: 380000 | D60: LA HARBOR APM TERMI | E60: CA | F60: 883737 | G60: 2163 | I60: CHICAGOLA HARBOR APM TERMI | J60: 2163
A61: CHICAGO | B61: IL | C61: 380000 | D61: LONG BEACH A PIER | E61: CA | F61: 883743 | G61: 2162 | I61: CHICAGOLONG BEACH A PIER | J61: 2162
A62: CHICAGO | B62: IL | C62: 380000 | D62: LONG BEACH J PIER | E62: CA | F62: 883715 | G62: 2163 | I62: CHICAGOLONG BEACH J PIER | J62: 2163
A63: CHICAGO | B63: IL | C63: 380000 | D63: LONG BEACH LBC | E63: CA | F63: 883733 | G63: 2162 | I63: CHICAGOLONG BEACH LBC | J63: 2162
A64: CHICAGO | B64: IL | C64: 380000 | D64: LONG BEACH PCT | E64: CA | F64: 883209 | G64: 2163 | I64: CHICAGOLONG BEACH PCT | J64: 2163
A65: CHICAGO | B65: IL | C65: 380000 | D65: LONG BEACH T PIER | E65: CA | F65: 883734 | G65: 2162 | I65: CHICAGOLONG BEACH T PIER | J65: 2162
A66: CHICAGO | B66: IL | C66: 380000 | D66: LOS ANGELES | E66: CA | F66: 883000 | G66: 2120 | I66: CHICAGOLOS ANGELES | J66: 2120
A67: CHICAGO | B67: IL | C67: 380000 | D67: OAKLAND INT GATEWAY | E67: CA | F67: 876411 | G67: 2418 | I67: CHICAGOOAKLAND INT GATEWAY | J67: 2418
A68: CHICAGO | B68: IL | C68: 380000 | D68: OMAHA | E68: NE | F68: 553200 | G68: 495 | I68: CHICAGOOMAHA | J68: 495
A69: CHICAGO | B69: IL | C69: 380000 | D69: PHOENIX | E69: AZ | F69: 797000 | G69: 1821 | I69: CHICAGOPHOENIX | J69: 1821
A70: CHICAGO | B70: IL | C70: 380000 | D70: PORTLAND | E70: OR | F70: 853470 | G70: 2216 | I70: CHICAGOPORTLAND | J70: 2216
A71: CHICAGO | B71: IL | C71: 380000 | D71: SAN BERNARDINO | E71: CA | F71: 880270 | G71: 2060 | I71: =A71&D71 -> CHICAGOSAN BERNARDINO | J71: =G71 -> 2060
A72: CHICAGO | B72: IL | C72: 380000 | D72: SEATTLE | E72: WA | F72: 845200 | G72: 2161 | I72: CHICAGOSEATTLE | J72: 2161
A73: CHICAGO | B73: IL | C73: 380000 | D73: SOUTH SEATTLE | E73: WA | F73: 845203 | G73: 2170 | I73: CHICAGOSOUTH SEATTLE | J73: 2170
A74: CHICAGO | B74: IL | C74: 380000 | D74: SPOKANE | E74: WA | F74: 840600 | G74: 1832 | I74: CHICAGOSPOKANE | J74: 1832
A75: CHICAGO | B75: IL | C75: 380000 | D75: ST PAUL | E75: MN | F75: 504450 | G75: 423 | I75: CHICAGOST PAUL | J75: 423
A76: CHICAGO | B76: IL | C76: 380000 | D76: STOCKTON | E76: CA | F76: 875640 | G76: 2336 | I76: CHICAGOSTOCKTON | J76: 2336
A77: CHICAGO | B77: IL | C77: 380000 | D77: TACOMA | E77: WA | F77: 846200 | G77: 2201 | I77: CHICAGOTACOMA | J77: 2201
A78: CHICAGO | B78: IL | C78: 380000 | D78: TACOMA BLAIR | E78: WA | F78: 846206 | G78: 2202 | I78: CHICAGOTACOMA BLAIR | J78: 2202
A79: CHICAGO | B79: IL | C79: 380000 | D79: TACOMA EXP | E79: WA | F79: 846203 | G79: 2201 | I79: CHICAGOTACOMA EXP | J79: 2201
A80: CHICAGO | B80: IL | C80: 380000 | D80: TACOMA PCT | E80: WA | F80: 846209 | G80: 2201 | I80: CHICAGOTACOMA PCT | J80: 2201
A81: CHICAGO | B81: IL | C81: 380000 | D81: TACOMA SIM | E81: WA | F81: 846212 | G81: 2202 | I81: CHICAGOTACOMA SIM | J81: 2202
A82: CHICAGO | B82: IL | C82: 380000 | D82: TICTF | E82: CA | F82: 883213 | G82: 2163 | I82: CHICAGOTICTF | J82: 2163
A83: CHICAGO | B83: IL | C83: 380000 | D83: WEST BASIN | E83: CA | F83: 883252 | G83: 2163 | I83: CHICAGOWEST BASIN | J83: 2163
A84: CHICAGO WESTERN AVE | B84: IL | C84: 380423 | D84: LONG BEACH PCT | E84: CA | F84: 883209 | G84: OD Pair Unavailable | I84: CHICAGO WESTERN AVELONG BEACH PCT | J84: OD Pair Unavailable
G85: OD Pair Unavailable | J85: OD Pair Unavailable
A86: DENVER | B86: CO | C86: 744300 | D86: CHICAGO | E86: IL | F86: 380000 | G86: 1009 | I86: DENVERCHICAGO | J86: 1009
A87: DENVER | B87: CO | C87: 744300 | D87: SEATTLE | E87: WA | F87: 845200 | G87: 1604 | I87: DENVERSEATTLE | J87: 1604
A88: DENVER | B88: CO | C88: 744300 | D88: TACOMA | E88: WA | F88: 846200 | G88: 1644 | I88: DENVERTACOMA | J88: 1644
A89: DENVER | B89: CO | C89: 744300 | D89: TACOMA BLAIR | E89: WA | F89: 846206 | G89: 1645 | I89: DENVERTACOMA BLAIR | J89: 1645
A90: DENVER | B90: CO | C90: 744300 | D90: TACOMA EXP | E90: WA | F90: 846203 | G90: 1644 | I90: DENVERTACOMA EXP | J90: 1644
A91: DENVER | B91: CO | C91: 744300 | D91: TACOMA PCT | E91: WA | F91: 846209 | G91: 1644 | I91: DENVERTACOMA PCT | J91: 1644
A92: DENVER | B92: CO | C92: 744300 | D92: TACOMA SIM | E92: WA | F92: 846212 | G92: 1645 | I92: DENVERTACOMA SIM | J92: 1645
G93: OD Pair Unavailable | J93: OD Pair Unavailable
A94: DILWORTH | B94: MN | C94: 503963 | D94: CHICAGO | E94: IL | F94: 380000 | G94: 672 | I94: DILWORTHCHICAGO | J94: 672
A95: DILWORTH | B95: MN | C95: 503963 | D95: SEATTLE | E95: WA | F95: 845200 | G95: 1489 | I95: DILWORTHSEATTLE | J95: 1489
A96: DILWORTH | B96: MN | C96: 503963 | D96: TACOMA | E96: WA | F96: 846200 | G96: 1529 | I96: DILWORTHTACOMA | J96: 1529
A97: DILWORTH | B97: MN | C97: 503963 | D97: TACOMA BLAIR | E97: WA | F97: 846206 | G97: 1530 | I97: DILWORTHTACOMA BLAIR | J97: 1530
J98: 0
A99: EAST WINONA | B99: WI | C99: 329886 | D99: SEATTLE | E99: WA | F99: 845200 | G99: 1841 | I99: EAST WINONASEATTLE | J99: 1841
A100: EAST WINONA | B100: WI | C100: 329886 | D100: TACOMA | E100: WA | F100: 846200 | G100: 1881 | I100: EAST WINONATACOMA | J100: 1881
G101: OD Pair Unavailable | J101: OD Pair Unavailable
A102: EL PASO | B102: TX | C102: 696900 | D102: CHICAGO | E102: IL | F102: 380000 | G102: 1367 | I102: EL PASOCHICAGO | J102: 1367
A103: EL PASO | B103: TX | C103: 696900 | D103: LOS ANGELES | E103: CA | F103: 883000 | G103: 1096 | I103: EL PASOLOS ANGELES | J103: 1096
J104: 0
A105: FRESNO | B105: CA | C105: 878600 | D105: CHICAGO | E105: IL | F105: 380000 | G105: 2234 | I105: FRESNOCHICAGO | J105: 2234
J106: 0
A107: GLOBAL GATEWAY SO | B107: CA | C107: 883735 | D107: ALLIANCE | E107: TX | F107: 668100 | G107: 1521 | I107: GLOBAL GATEWAY SOALLIANCE | J107: 1521
A108: GLOBAL GATEWAY SO | B108: CA | C108: 883735 | D108: CHICAGO | E108: IL | F108: 380000 | G108: 2096 | I108: GLOBAL GATEWAY SOCHICAGO | J108: 2096
A109: GLOBAL GATEWAY SO | B109: CA | C109: 883735 | D109: HOUSTON | E109: TX | F109: 684800 | G109: 1734 | I109: GLOBAL GATEWAY SOHOUSTON | J109: 1734
A110: GLOBAL GATEWAY SO | B110: CA | C110: 883735 | D110: KANSAS CITY | E110: KS | F110: 581520 | G110: 1661 | I110: GLOBAL GATEWAY SOKANSAS CITY | J110: 1661
A111: GLOBAL GATEWAY SO | B111: CA | C111: 883735 | D111: LOGISTICS PARK CHIC | E111: IL | F111: 384020 | G111: 2068 | I111: GLOBAL GATEWAY SOLOGISTICS PARK CHIC | J111: 2068
A112: GLOBAL GATEWAY SO | B112: CA | C112: 883735 | D112: MEMPHIS | E112: TN | F112: 439900 | G112: 2066 | I112: GLOBAL GATEWAY SOMEMPHIS | J112: 2066
G113: OD Pair Unavailable | J113: OD Pair Unavailable
A114: HOUSTON | B114: TX | C114: 684800 | D114: CHICAGO | E114: IL | F114: 380000 | G114: 1183 | I114: HOUSTONCHICAGO | J114: 1183
A115: HOUSTON | B115: TX | C115: 684800 | D115: GLOBAL GATEWAY SO | E115: CA | F115: 883735 | G115: 1734 | I115: HOUSTONGLOBAL GATEWAY SO | J115: 1734
A116: HOUSTON | B116: TX | C116: 684800 | D116: LA HARBOR APM TERMI | E116: CA | F116: 883737 | G116: 1801 | I116: HOUSTONLA HARBOR APM TERMI | J116: 1801
A117: HOUSTON | B117: TX | C117: 684800 | D117: LONG BEACH A PIER | E117: CA | F117: 883743 | G117: 1800 | I117: HOUSTONLONG BEACH A PIER | J117: 1800
A118: HOUSTON | B118: TX | C118: 684800 | D118: LONG BEACH ITS | E118: CA | F118: 883710 | G118: 1800 | I118: HOUSTONLONG BEACH ITS | J118: 1800
A119: HOUSTON | B119: TX | C119: 684800 | D119: LONG BEACH J PIER | E119: CA | F119: 883715 | G119: 1801 | I119: HOUSTONLONG BEACH J PIER | J119: 1801
A120: HOUSTON | B120: TX | C120: 684800 | D120: LONG BEACH PCT | E120: CA | F120: 883209 | G120: 1801 | I120: HOUSTONLONG BEACH PCT | J120: 1801
A121: HOUSTON | B121: TX | C121: 684800 | D121: LONG BEACH T PIER | E121: CA | F121: 883734 | G121: 1800 | I121: HOUSTONLONG BEACH T PIER | J121: 1800
A122: HOUSTON | B122: TX | C122: 684800 | D122: LOS ANGELES | E122: CA | F122: 883000 | G122: 1758 | I122: HOUSTONLOS ANGELES | J122: 1758
A123: HOUSTON | B123: TX | C123: 684800 | D123: OAKLAND INT GATEWAY | E123: CA | F123: 876411 | G123: 2074 | I123: HOUSTONOAKLAND INT GATEWAY | J123: 2074
A124: HOUSTON | B124: TX | C124: 684800 | D124: STOCKTON | E124: CA | F124: 875640 | G124: 1992 | I124: HOUSTONSTOCKTON | J124: 1992
A125: HOUSTON | B125: TX | C125: 684800 | D125: TICTF | E125: CA | F125: 883213 | G125: 1801 | I125: HOUSTONTICTF | J125: 1801
A126: HOUSTON | B126: TX | C126: 684800 | D126: WEST BASIN | E126: CA | F126: 883252 | G126: 1801 | I126: HOUSTONWEST BASIN | J126: 1801
G127: OD Pair Unavailable | J127: OD Pair Unavailable
A128: KANSAS CITY | B128: KS | C128: 581520 | D128: CHICAGO | E128: IL | F128: 380000 | G128: 434 | I128: KANSAS CITYCHICAGO | J128: 434
A129: KANSAS CITY | B129: KS | C129: 581520 | D129: GLOBAL GATEWAY SO | E129: CA | F129: 883735 | G129: 1661 | I129: KANSAS CITYGLOBAL GATEWAY SO | J129: 1661
A130: KANSAS CITY | B130: KS | C130: 581520 | D130: LA HARBOR APM TERMI | E130: CA | F130: 883737 | G130: 1728 | I130: KANSAS CITYLA HARBOR APM TERMI | J130: 1728
A131: KANSAS CITY | B131: KS | C131: 581520 | D131: LONG BEACH A PIER | E131: CA | F131: 883743 | G131: 1727 | I131: KANSAS CITYLONG BEACH A PIER | J131: 1727
A132: KANSAS CITY | B132: KS | C132: 581520 | D132: LONG BEACH ITS | E132: CA | F132: 883710 | G132: 1727 | I132: KANSAS CITYLONG BEACH ITS | J132: 1727
A133: KANSAS CITY | B133: KS | C133: 581520 | D133: LONG BEACH J PIER | E133: CA | F133: 883715 | G133: 1728 | I133: KANSAS CITYLONG BEACH J PIER | J133: 1728
A134: KANSAS CITY | B134: KS | C134: 581520 | D134: LONG BEACH LBC | E134: CA | F134: 883733 | G134: 1727 | I134: KANSAS CITYLONG BEACH LBC | J134: 1727
A135: KANSAS CITY | B135: KS | C135: 581520 | D135: LONG BEACH PCT | E135: CA | F135: 883209 | G135: 1728 | I135: =A135&D135 -> KANSAS CITYLONG BEACH PCT | J135: =G135 -> 1728
A136: KANSAS CITY | B136: KS | C136: 581520 | D136: LONG BEACH T PIER | E136: CA | F136: 883734 | G136: 1727 | I136: KANSAS CITYLONG BEACH T PIER | J136: 1727
A137: KANSAS CITY | B137: KS | C137: 581520 | D137: LOS ANGELES | E137: CA | F137: 883000 | G137: 1685 | I137: KANSAS CITYLOS ANGELES | J137: 1685
A138: KANSAS CITY | B138: KS | C138: 581520 | D138: OAKLAND INT GATEWAY | E138: CA | F138: 876411 | G138: 2001 | I138: KANSAS CITYOAKLAND INT GATEWAY | J138: 2001
A139: KANSAS CITY | B139: KS | C139: 581520 | D139: PHOENIX | E139: AZ | F139: 797000 | G139: 1387 | I139: KANSAS CITYPHOENIX | J139: 1387
A140: KANSAS CITY | B140: KS | C140: 581520 | D140: SAN BERNARDINO | E140: CA | F140: 880270 | G140: 1625 | I140: KANSAS CITYSAN BERNARDINO | J140: 1625
A141: KANSAS CITY | B141: KS | C141: 581520 | D141: SEATTLE | E141: WA | F141: 845200 | G141: 2019 | I141: KANSAS CITYSEATTLE | J141: 2019
A142: KANSAS CITY | B142: KS | C142: 581520 | D142: STOCKTON | E142: CA | F142: 875640 | G142: 1919 | I142: KANSAS CITYSTOCKTON | J142: 1919
A143: KANSAS CITY | B143: KS | C143: 581520 | D143: TACOMA | E143: WA | F143: 846200 | G143: 2059 | I143: KANSAS CITYTACOMA | J143: 2059
A144: KANSAS CITY | B144: KS | C144: 581520 | D144: TACOMA BLAIR | E144: WA | F144: 846206 | G144: 2060 | I144: KANSAS CITYTACOMA BLAIR | J144: 2060
A145: KANSAS CITY | B145: KS | C145: 581520 | D145: TACOMA EXP | E145: WA | F145: 846203 | G145: 2059 | I145: KANSAS CITYTACOMA EXP | J145: 2059
A146: KANSAS CITY | B146: KS | C146: 581520 | D146: TACOMA PCT | E146: WA | F146: 846209 | G146: 2059 | I146: KANSAS CITYTACOMA PCT | J146: 2059
A147: KANSAS CITY | B147: KS | C147: 581520 | D147: TIC SEASIDE | E147: CA | F147: 883213 | G147: 1728 | I147: KANSAS CITYTIC SEASIDE | J147: 1728
A148: KANSAS CITY | B148: KS | C148: 581520 | D148: TICTF | E148: CA | F148: 883213 | G148: 1728 | I148: KANSAS CITYTICTF | J148: 1728
A149: KANSAS CITY | B149: KS | C149: 581520 | D149: WEST BASIN | E149: CA | F149: 883252 | G149: 1728 | I149: KANSAS CITYWEST BASIN | J149: 1728
G150: OD Pair Unavailable | J150: OD Pair Unavailable
A151: LA HARBOR APM TERMI | B151: CA | C151: 883737 | D151: ALLIANCE | E151: TX | F151: 668100 | G151: 1588 | I151: LA HARBOR APM TERMIALLIANCE | J151: 1588
A152: LA HARBOR APM TERMI | B152: CA | C152: 883737 | D152: BARBOURS CUT | E152: TX | F152: 684815 | G152: 1824 | I152: LA HARBOR APM TERMIBARBOURS CUT | J152: 1824
A153: LA HARBOR APM TERMI | B153: CA | C153: 883737 | D153: CHICAGO | E153: IL | F153: 380000 | G153: 2163 | I153: LA HARBOR APM TERMICHICAGO | J153: 2163
A154: LA HARBOR APM TERMI | B154: CA | C154: 883737 | D154: HOUSTON | E154: TX | F154: 684800 | G154: 1801 | I154: LA HARBOR APM TERMIHOUSTON | J154: 1801
A155: LA HARBOR APM TERMI | B155: CA | C155: 883737 | D155: KANSAS CITY | E155: KS | F155: 581520 | G155: 1728 | I155: LA HARBOR APM TERMIKANSAS CITY | J155: 1728
A156: LA HARBOR APM TERMI | B156: CA | C156: 883737 | D156: LOGISTICS PARK CHIC | E156: IL | F156: 384020 | G156: 2135 | I156: LA HARBOR APM TERMILOGISTICS PARK CHIC | J156: 2135
A157: LA HARBOR APM TERMI | B157: CA | C157: 883737 | D157: MEMPHIS | E157: TN | F157: 439900 | G157: 2133 | I157: LA HARBOR APM TERMIMEMPHIS | J157: 2133
J158: 0
A159: LOGISTICS PARK CHIC | B159: IL | C159: 384020 | D159: DENVER | E159: CO | F159: 744300 | G159: 981 | I159: LOGISTICS PARK CHICDENVER | J159: 981
A160: LOGISTICS PARK CHIC | B160: IL | C160: 384020 | D160: GLOBAL GATEWAY SO | E160: CA | F160: 883735 | G160: 2068 | I160: LOGISTICS PARK CHICGLOBAL GATEWAY SO | J160: 2068
A161: LOGISTICS PARK CHIC | B161: IL | C161: 384020 | D161: LA HARBOR APM TERMI | E161: CA | F161: 883737 | G161: 2135 | I161: LOGISTICS PARK CHICLA HARBOR APM TERMI | J161: 2135
A162: LOGISTICS PARK CHIC | B162: IL | C162: 384020 | D162: LONG BEACH A PIER | E162: CA | F162: 883743 | G162: 2134 | I162: LOGISTICS PARK CHICLONG BEACH A PIER | J162: 2134
A163: LOGISTICS PARK CHIC | B163: IL | C163: 384020 | D163: LONG BEACH J PIER | E163: CA | F163: 883715 | G163: 2135 | I163: LOGISTICS PARK CHICLONG BEACH J PIER | J163: 2135
A164: LOGISTICS PARK CHIC | B164: IL | C164: 384020 | D164: LONG BEACH LBC | E164: CA | F164: 883733 | G164: 2134 | I164: LOGISTICS PARK CHICLONG BEACH LBC | J164: 2134
A165: LOGISTICS PARK CHIC | B165: IL | C165: 384020 | D165: LONG BEACH PCT | E165: CA | F165: 883209 | G165: 2135 | I165: LOGISTICS PARK CHICLONG BEACH PCT | J165: 2135
A166: LOGISTICS PARK CHIC | B166: IL | C166: 384020 | D166: LONG BEACH T PIER | E166: CA | F166: 883734 | G166: 2134 | I166: LOGISTICS PARK CHICLONG BEACH T PIER | J166: 2134
A167: LOGISTICS PARK CHIC | B167: IL | C167: 384020 | D167: LOS ANGELES | E167: CA | F167: 883000 | G167: 2092 | I167: LOGISTICS PARK CHICLOS ANGELES | J167: 2092
A168: LOGISTICS PARK CHIC | B168: IL | C168: 384020 | D168: OAKLAND INT GATEWAY | E168: CA | F168: 876411 | G168: 2390 | I168: LOGISTICS PARK CHICOAKLAND INT GATEWAY | J168: 2390
A169: LOGISTICS PARK CHIC | B169: IL | C169: 384020 | D169: OMAHA | E169: NE | F169: 553200 | G169: 467 | I169: LOGISTICS PARK CHICOMAHA | J169: 467
A170: LOGISTICS PARK CHIC | B170: IL | C170: 384020 | D170: PORTLAND | E170: OR | F170: 853470 | G170: 2260 | I170: LOGISTICS PARK CHICPORTLAND | J170: 2260
A171: LOGISTICS PARK CHIC | B171: IL | C171: 384020 | D171: SEATTLE | E171: WA | F171: 845200 | G171: 2205 | I171: LOGISTICS PARK CHICSEATTLE | J171: 2205
A172: LOGISTICS PARK CHIC | B172: IL | C172: 384020 | D172: TACOMA | E172: WA | F172: 846200 | G172: 2245 | I172: LOGISTICS PARK CHICTACOMA | J172: 2245
A173: LOGISTICS PARK CHIC | B173: IL | C173: 384020 | D173: TACOMA BLAIR | E173: WA | F173: 846206 | G173: 2246 | I173: LOGISTICS PARK CHICTACOMA BLAIR | J173: 2246
A174: LOGISTICS PARK CHIC | B174: IL | C174: 384020 | D174: TACOMA EXP | E174: WA | F174: 846203 | G174: 2245 | I174: LOGISTICS PARK CHICTACOMA EXP | J174: 2245
A175: LOGISTICS PARK CHIC | B175: IL | C175: 384020 | D175: TACOMA PCT | E175: WA | F175: 846209 | G175: 2245 | I175: LOGISTICS PARK CHICTACOMA PCT | J175: 2245
A176: LOGISTICS PARK CHIC | B176: IL | C176: 384020 | D176: TIC SEASIDE | E176: CA | F176: 883213 | G176: 2135 | I176: LOGISTICS PARK CHICTIC SEASIDE | J176: 2135
A177: LOGISTICS PARK CHIC | B177: IL | C177: 384020 | D177: TICTF | E177: CA | F177: 883213 | G177: 2135 | I177: LOGISTICS PARK CHICTICTF | J177: 2135
A178: LOGISTICS PARK CHIC | B178: IL | C178: 384020 | D178: WEST BASIN | E178: CA | F178: 883252 | G178: 2135 | I178: LOGISTICS PARK CHICWEST BASIN | J178: 2135
G179: OD Pair Unavailable | J179: OD Pair Unavailable
A180: LONG BEACH A PIER | B180: CA | C180: 883743 | D180: ALLIANCE | E180: TX | F180: 668100 | G180: 1587 | I180: LONG BEACH A PIERALLIANCE | J180: 1587
A181: LONG BEACH A PIER | B181: CA | C181: 883743 | D181: BARBOURS CUT | E181: TX | F181: 684815 | G181: 1823 | I181: LONG BEACH A PIERBARBOURS CUT | J181: 1823
A182: LONG BEACH A PIER | B182: CA | C182: 883743 | D182: CHICAGO | E182: IL | F182: 380000 | G182: 2162 | I182: LONG BEACH A PIERCHICAGO | J182: 2162
A183: LONG BEACH A PIER | B183: CA | C183: 883743 | D183: HOUSTON | E183: TX | F183: 684800 | G183: 1800 | I183: LONG BEACH A PIERHOUSTON | J183: 1800
A184: LONG BEACH A PIER | B184: CA | C184: 883743 | D184: KANSAS CITY | E184: KS | F184: 581520 | G184: 1727 | I184: LONG BEACH A PIERKANSAS CITY | J184: 1727
A185: LONG BEACH A PIER | B185: CA | C185: 883743 | D185: LOGISTICS PARK CHIC | E185: IL | F185: 384020 | G185: 2134 | I185: LONG BEACH A PIERLOGISTICS PARK CHIC | J185: 2134
A186: LONG BEACH A PIER | B186: CA | C186: 883743 | D186: MEMPHIS | E186: TN | F186: 439900 | G186: 2132 | I186: LONG BEACH A PIERMEMPHIS | J186: 2132
G187: OD Pair Unavailable | J187: OD Pair Unavailable
A188: LONG BEACH CUT | B188: CA | C188: 883732 | D188: ALLIANCE | E188: TX | F188: 668100 | G188: 1524 | I188: LONG BEACH CUTALLIANCE | J188: 1524
A189: LONG BEACH CUT | B189: CA | C189: 883732 | D189: CHICAGO | E189: IL | F189: 380000 | G189: 2099 | I189: LONG BEACH CUTCHICAGO | J189: 2099
A190: LONG BEACH CUT | B190: CA | C190: 883732 | D190: HOUSTON | E190: TX | F190: 684800 | G190: 1737 | I190: LONG BEACH CUTHOUSTON | J190: 1737
A191: LONG BEACH CUT | B191: CA | C191: 883732 | D191: KANSAS CITY | E191: KS | F191: 581520 | G191: 1664 | I191: LONG BEACH CUTKANSAS CITY | J191: 1664
A192: LONG BEACH CUT | B192: CA | C192: 883732 | D192: LOGISTICS PARK CHIC | E192: IL | F192: 384020 | G192: 2071 | I192: LONG BEACH CUTLOGISTICS PARK CHIC | J192: 2071
A193: LONG BEACH CUT | B193: CA | C193: 883732 | D193: MEMPHIS | E193: TN | F193: 439900 | G193: 2069 | I193: LONG BEACH CUTMEMPHIS | J193: 2069
J194: 0
A195: LONG BEACH ITS | B195: CA | C195: 883710 | D195: ALLIANCE | E195: TX | F195: 668100 | G195: 1587 | I195: LONG BEACH ITSALLIANCE | J195: 1587
A196: LONG BEACH ITS | B196: CA | C196: 883710 | D196: CHICAGO | E196: IL | F196: 380000 | G196: 2162 | I196: LONG BEACH ITSCHICAGO | J196: 2162
A197: LONG BEACH ITS | B197: CA | C197: 883710 | D197: HOUSTON | E197: TX | F197: 684800 | G197: 1800 | I197: LONG BEACH ITSHOUSTON | J197: 1800
A198: LONG BEACH ITS | B198: CA | C198: 883710 | D198: KANSAS CITY | E198: KS | F198: 581520 | G198: 1727 | I198: LONG BEACH ITSKANSAS CITY | J198: 1727
A199: LONG BEACH ITS | B199: CA | C199: 883710 | D199: LOGISTICS PARK CHIC | E199: IL | F199: 384020 | G199: 2134 | I199: =A199&D199 -> LONG BEACH ITSLOGISTICS PARK CHIC | J199: =G199 -> 2134
A200: LONG BEACH ITS | B200: CA | C200: 883710 | D200: MEMPHIS | E200: TN | F200: 439900 | G200: 2132 | I200: LONG BEACH ITSMEMPHIS | J200: 2132
... 174 more rows
